Workbook

Sheet Main
B10: 2019-02-01
B12: Sheet No. | C12: Template Name | D12: Summary
B13: 1 | C13: Future Intra | D13: For Intraday trading in F&O segment
B14: 2 | C14: Cash Intra | D14: For Intraday trading in cash market segment
B15: 3 | C15: Mid-cap Intra | D15: For Intraday trading in Mid-cap stocks
B16: 4 | C16: Bulk Deals | D16: Reveals Bulk Deals carried on NSE & BSE
B17: 5 | C17: Call Tracker

Sheet Future Intra
M5: Back to Main Page
A6: FOR INTRA DAY TRADING | L6: =Main!B10 -> 2019-02-01
A9: Sr.no | B9: Sector | C9: Scrip | D9: CLOSE RATE | E9: Pivot Point | F9: Supports | I9: Resistances
B10: Sector | D10: Point | E10: Point | F10: S1 | G10: S2 | H10: S3 | I10: R1 | J10: R2 | K10: R3 | L10: HIGH | M10: LOW | N10: OI | O10: % Change in OI
A11: 1 | B11: Index | C11: BANKNIFTY | D11: 27335.20 | E11: 27216.55 | F11: 27068.65 | G11: 26802.10 | H11: 26654.20 | I11: 27483.10 | J11: 27631.00 | K11: 27897.55 | L11: 27364.45 | M11: 26950 | N11: 1443860 | O11: -20.72%
A12: 2 | B12: Index | C12: NIFTY | D12: 10856.20 | E12: 10810.82 | F12: 10753.53 | G12: 10650.87 | H12: 10593.58 | I12: 10913.48 | J12: 10970.77 | K12: 11073.43 | L12: 10868.1 | M12: 10708.15 | N12: 18691725 | O12: -37.18%
A13: 3 | B13: Index | C13: NIFTYIT | D13: 15570.00 | E13: 15497.00 | F13: 15408.00 | G13: 15246.00 | H13: 15157.00 | I13: 15659.00 | J13: 15748.00 | K13: 15910.00 | L13: 15586 | M13: 15335 | N13: 21900 | O13: -2.01%
A14: 4 | B14: Cement | C14: ACC | D14: 1429.15 | E14: 1420.53 | F14: 1407.07 | G14: 1384.98 | H14: 1371.52 | I14: 1442.62 | J14: 1456.08 | K14: 1478.17 | L14: 1434 | M14: 1398.45 | N14: 1496800 | O14: -7.56%
A15: 5 | B15: Others | C15: ADANIENT | D15: 137.85 | E15: 139.10 | F15: 134.85 | G15: 131.85 | H15: 127.60 | I15: 142.10 | J15: 146.35 | K15: 149.35 | L15: 143.35 | M15: 136.1 | N15: 40084000 | O15: -5.22%
A16: 6 | B16: Others | C16: ADANIPORTS | D16: 340.70 | E16: 338.55 | F16: 334.00 | G16: 327.30 | H16: 322.75 | I16: 345.25 | J16: 349.80 | K16: 356.50 | L16: 343.1 | M16: 331.85 | N16: 22860000 | O16: -11.73%
A17: 7 | B17: Power | C17: ADANIPOWER | D17: 45.70 | E17: 45.22 | F17: 43.83 | G17: 41.97 | H17: 40.58 | I17: 47.08 | J17: 48.47 | K17: 50.33 | L17: 46.6 | M17: 43.35 | N17: 150900000 | O17: -10.56%
A18: 8 | B18: Pharma | C18: AJANTPHARM | D18: 1025.10 | E18: 1034.02 | F18: 1003.23 | G18: 981.37 | H18: 950.58 | I18: 1055.88 | J18: 1086.67 | K18: 1108.53 | L18: 1064.8 | M18: 1012.15 | N18: 651500 | O18: -3.98%
A19: 9 | B19: Banking | C19: ALBK | D19: 45.05 | E19: 45.08 | F19: 44.52 | G19: 43.98 | H19: 43.42 | I19: 45.62 | J19: 46.18 | K19: 46.72 | L19: 45.65 | M19: 44.55 | N19: 16458000 | O19: -5.45%
A20: 10 | B20: Automobile | C20: AMARAJABAT | D20: 744.40 | E20: 745.45 | F20: 739.00 | G20: 733.60 | H20: 727.15 | I20: 750.85 | J20: 757.30 | K20: 762.70 | L20: 751.9 | M20: 740.05 | N20: 941500 | O20: -24.78%
A21: 11 | B21: Cement | C21: AMBUJACEM | D21: 209.80 | E21: 208.75 | F21: 206.30 | G21: 202.80 | H21: 200.35 | I21: 212.25 | J21: 214.70 | K21: 218.20 | L21: 211.2 | M21: 205.25 | N21: 9642500 | O21: -40.01%
A22: 12 | B22: Others | C22: APOLLOHOSP | D22: 1333.25 | E22: 1331.55 | F22: 1321.05 | G22: 1308.85 | H22: 1298.35 | I22: 1343.75 | J22: 1354.25 | K22: 1366.45 | L22: 1342.05 | M22: 1319.35 | N22: 746500 | O22: -24.79%
A23: 13 | B23: Automobile | C23: APOLLOTYRE | D23: 205.70 | E23: 204.13 | F23: 201.97 | G23: 198.23 | H23: 196.07 | I23: 207.87 | J23: 210.03 | K23: 213.77 | L23: 206.3 | M23: 200.4 | N23: 9573000 | O23: -10.69%
A24: 14 | B24: Textile | C24: ARVIND | D24: 88.70 | E24: 89.72 | F24: 87.28 | G24: 85.87 | H24: 83.43 | I24: 91.13 | J24: 93.57 | K24: 94.98 | L24: 92.15 | M24: 88.3 | N24: 5778000 | O24: -21.58%
A25: 15 | B25: Automobile | C25: ASHOKLEY | D25: 81.85 | E25: 81.53 | F25: 80.32 | G25: 78.78 | H25: 77.57 | I25: 83.07 | J25: 84.28 | K25: 85.82 | L25: 82.75 | M25: 80 | N25: 76220000 | O25: -13.48%
A26: 16 | B26: FMCG | C26: ASIANPAINT | D26: 1417.85 | E26: 1412.10 | F26: 1402.60 | G26: 1387.35 | H26: 1377.85 | I26: 1427.35 | J26: 1436.85 | K26: 1452.10 | L26: 1421.6 | M26: 1396.85 | N26: 5508600 | O26: -12.74%
A27: 17 | B27: Pharma | C27: AUROPHARMA | D27: 790.70 | E27: 788.00 | F27: 782.45 | G27: 774.20 | H27: 768.65 | I27: 796.25 | J27: 801.80 | K27: 810.05 | L27: 793.55 | M27: 779.75 | N27: 16410000 | O27: -3.43%
A28: 18 | B28: Banking | C28: AXISBANK | D28: 722.10 | E28: 713.13 | F28: 700.57 | G28: 679.03 | H28: 666.47 | I28: 734.67 | J28: 747.23 | K28: 768.77 | L28: 725.7 | M28: 691.6 | N28: 39350400 | O28: -1.18%
A29: 19 | B29: Automobile | C29: BAJAJ-AUTO | D29: 2561.20 | E29: 2534.98 | F29: 2498.72 | G29: 2436.23 | H29: 2399.97 | I29: 2597.47 | J29: 2633.73 | K29: 2696.22 | L29: 2571.25 | M29: 2472.5 | N29: 2110250 | O29: -25.17%
A30: 20 | B30: Others | C30: BAJAJFINSV | D30: 6129.10 | E30: 6162.78 | F30: 6047.42 | G30: 5965.73 | H30: 5850.37 | I30: 6244.47 | J30: 6359.83 | K30: 6441.52 | L30: 6278.15 | M30: 6081.1 | N30: 663500 | O30: -5.89%
A31: 21 | B31: Finance | C31: BAJFINANCE | D31: 2584.80 | E31: 2577.53 | F31: 2545.27 | G31: 2505.73 | H31: 2473.47 | I31: 2617.07 | J31: 2649.33 | K31: 2688.87 | L31: 2609.8 | M31: 2538 | N31: 6200000 | O31: -8.87%
A32: 22 | B32: Others | C32: BALKRISIND | D32: 814.60 | E32: 815.13 | F32: 810.52 | G32: 806.43 | H32: 801.82 | I32: 819.22 | J32: 823.83 | K32: 827.92 | L32: 819.75 | M32: 811.05 | N32: 2541600 | O32: -19.16%
A33: 23 | B33: Banking | C33: BANKBARODA | D33: 113.10 | E33: 113.18 | F33: 110.97 | G33: 108.83 | H33: 106.62 | I33: 115.32 | J33: 117.53 | K33: 119.67 | L33: 115.4 | M33: 111.05 | N33: 64596000 | O33: -5.51%
A34: 24 | B34: Banking | C34: BANKINDIA | D34: 103.50 | E34: 102.10 | F34: 99.25 | G34: 95.00 | H34: 92.15 | I34: 106.35 | J34: 109.20 | K34: 113.45 | L34: 104.95 | M34: 97.85 | N34: 24132000 | O34: -22.21%
A35: 25 | B35: FMCG | C35: BATAINDIA | D35: 1120.75 | E35: 1112.35 | F35: 1097.40 | G35: 1074.05 | H35: 1059.10 | I35: 1135.70 | J35: 1150.65 | K35: 1174.00 | L35: 1127.3 | M35: 1089 | N35: 1811150 | O35: -17.88%
A36: 26 | B36: Capital_Goods | C36: BEL | D36: 83.95 | E36: 85.17 | F36: 82.33 | G36: 80.72 | H36: 77.88 | I36: 86.78 | J36: 89.62 | K36: 91.23 | L36: 88 | M36: 83.55 | N36: 31044000 | O36: -21.42%
A37: 27 | B37: Infrastructure | C37: BEML | D37: 798.95 | E37: 803.23 | F37: 783.22 | G37: 767.48 | H37: 747.47 | I37: 818.97 | J37: 838.98 | K37: 854.72 | L37: 823.25 | M37: 787.5 | N37: 1402100 | O37: -6.79%
A38: 28 | B38: Others | C38: BERGEPAINT | D38: 320.90 | E38: 319.97 | F38: 317.18 | G38: 313.47 | H38: 310.68 | I38: 323.68 | J38: 326.47 | K38: 330.18 | L38: 322.75 | M38: 316.25 | N38: 5891600 | O38: -13.16%
A39: 29 | B39: Finance | C39: BHARATFIN | D39: 951.15 | E39: 948.58 | F39: 936.22 | G39: 921.28 | H39: 908.92 | I39: 963.52 | J39: 975.88 | K39: 990.82 | L39: 960.95 | M39: 933.65 | N39: 4295500 | O39: 0.86%
A40: 30 | B40: Automobile | C40: BHARATFORG | D40: 494.95 | E40: 490.80 | F40: 483.70 | G40: 472.45 | H40: 465.35 | I40: 502.05 | J40: 509.15 | K40: 520.40 | L40: 497.9 | M40: 479.55 | N40: 12661200 | O40: -7.76%
A41: 31 | B41: Telecom | C41: BHARTIARTL | D41: 307.90 | E41: 307.70 | F41: 304.70 | G41: 301.50 | H41: 298.50 | I41: 310.90 | J41: 313.90 | K41: 317.10 | L41: 310.7 | M41: 304.5 | N41: 33065000 | O41: -6.31%
A42: 32 | B42: Capital_Goods | C42: BHEL | D42: 64.60 | E42: 64.32 | F42: 63.83 | G42: 63.07 | H42: 62.58 | I42: 65.08 | J42: 65.57 | K42: 66.33 | L42: 64.8 | M42: 63.55 | N42: 42712500 | O42: -18.00%
A43: 33 | B43: Pharma | C43: BIOCON | D43: 651.80 | E43: 653.57 | F43: 648.28 | G43: 644.77 | H43: 639.48 | I43: 657.08 | J43: 662.37 | K43: 665.88 | L43: 658.85 | M43: 650.05 | N43: 4944600 | O43: -9.43%
A44: 34 | B44: Automobile | C44: BOSCHLTD | D44: 18956.35 | E44: 18825.53 | F44: 18652.07 | G44: 18347.78 | H44: 18174.32 | I44: 19129.82 | J44: 19303.28 | K44: 19607.57 | L44: 18999 | M44: 18521.25 | N44: 157530 | O44: -6.17%
A45: 35 | B45: Oil_Gas | C45: BPCL | D45: 338.85 | E45: 336.65 | F45: 332.60 | G45: 326.35 | H45: 322.30 | I45: 342.90 | J45: 346.95 | K45: 353.20 | L45: 340.7 | M45: 330.4 | N45: 4572000 | O45: -50.19%
A46: 36 | B46: FMCG | C46: BRITANNIA | D46: 3215.45 | E46: 3221.00 | F46: 3202.10 | G46: 3188.75 | H46: 3169.85 | I46: 3234.35 | J46: 3253.25 | K46: 3266.60 | L46: 3239.9 | M46: 3207.65 | N46: 2913200 | O46: -2.46%
A47: 37 | B47: Pharma | C47: CADILAHC | D47: 320.45 | E47: 321.45 | F47: 318.05 | G47: 315.65 | H47: 312.25 | I47: 323.85 | J47: 327.25 | K47: 329.65 | L47: 324.85 | M47: 319.05 | N47: 8147200 | O47: -5.46%
A48: 38 | B48: Banking | C48: CANBK | D48: 251.65 | E48: 250.80 | F48: 248.15 | G48: 244.65 | H48: 242.00 | I48: 254.30 | J48: 256.95 | K48: 260.45 | L48: 253.45 | M48: 247.3 | N48: 10276000 | O48: -6.97%
A49: 39 | B49: Others | C49: CANFINHOME | D49: 252.10 | E49: 250.65 | F49: 247.10 | G49: 242.10 | H49: 238.55 | I49: 255.65 | J49: 259.20 | K49: 264.20 | L49: 254.2 | M49: 245.65 | N49: 4129200 | O49: -3.86%
A50: 40 | B50: Oil_Gas | C50: CASTROLIND | D50: 159.65 | E50: 161.05 | F50: 155.95 | G50: 152.25 | H50: 147.15 | I50: 164.75 | J50: 169.85 | K50: 173.55 | L50: 166.15 | M50: 157.35 | N50: 7021000 | O50: -18.25%
A51: 41 | B51: Automobile | C51: CEATLTD | D51: 1073.00 | E51: 1069.30 | F51: 1056.55 | G51: 1040.10 | H51: 1027.35 | I51: 1085.75 | J51: 1098.50 | K51: 1114.95 | L51: 1082.05 | M51: 1052.85 | N51: 1120000 | O51: -19.49%
A52: 42 | B52: Textile | C52: CENTURYTEX | D52: 798.80 | E52: 799.60 | F52: 790.20 | G52: 781.60 | H52: 772.20 | I52: 808.20 | J52: 817.60 | K52: 826.20 | L52: 809 | M52: 791 | N52: 4571400 | O52: -2.92%
A53: 43 | B53: Power | C53: CESC | D53: 690.70 | E53: 689.98 | F53: 683.87 | G53: 677.03 | H53: 670.92 | I53: 696.82 | J53: 702.93 | K53: 709.77 | L53: 696.1 | M53: 683.15 | N53: 986700 | O53: -22.54%
A54: 44 | B54: Power | C54: CGPOWER | D54: 37.90 | E54: 37.82 | F54: 37.28 | G54: 36.67 | H54: 36.13 | I54: 38.43 | J54: 38.97 | K54: 39.58 | L54: 38.35 | M54: 37.2 | N54: 41520000 | O54: -17.21%
A55: 45 | B55: Others | C55: CHENNPETRO | D55: 241.45 | E55: 240.68 | F55: 237.22 | G55: 232.98 | H55: 229.52 | I55: 244.92 | J55: 248.38 | K55: 252.62 | L55: 244.15 | M55: 236.45 | N55: 1350000 | O55: -8.42%
A56: 46 | B56: Others | C56: CHOLAFIN | D56: 1173.00 | E56: 1160.88 | F56: 1142.12 | G56: 1111.23 | H56: 1092.47 | I56: 1191.77 | J56: 1210.53 | K56: 1241.42 | L56: 1179.65 | M56: 1130 | N56: 849500 | O56: -28.25%
A57: 47 | B57: Pharma | C57: CIPLA | D57: 519.05 | E57: 516.08 | F57: 510.02 | G57: 500.98 | H57: 494.92 | I57: 525.12 | J57: 531.18 | K57: 540.22 | L57: 522.15 | M57: 507.05 | N57: 7357000 | O57: -11.83%
A58: 48 | B58: Others | C58: COALINDIA | D58: 225.35 | E58: 225.35 | F58: 223.60 | G58: 221.85 | H58: 220.10 | I58: 227.10 | J58: 228.85 | K58: 230.60 | L58: 227.1 | M58: 223.6 | N58: 18081800 | O58: -30.61%
A59: 49 | B59: FMCG | C59: COLPAL | D59: 1285.15 | E59: 1287.68 | F59: 1278.92 | G59: 1272.68 | H59: 1263.92 | I59: 1293.92 | J59: 1302.68 | K59: 1308.92 | L59: 1296.45 | M59: 1281.45 | N59: 1452500 | O59: -13.11%
A60: 50 | B60: Others | C60: CONCOR | D60: 657.05 | E60: 659.12 | F60: 652.63 | G60: 648.22 | H60: 641.73 | I60: 663.53 | J60: 670.02 | K60: 674.43 | L60: 665.6 | M60: 654.7 | N60: 1618750 | O60: -43.79%
A61: 51 | B61: Capital_Goods | C61: CUMMINSIND | D61: 790.25 | E61: 794.05 | F61: 783.10 | G61: 775.95 | H61: 765.00 | I61: 801.20 | J61: 812.15 | K61: 819.30 | L61: 805 | M61: 786.9 | N61: 1492400 | O61: -8.10%
A62: 52 | B62: FMCG | C62: DABUR | D62: 446.85 | E62: 442.15 | F62: 434.35 | G62: 421.85 | H62: 414.05 | I62: 454.65 | J62: 462.45 | K62: 474.95 | L62: 449.95 | M62: 429.65 | N62: 13846250 | O62: -0.26%
A63: 53 | B63: Banking | C63: DCBBANK | D63: 179.55 | E63: 179.30 | F63: 176.70 | G63: 173.85 | H63: 171.25 | I63: 182.15 | J63: 184.75 | K63: 187.60 | L63: 181.9 | M63: 176.45 | N63: 3024000 | O63: -16.52%
A64: 54 | B64: Finance | C64: DHFL | D64: 133.90 | E64: 138.20 | F64: 121.90 | G64: 109.90 | H64: 93.60 | I64: 150.20 | J64: 166.50 | K64: 178.50 | L64: 154.5 | M64: 126.2 | N64: 19203000 | O64: -21.17%
A65: 55 | B65: Media | C65: DISHTV | D65: 23.85 | E65: 23.73 | F65: 22.52 | G65: 21.18 | H65: 19.97 | I65: 25.07 | J65: 26.28 | K65: 27.62 | L65: 24.95 | M65: 22.4 | N65: 57864000 | O65: -21.35%
A66: 56 | B66: Pharma | C66: DIVISLAB | D66: 1514.75 | E66: 1515.12 | F66: 1502.23 | G66: 1489.72 | H66: 1476.83 | I66: 1527.63 | J66: 1540.52 | K66: 1553.03 | L66: 1528 | M66: 1502.6 | N66: 3145200 | O66: -2.14%
A67: 57 | B67: Realty | C67: DLF | D67: 165.55 | E67: 164.38 | F67: 160.32 | G67: 155.08 | H67: 151.02 | I67: 169.62 | J67: 173.68 | K67: 178.92 | L67: 168.45 | M67: 159.15 | N67: 22895600 | O67: -5.52%
A68: 58 | B68: Pharma | C68: DRREDDY | D68: 2728.40 | E68: 2708.00 | F68: 2682.10 | G68: 2635.80 | H68: 2609.90 | I68: 2754.30 | J68: 2780.20 | K68: 2826.50 | L68: 2733.9 | M68: 2661.7 | N68: 3674250 | O68: -8.66%
A69: 59 | B69: Automobile | C69: EICHERMOT | D69: 19094.65 | E69: 19092.30 | F69: 18940.45 | G69: 18786.25 | H69: 18634.40 | I69: 19246.50 | J69: 19398.35 | K69: 19552.55 | L69: 19244.15 | M69: 18938.1 | N69: 359500 | O69: -8.45%
A70: 60 | B70: Infrastructure | C70: ENGINERSIN | D70: 111.10 | E70: 111.30 | F70: 109.35 | G70: 107.60 | H70: 105.65 | I70: 113.05 | J70: 115.00 | K70: 116.75 | L70: 113.25 | M70: 109.55 | N70: 7384100 | O70: -17.91%
A71: 61 | B71: Finance | C71: EQUITAS | D71: 120.50 | E71: 119.58 | F71: 117.52 | G71: 114.53 | H71: 112.47 | I71: 122.57 | J71: 124.63 | K71: 127.62 | L71: 121.65 | M71: 116.6 | N71: 10432000 | O71: -9.22%
A72: 62 | B72: Automobile | C72: ESCORTS | D72: 663.70 | E72: 661.17 | F72: 654.58 | G72: 645.47 | H72: 638.88 | I72: 670.28 | J72: 676.87 | K72: 685.98 | L72: 667.75 | M72: 652.05 | N72: 3911600 | O72: -4.38%
A73: 63 | B73: Automobile | C73: EXIDEIND | D73: 227.35 | E73: 226.18 | F73: 223.92 | G73: 220.48 | H73: 218.22 | I73: 229.62 | J73: 231.88 | K73: 235.32 | L73: 228.45 | M73: 222.75 | N73: 7180000 | O73: -17.26%
A74: 64 | B74: Banking | C74: FEDERALBNK | D74: 86.30 | E74: 86.32 | F74: 85.38 | G74: 84.47 | H74: 83.53 | I74: 87.23 | J74: 88.17 | K74: 89.08 | L74: 87.25 | M74: 85.4 | N74: 47796000 | O74: -20.36%
A75: 65 | B75: Oil_Gas | C75: GAIL | D75: 328.05 | E75: 325.47 | F75: 321.13 | G75: 314.22 | H75: 309.88 | I75: 332.38 | J75: 336.72 | K75: 343.63 | L75: 329.8 | M75: 318.55 | N75: 8947785 | O75: -33.19%
A76: 66 | B76: Pharma | C76: GLENMARK | D76: 655.20 | E76: 651.62 | F76: 646.08 | G76: 636.97 | H76: 631.43 | I76: 660.73 | J76: 666.27 | K76: 675.38 | L76: 657.15 | M76: 642.5 | N76: 3736000 | O76: -6.20%
A77: 67 | B77: Infrastructure | C77: GMRINFRA | D77: 15.25 | E77: 15.37 | F77: 14.98 | G77: 14.72 | H77: 14.33 | I77: 15.63 | J77: 16.02 | K77: 16.28 | L77: 15.75 | M77: 15.1 | N77: 158535000 | O77: -24.11%
A78: 68 | B78: Others | C78: GODFRYPHLP | D78: 932.65 | E78: 935.38 | F78: 926.32 | G78: 919.98 | H78: 910.92 | I78: 941.72 | J78: 950.78 | K78: 957.12 | L78: 944.45 | M78: 929.05 | N78: 451500 | O78: -6.11%
A79: 69 | B79: FMCG | C79: GODREJCP | D79: 711.25 | E79: 706.53 | F79: 699.12 | G79: 686.98 | H79: 679.57 | I79: 718.67 | J79: 726.08 | K79: 738.22 | L79: 713.95 | M79: 694.4 | N79: 5341200 | O79: -4.93%
A80: 70 | B80: FMCG | C80: GODREJIND | D80: 505.50 | E80: 502.30 | F80: 495.20 | G80: 484.90 | H80: 477.80 | I80: 512.60 | J80: 519.70 | K80: 530.00 | L80: 509.4 | M80: 492 | N80: 1510500 | O80: -9.20%
A81: 71 | B81: Cement | C81: GRASIM | D81: 724.90 | E81: 725.97 | F81: 716.93 | G81: 708.97 | H81: 699.93 | I81: 733.93 | J81: 742.97 | K81: 750.93 | L81: 735 | M81: 718 | N81: 10999500 | O81: -2.24%
A82: 72 | B82: Others | C82: GSFC | D82: 97.60 | E82: 96.87 | F82: 95.68 | G82: 93.77 | H82: 92.58 | I82: 98.78 | J82: 99.97 | K82: 101.88 | L82: 98.05 | M82: 94.95 | N82: 12718200 | O82: -8.55%
A83: 73 | B83: Others | C83: HAVELLS | D83: 716.95 | E83: 710.32 | F83: 701.88 | G83: 686.82 | H83: 678.38 | I83: 725.38 | J83: 733.82 | K83: 748.88 | L83: 718.75 | M83: 695.25 | N83: 4497000 | O83: -10.86%
A84: 74 | B84: Technology | C84: HCLTECH | D84: 1008.20 | E84: 1007.88 | F84: 991.02 | G84: 973.83 | H84: 956.97 | I84: 1025.07 | J84: 1041.93 | K84: 1059.12 | L84: 1024.75 | M84: 990.7 | N84: 10020500 | O84: -2.92%
A85: 75 | B85: Finance | C85: HDFC | D85: 1931.25 | E85: 1922.63 | F85: 1896.47 | G85: 1861.68 | H85: 1835.52 | I85: 1957.42 | J85: 1983.58 | K85: 2018.37 | L85: 1948.8 | M85: 1887.85 | N85: 27231000 | O85: -3.52%
A86: 76 | B86: Banking | C86: HDFCBANK | D86: 2082.10 | E86: 2066.92 | F86: 2043.53 | G86: 2004.97 | H86: 1981.58 | I86: 2105.48 | J86: 2128.87 | K86: 2167.43 | L86: 2090.3 | M86: 2028.35 | N86: 11819250 | O86: -17.06%
A87: 77 | B87: Automobile | C87: HEROMOTOCO | D87: 2584.45 | E87: 2570.48 | F87: 2545.47 | G87: 2506.48 | H87: 2481.47 | I87: 2609.47 | J87: 2634.48 | K87: 2673.47 | L87: 2595.5 | M87: 2531.5 | N87: 1625800 | O87: -30.73%
A88: 78 | B88: Technology | C88: HEXAWARE | D88: 341.60 | E88: 332.27 | F88: 317.23 | G88: 292.87 | H88: 277.83 | I88: 356.63 | J88: 371.67 | K88: 396.03 | L88: 347.3 | M88: 307.9 | N88: 3172500 | O88: -4.60%
A89: 79 | B89: Metals | C89: HINDALCO | D89: 209.60 | E89: 208.67 | F89: 206.33 | G89: 203.07 | H89: 200.73 | I89: 211.93 | J89: 214.27 | K89: 217.53 | L89: 211 | M89: 205.4 | N89: 33271000 | O89: -13.03%
A90: 80 | B90: Oil_Gas | C90: HINDPETRO | D90: 230.45 | E90: 229.53 | F90: 226.07 | G90: 221.68 | H90: 218.22 | I90: 233.92 | J90: 237.38 | K90: 241.77 | L90: 233 | M90: 225.15 | N90: 12303900 | O90: -18.77%
A91: 81 | B91: FMCG | C91: HINDUNILVR | D91: 1771.70 | E91: 1765.27 | F91: 1748.53 | G91: 1725.37 | H91: 1708.63 | I91: 1788.43 | J91: 1805.17 | K91: 1828.33 | L91: 1782 | M91: 1742.1 | N91: 10479600 | O91: -6.47%
A92: 82 | B92: Metals | C92: HINDZINC | D92: 261.65 | E92: 261.78 | F92: 259.72 | G92: 257.78 | H92: 255.72 | I92: 263.72 | J92: 265.78 | K92: 267.72 | L92: 263.85 | M92: 259.85 | N92: 4406400 | O92: -22.81%
A93: 83 | B93: Finance | C93: IBULHSGFIN | D93: 658.75 | E93: 660.17 | F93: 636.33 | G93: 613.92 | H93: 590.08 | I93: 682.58 | J93: 706.42 | K93: 728.83 | L93: 684 | M93: 637.75 | N93: 13508000 | O93: -4.95%
A94: 84 | B94: Banking | C94: ICICIBANK | D94: 365.30 | E94: 366.03 | F94: 354.82 | G94: 344.33 | H94: 333.12 | I94: 376.52 | J94: 387.73 | K94: 398.22 | L94: 377.25 | M94: 355.55 | N94: 90862750 | O94: -23.23%
A95: 85 | B95: Others | C95: ICICIPRULI | D95: 286.95 | E95: 288.80 | F95: 282.65 | G95: 278.35 | H95: 272.20 | I95: 293.10 | J95: 299.25 | K95: 303.55 | L95: 294.95 | M95: 284.5 | N95: 6274500 | O95: -5.51%
A96: 86 | B96: Banking | C96: IDBI | D96: 55.50 | E96: 55.08 | F96: 54.32 | G96: 53.13 | H96: 52.37 | I96: 56.27 | J96: 57.03 | K96: 58.22 | L96: 55.85 | M96: 53.9 | N96: 32520000 | O96: -5.38%
A97: 87 | B97: Telecom | C97: IDEA | D97: 30.25 | E97: 30.30 | F97: 29.60 | G97: 28.95 | H97: 28.25 | I97: 30.95 | J97: 31.65 | K97: 32.30 | L97: 31 | M97: 29.65 | N97: 145224000 | O97: -13.45%
A98: 88 | B98: Finance | C98: IDFC | D98: 39.85 | E98: 39.45 | F98: 38.75 | G98: 37.65 | H98: 36.95 | I98: 40.55 | J98: 41.25 | K98: 42.35 | L98: 40.15 | M98: 38.35 | N98: 101838000 | O98: -20.39%
A99: 89 | B99: Banking | C99: IDFCFIRSTB | D99: 45.45 | E99: 45.13 | F99: 44.17 | G99: 42.88 | H99: 41.92 | I99: 46.42 | J99: 47.38 | K99: 48.67 | L99: 46.1 | M99: 43.85 | N99: 140676000 | O99: -17.52%
A100: 90 | B100: Finance | C100: IFCI | D100: 13.75 | E100: 13.58 | F100: 13.37 | G100: 12.98 | H100: 12.77 | I100: 13.97 | J100: 14.18 | K100: 14.57 | L100: 13.8 | M100: 13.2 | N100: 52255000 | O100: -25.98%
A101: 91 | B101: Oil_Gas | C101: IGL | D101: 284.80 | E101: 283.03 | F101: 278.27 | G101: 271.73 | H101: 266.97 | I101: 289.57 | J101: 294.33 | K101: 300.87 | L101: 287.8 | M101: 276.5 | N101: 2774750 | O101: -20.17%
A102: 92 | B102: Cement | C102: INDIACEM | D102: 84.80 | E102: 84.33 | F102: 83.07 | G102: 81.33 | H102: 80.07 | I102: 86.07 | J102: 87.33 | K102: 89.07 | L102: 85.6 | M102: 82.6 | N102: 18792000 | O102: -8.26%
A103: 93 | B103: Banking | C103: INDIANB | D103: 226.15 | E103: 225.72 | F103: 223.18 | G103: 220.22 | H103: 217.68 | I103: 228.68 | J103: 231.22 | K103: 234.18 | L103: 228.25 | M103: 222.75 | N103: 3318000 | O103: -4.05%
A104: 94 | B104: Others | C104: INDIGO | D104: 1193.85 | E104: 1185.03 | F104: 1172.22 | G104: 1150.58 | H104: 1137.77 | I104: 1206.67 | J104: 1219.48 | K104: 1241.12 | L104: 1197.85 | M104: 1163.4 | N104: 2349600 | O104: -13.80%
A105: 95 | B105: Banking | C105: INDUSINDBK | D105: 1508.50 | E105: 1502.73 | F105: 1482.17 | G105: 1455.83 | H105: 1435.27 | I105: 1529.07 | J105: 1549.63 | K105: 1575.97 | L105: 1523.3 | M105: 1476.4 | N105: 6619500 | O105: -18.54%
A106: 96 | B106: Technology | C106: INFIBEAM | D106: 38.60 | E106: 38.30 | F106: 37.00 | G106: 35.40 | H106: 34.10 | I106: 39.90 | J106: 41.20 | K106: 42.80 | L106: 39.6 | M106: 36.7 | N106: 16064000 | O106: -15.15%
A107: 97 | B107: Telecom | C107: INFRATEL | D107: 293.60 | E107: 293.02 | F107: 288.38 | G107: 283.17 | H107: 278.53 | I107: 298.23 | J107: 302.87 | K107: 308.08 | L107: 297.65 | M107: 287.8 | N107: 7584000 | O107: -22.85%
A108: 98 | B108: Technology | C108: INFY | D108: 753.25 | E108: 746.30 | F108: 737.95 | G108: 722.65 | H108: 714.30 | I108: 761.60 | J108: 769.95 | K108: 785.25 | L108: 754.65 | M108: 731 | N108: 39007200 | O108: -8.18%
A109: 99 | B109: Oil_Gas | C109: IOC | D109: 137.50 | E109: 136.48 | F109: 134.02 | G109: 130.53 | H109: 128.07 | I109: 139.97 | J109: 142.43 | K109: 145.92 | L109: 138.95 | M109: 133 | N109: 30124500 | O109: -29.51%
A110: 100 | B110: Infrastructure | C110: IRB | D110: 144.95 | E110: 144.95 | F110: 142.40 | G110: 139.85 | H110: 137.30 | I110: 147.50 | J110: 150.05 | K110: 152.60 | L110: 147.5 | M110: 142.4 | N110: 6451200 | O110: -15.96%
A111: 101 | B111: FMCG | C111: ITC | D111: 280.00 | E111: 278.47 | F111: 276.43 | G111: 272.87 | H111: 270.83 | I111: 282.03 | J111: 284.07 | K111: 287.63 | L111: 280.5 | M111: 274.9 | N111: 69693600 | O111: -14.99%
A112: 102 | B112: Others | C112: JETAIRWAYS | D112: 231.55 | E112: 230.17 | F112: 223.53 | G112: 215.52 | H112: 208.88 | I112: 238.18 | J112: 244.82 | K112: 252.83 | L112: 236.8 | M112: 222.15 | N112: 5141400 | O112: -7.66%
A113: 103 | B113: Metals | C113: JINDALSTEL | D113: 135.75 | E113: 133.43 | F113: 130.52 | G113: 125.28 | H113: 122.37 | I113: 138.67 | J113: 141.58 | K113: 146.82 | L113: 136.35 | M113: 128.2 | N113: 25940250 | O113: -14.01%
A114: 104 | B114: Others | C114: JISLJALEQS | D114: 61.40 | E114: 60.70 | F114: 59.70 | G114: 58.00 | H114: 57.00 | I114: 62.40 | J114: 63.40 | K114: 65.10 | L114: 61.7 | M114: 59 | N114: 37323000 | O114: -0.24%
A115: 105 | B115: Realty | C115: JPASSOCIAT | D115: 6.55 | E115: 6.53 | F115: 6.37 | G115: 6.18 | H115: 6.02 | I115: 6.72 | J115: 6.88 | K115: 7.07 | L115: 6.7 | M115: 6.35 | N115: 107415000 | O115: -33.25%
A116: 106 | B116: Metals | C116: JSWSTEEL | D116: 276.15 | E116: 273.75 | F116: 270.45 | G116: 264.75 | H116: 261.45 | I116: 279.45 | J116: 282.75 | K116: 288.45 | L116: 277.05 | M116: 268.05 | N116: 52803000 | O116: -2.79%
A117: 107 | B117: Others | C117: JUBLFOOD | D117: 1262.25 | E117: 1250.40 | F117: 1226.20 | G117: 1190.15 | H117: 1165.95 | I117: 1286.45 | J117: 1310.65 | K117: 1346.70 | L117: 1274.6 | M117: 1214.35 | N117: 3594000 | O117: -24.75%
A118: 108 | B118: Others | C118: JUSTDIAL | D118: 478.95 | E118: 476.37 | F118: 471.23 | G118: 463.52 | H118: 458.38 | I118: 484.08 | J118: 489.22 | K118: 496.93 | L118: 481.5 | M118: 468.65 | N118: 2185400 | O118: -16.88%
A119: 109 | B119: Others | C119: KAJARIACER | D119: 541.05 | E119: 539.00 | F119: 535.00 | G119: 528.95 | H119: 524.95 | I119: 545.05 | J119: 549.05 | K119: 555.10 | L119: 543 | M119: 532.95 | N119: 2424500 | O119: -14.92%
A120: 110 | B120: Banking | C120: KOTAKBANK | D120: 1257.75 | E120: 1245.90 | F120: 1228.35 | G120: 1198.95 | H120: 1181.40 | I120: 1275.30 | J120: 1292.85 | K120: 1322.25 | L120: 1263.45 | M120: 1216.5 | N120: 9667200 | O120: -15.14%
A121: 111 | B121: Technology | C121: KPIT | D121: 115.00 | E121: 113.77 | F121: 111.38 | G121: 107.77 | H121: 105.38 | I121: 117.38 | J121: 119.77 | K121: 123.38 | L121: 116.15 | M121: 110.15 | N121: 2398500 | O121: -4.74%
A122: 112 | B122: Others | C122: KSCL | D122: 591.40 | E122: 588.70 | F122: 576.70 | G122: 562.00 | H122: 550.00 | I122: 603.40 | J122: 615.40 | K122: 630.10 | L122: 600.7 | M122: 574 | N122: 877500 | O122: -28.57%
A123: 113 | B123: Banking | C123: KTKBANK | D123: 120.70 | E123: 120.02 | F123: 117.23 | G123: 113.77 | H123: 110.98 | I123: 123.48 | J123: 126.27 | K123: 129.73 | L123: 122.8 | M123: 116.55 | N123: 13568900 | O123: -1.77%
A124: 114 | B124: Finance | C124: L&TFH | D124: 132.10 | E124: 131.82 | F124: 129.03 | G124: 125.97 | H124: 123.18 | I124: 134.88 | J124: 137.67 | K124: 140.73 | L124: 134.6 | M124: 128.75 | N124: 24723000 | O124: -8.14%
A125: 115 | B125: Finance | C125: LICHSGFIN | D125: 451.30 | E125: 447.07 | F125: 440.13 | G125: 428.97 | H125: 422.03 | I125: 458.23 | J125: 465.17 | K125: 476.33 | L125: 454 | M125: 435.9 | N125: 9002400 | O125: -9.15%
A126: 116 | B126: Capital_Goods | C126: LT | D126: 1310.90 | E126: 1307.45 | F126: 1300.65 | G126: 1290.40 | H126: 1283.60 | I126: 1317.70 | J126: 1324.50 | K126: 1334.75 | L126: 1314.25 | M126: 1297.2 | N126: 7205250 | O126: -38.80%
A127: 117 | B127: Pharma | C127: LUPIN | D127: 881.45 | E127: 880.57 | F127: 870.38 | G127: 859.32 | H127: 849.13 | I127: 891.63 | J127: 901.82 | K127: 912.88 | L127: 890.75 | M127: 869.5 | N127: 7896700 | O127: -5.79%
A128: 118 | B128: Automobile | C128: M&M | D128: 683.65 | E128: 682.82 | F128: 677.28 | G128: 670.92 | H128: 665.38 | I128: 689.18 | J128: 694.72 | K128: 701.08 | L128: 688.35 | M128: 676.45 | N128: 17417000 | O128: -6.29%
A129: 119 | B129: Finance | C129: M&MFIN | D129: 406.80 | E129: 405.47 | F129: 401.38 | G129: 395.97 | H129: 391.88 | I129: 410.88 | J129: 414.97 | K129: 420.38 | L129: 409.55 | M129: 400.05 | N129: 11608750 | O129: -5.63%
A130: 120 | B130: Others | C130: MANAPPURAM | D130: 92.20 | E130: 91.68 | F130: 90.62 | G130: 89.03 | H130: 87.97 | I130: 93.27 | J130: 94.33 | K130: 95.92 | L130: 92.75 | M130: 90.1 | N130: 7878000 | O130: -14.96%
A131: 121 | B131: FMCG | C131: MARICO | D131: 366.15 | E131: 366.40 | F131: 362.05 | G131: 357.95 | H131: 353.60 | I131: 370.50 | J131: 374.85 | K131: 378.95 | L131: 370.75 | M131: 362.3 | N131: 5257200 | O131: -27.94%
A132: 122 | B132: Automobile | C132: MARUTI | D132: 6665.00 | E132: 6610.43 | F132: 6539.87 | G132: 6414.73 | H132: 6344.17 | I132: 6735.57 | J132: 6806.13 | K132: 6931.27 | L132: 6681 | M132: 6485.3 | N132: 2639850 | O132: -11.78%
A133: 123 | B133: FMCG | C133: MCDOWELL-N | D133: 542.70 | E133: 546.42 | F133: 536.88 | G133: 531.07 | H133: 521.53 | I133: 552.23 | J133: 561.77 | K133: 567.58 | L133: 555.95 | M133: 540.6 | N133: 12383750 | O133: -3.96%
A134: 124 | B134: Others | C134: MCX | D134: 708.30 | E134: 711.12 | F134: 703.23 | G134: 698.17 | H134: 690.28 | I134: 716.18 | J134: 724.07 | K134: 729.13 | L134: 719 | M134: 706.05 | N134: 2265900 | O134: -6.26%
A135: 125 | B135: Finance | C135: MFSL | D135: 398.45 | E135: 403.42 | F135: 388.33 | G135: 378.22 | H135: 363.13 | I135: 413.53 | J135: 428.62 | K135: 438.73 | L135: 418.5 | M135: 393.3 | N135: 2348400 | O135: 9.09%
A136: 126 | B136: Others | C136: MGL | D136: 916.70 | E136: 914.22 | F136: 908.93 | G136: 901.17 | H136: 895.88 | I136: 921.98 | J136: 927.27 | K136: 935.03 | L136: 919.5 | M136: 906.45 | N136: 900600 | O136: 2.60%
A137: 127 | B137: Technology | C137: MINDTREE | D137: 899.35 | E137: 896.87 | F137: 887.78 | G137: 876.22 | H137: 867.13 | I137: 908.43 | J137: 917.52 | K137: 929.08 | L137: 905.95 | M137: 885.3 | N137: 2325600 | O137: -20.21%
A138: 128 | B138: Automobile | C138: MOTHERSUMI | D138: 141.00 | E138: 141.77 | F138: 139.63 | G138: 138.27 | H138: 136.13 | I138: 143.13 | J138: 145.27 | K138: 146.63 | L138: 143.9 | M138: 140.4 | N138: 27625050 | O138: -2.88%
A139: 129 | B139: Automobile | C139: MRF | D139: 61687.25 | E139: 61511.90 | F139: 61175.35 | G139: 60663.45 | H139: 60326.90 | I139: 62023.80 | J139: 62360.35 | K139: 62872.25 | L139: 61848.45 | M139: 61000 | N139: 27290 | O139: -6.22%
A140: 130 | B140: Others | C140: MRPL | D140: 68.10 | E140: 68.05 | F140: 67.05 | G140: 66.00 | H140: 65.00 | I140: 69.10 | J140: 70.10 | K140: 71.15 | L140: 69.05 | M140: 67 | N140: 4935000 | O140: -18.12%
A141: 131 | B141: Finance | C141: MUTHOOTFIN | D141: 498.35 | E141: 497.92 | F141: 492.13 | G141: 485.92 | H141: 480.13 | I141: 504.13 | J141: 509.92 | K141: 516.13 | L141: 503.7 | M141: 491.7 | N141: 1339500 | O141: -31.10%
A142: 132 | B142: Others | C142: NATIONALUM | D142: 59.70 | E142: 59.80 | F142: 59.00 | G142: 58.30 | H142: 57.50 | I142: 60.50 | J142: 61.30 | K142: 62.00 | L142: 60.6 | M142: 59.1 | N142: 23696000 | O142: -9.09%
A143: 133 | B143: Others | C143: NBCC | D143: 59.10 | E143: 59.55 | F143: 58.40 | G143: 57.70 | H143: 56.55 | I143: 60.25 | J143: 61.40 | K143: 62.10 | L143: 60.7 | M143: 58.85 | N143: 30728000 | O143: -11.74%
A144: 134 | B144: Infrastructure | C144: NCC | D144: 80.10 | E144: 80.40 | F144: 79.30 | G144: 78.50 | H144: 77.40 | I144: 81.20 | J144: 82.30 | K144: 83.10 | L144: 81.5 | M144: 79.6 | N144: 45464000 | O144: -4.08%
A145: 135 | B145: Others | C145: NESTLEIND | D145: 11562.75 | E145: 11529.98 | F145: 11469.97 | G145: 11377.18 | H145: 11317.17 | I145: 11622.77 | J145: 11682.78 | K145: 11775.57 | L145: 11590 | M145: 11437.2 | N145: 285400 | O145: -3.45%
A146: 136 | B146: Power | C146: NHPC | D146: 24.30 | E146: 24.20 | F146: 24.00 | G146: 23.70 | H146: 23.50 | I146: 24.50 | J146: 24.70 | K146: 25.00 | L146: 24.4 | M146: 23.9 | N146: 15363000 | O146: -18.60%
A147: 137 | B147: Technology | C147: NIITTECH | D147: 1319.60 | E147: 1310.63 | F147: 1297.67 | G147: 1275.73 | H147: 1262.77 | I147: 1332.57 | J147: 1345.53 | K147: 1367.47 | L147: 1323.6 | M147: 1288.7 | N147: 1629750 | O147: -10.43%
A148: 138 | B148: Metals | C148: NMDC | D148: 97.35 | E148: 96.83 | F148: 95.67 | G148: 93.98 | H148: 92.82 | I148: 98.52 | J148: 99.68 | K148: 101.37 | L148: 98 | M148: 95.15 | N148: 25020000 | O148: -5.93%
A149: 139 | B149: Power | C149: NTPC | D149: 137.00 | E149: 137.37 | F149: 136.03 | G149: 135.07 | H149: 133.73 | I149: 138.33 | J149: 139.67 | K149: 140.63 | L149: 138.7 | M149: 136.4 | N149: 24672000 | O149: -36.93%
A150: 140 | B150: Technology | C150: OFSS | D150: 3823.95 | E150: 3809.60 | F150: 3774.20 | G150: 3724.45 | H150: 3689.05 | I150: 3859.35 | J150: 3894.75 | K150: 3944.50 | L150: 3845 | M150: 3759.85 | N150: 143400 | O150: -7.63%
A151: 141 | B151: Oil_Gas | C151: OIL | D151: 164.65 | E151: 164.93 | F151: 163.52 | G151: 162.38 | H151: 160.97 | I151: 166.07 | J151: 167.48 | K151: 168.62 | L151: 166.35 | M151: 163.8 | N151: 5706921 | O151: -22.02%
A152: 142 | B152: Oil_Gas | C152: ONGC | D152: 141.00 | E152: 140.78 | F152: 139.62 | G152: 138.23 | H152: 137.07 | I152: 142.17 | J152: 143.33 | K152: 144.72 | L152: 141.95 | M152: 139.4 | N152: 28293750 | O152: -37.73%
A153: 143 | B153: Banking | C153: ORIENTBANK | D153: 96.35 | E153: 95.73 | F153: 94.62 | G153: 92.88 | H153: 91.77 | I153: 97.47 | J153: 98.58 | K153: 100.32 | L153: 96.85 | M153: 94 | N153: 11935000 | O153: -8.09%
A154: 144 | B154: Textile | C154: PAGEIND | D154: 23459.60 | E154: 23397.27 | F154: 23189.58 | G154: 22919.57 | H154: 22711.88 | I154: 23667.28 | J154: 23874.97 | K154: 24144.98 | L154: 23604.95 | M154: 23127.25 | N154: 192650 | O154: -17.00%
A155: 145 | B155: Others | C155: PCJEWELLER | D155: 73.20 | E155: 72.28 | F155: 70.77 | G155: 68.33 | H155: 66.82 | I155: 74.72 | J155: 76.23 | K155: 78.67 | L155: 73.8 | M155: 69.85 | N155: 8131500 | O155: -10.77%
A156: 146 | B156: Pharma | C156: PEL | D156: 2036.35 | E156: 2065.75 | F156: 1996.50 | G156: 1956.65 | H156: 1887.40 | I156: 2105.60 | J156: 2174.85 | K156: 2214.70 | L156: 2135 | M156: 2025.9 | N156: 3396292 | O156: -5.48%
A157: 147 | B157: Oil_Gas | C157: PETRONET | D157: 228.75 | E157: 228.27 | F157: 225.93 | G157: 223.12 | H157: 220.78 | I157: 231.08 | J157: 233.42 | K157: 236.23 | L157: 230.6 | M157: 225.45 | N157: 12378000 | O157: -7.01%
A158: 148 | B158: Finance | C158: PFC | D158: 104.00 | E158: 102.98 | F158: 101.22 | G158: 98.43 | H158: 96.67 | I158: 105.77 | J158: 107.53 | K158: 110.32 | L158: 104.75 | M158: 100.2 | N158: 29127600 | O158: -29.27%
A159: 149 | B159: FMCG | C159: PIDILITIND | D159: 1124.85 | E159: 1108.75 | F159: 1088.35 | G159: 1051.85 | H159: 1031.45 | I159: 1145.25 | J159: 1165.65 | K159: 1202.15 | L159: 1129.15 | M159: 1072.25 | N159: 2184500 | O159: -11.13%
A160: 150 | B160: Banking | C160: PNB | D160: 77.85 | E160: 77.22 | F160: 76.33 | G160: 74.82 | H160: 73.93 | I160: 78.73 | J160: 79.62 | K160: 81.13 | L160: 78.1 | M160: 75.7 | N160: 102739000 | O160: -9.56%
A161: 151 | B161: Power | C161: POWERGRID | D161: 188.30 | E161: 187.12 | F161: 183.53 | G161: 178.77 | H161: 175.18 | I161: 191.88 | J161: 195.47 | K161: 200.23 | L161: 190.7 | M161: 182.35 | N161: 7960000 | O161: -61.11%
A162: 152 | B162: Others | C162: PVR | D162: 1611.85 | E162: 1605.35 | F162: 1594.50 | G162: 1577.15 | H162: 1566.30 | I162: 1622.70 | J162: 1633.55 | K162: 1650.90 | L162: 1616.2 | M162: 1588 | N162: 1683200 | O162: -8.28%
A163: 153 | B163: Cement | C163: RAMCOCEM | D163: 604.00 | E163: 599.15 | F163: 591.95 | G163: 579.90 | H163: 572.70 | I163: 611.20 | J163: 618.40 | K163: 630.45 | L163: 606.35 | M163: 587.1 | N163: 762400 | O163: -14.61%
A164: 154 | B164: Others | C164: RAYMOND | D164: 757.80 | E164: 760.82 | F164: 752.48 | G164: 747.17 | H164: 738.83 | I164: 766.13 | J164: 774.47 | K164: 779.78 | L164: 769.15 | M164: 755.5 | N164: 3839200 | O164: -4.76%
A165: 155 | B165: Banking | C165: RBLBANK | D165: 569.55 | E165: 566.23 | F165: 559.32 | G165: 549.08 | H165: 542.17 | I165: 576.47 | J165: 583.38 | K165: 593.62 | L165: 573.15 | M165: 556 | N165: 5403600 | O165: -17.62%
A166: 156 | B166: Telecom | C166: RCOM | D166: 11.70 | E166: 11.43 | F166: 11.02 | G166: 10.33 | H166: 9.92 | I166: 12.12 | J166: 12.53 | K166: 13.22 | L166: 11.85 | M166: 10.75 | N166: 85510000 | O166: -15.89%
A167: 157 | B167: Power | C167: RECLTD | D167: 124.60 | E167: 124.33 | F167: 122.17 | G167: 119.73 | H167: 117.57 | I167: 126.77 | J167: 128.93 | K167: 131.37 | L167: 126.5 | M167: 121.9 | N167: 31008000 | O167: -20.49%
A168: 158 | B168: Finance | C168: RELCAPITAL | D168: 194.70 | E168: 194.82 | F168: 188.18 | G168: 181.67 | H168: 175.03 | I168: 201.33 | J168: 207.97 | K168: 214.48 | L168: 201.45 | M168: 188.3 | N168: 10915500 | O168: -12.53%
A169: 159 | B169: Oil_Gas | C169: RELIANCE | D169: 1231.40 | E169: 1224.25 | F169: 1214.95 | G169: 1198.50 | H169: 1189.20 | I169: 1240.70 | J169: 1250.00 | K169: 1266.45 | L169: 1233.55 | M169: 1207.8 | N169: 47508000 | O169: -7.31%
A170: 160 | B170: Power | C170: RELINFRA | D170: 270.60 | E170: 268.30 | F170: 263.70 | G170: 256.80 | H170: 252.20 | I170: 275.20 | J170: 279.80 | K170: 286.70 | L170: 272.9 | M170: 261.4 | N170: 10466300 | O170: -5.27%
A171: 161 | B171: Others | C171: REPCOHOME | D171: 402.30 | E171: 398.27 | F171: 391.53 | G171: 380.77 | H171: 374.03 | I171: 409.03 | J171: 415.77 | K171: 426.53 | L171: 405 | M171: 387.5 | N171: 871200 | O171: -7.37%
A172: 162 | B172: Power | C172: RPOWER | D172: 26.70 | E172: 26.45 | F172: 25.95 | G172: 25.20 | H172: 24.70 | I172: 27.20 | J172: 27.70 | K172: 28.45 | L172: 26.95 | M172: 25.7 | N172: 44256000 | O172: -12.33%
A173: 163 | B173: Metals | C173: SAIL | D173: 47.25 | E173: 47.50 | F173: 46.65 | G173: 46.05 | H173: 45.20 | I173: 48.10 | J173: 48.95 | K173: 49.55 | L173: 48.35 | M173: 46.9 | N173: 84108000 | O173: -8.43%
A174: 164 | B174: Banking | C174: SBIN | D174: 295.20 | E174: 293.48 | F174: 291.02 | G174: 286.83 | H174: 284.37 | I174: 297.67 | J174: 300.13 | K174: 304.32 | L174: 295.95 | M174: 289.3 | N174: 76518000 | O174: -10.63%
A175: 165 | B175: Cement | C175: SHREECEM | D175: 15818.65 | E175: 15782.22 | F175: 15638.08 | G175: 15457.52 | H175: 15313.38 | I175: 15962.78 | J175: 16106.92 | K175: 16287.48 | L175: 15926.35 | M175: 15601.65 | N175: 77050 | O175: -13.43%
A176: 166 | B176: Capital_Goods | C176: SIEMENS | D176: 1029.10 | E176: 1023.10 | F176: 1012.05 | G176: 995.00 | H176: 983.95 | I176: 1040.15 | J176: 1051.20 | K176: 1068.25 | L176: 1034.15 | M176: 1006.05 | N176: 1669800 | O176: -7.35%
A177: 167 | B177: Banking | C177: SOUTHBANK | D177: 13.20 | E177: 13.18 | F177: 12.97 | G177: 12.73 | H177: 12.52 | I177: 13.42 | J177: 13.63 | K177: 13.87 | L177: 13.4 | M177: 12.95 | N177: 150625845 | O177: -22.07%
A178: 168 | B178: Others | C178: SREINFRA | D178: 29.80 | E178: 29.57 | F178: 29.08 | G178: 28.37 | H178: 27.88 | I178: 30.28 | J178: 30.77 | K178: 31.48 | L178: 30.05 | M178: 28.85 | N178: 13380000 | O178: -7.78%
A179: 169 | B179: Textile | C179: SRF | D179: 2019.75 | E179: 2025.57 | F179: 1999.18 | G179: 1978.62 | H179: 1952.23 | I179: 2046.13 | J179: 2072.52 | K179: 2093.08 | L179: 2051.95 | M179: 2005 | N179: 662000 | O179: -3.29%
A180: 170 | B180: Finance | C180: SRTRANSFIN | D180: 1020.50 | E180: 1015.50 | F180: 1001.40 | G180: 982.30 | H180: 968.20 | I180: 1034.60 | J180: 1048.70 | K180: 1067.80 | L180: 1029.6 | M180: 996.4 | N180: 4643400 | O180: -8.13%
A181: 171 | B181: Pharma | C181: STAR | D181: 464.25 | E181: 469.72 | F181: 453.53 | G181: 442.82 | H181: 426.63 | I181: 480.43 | J181: 496.62 | K181: 507.33 | L181: 485.9 | M181: 459 | N181: 4076600 | O181: 2.12%
A182: 172 | B182: Pharma | C182: SUNPHARMA | D182: 426.70 | E182: 425.13 | F182: 417.62 | G182: 408.53 | H182: 401.02 | I182: 434.22 | J182: 441.73 | K182: 450.82 | L182: 432.65 | M182: 416.05 | N182: 54952700 | O182: -6.62%
A183: 173 | B183: Media | C183: SUNTV | D183: 532.30 | E183: 530.35 | F183: 522.80 | G183: 513.30 | H183: 505.75 | I183: 539.85 | J183: 547.40 | K183: 556.90 | L183: 537.9 | M183: 520.85 | N183: 7015000 | O183: -9.27%
A184: 174 | B184: Power | C184: SUZLON | D184: 4.75 | E184: 4.78 | F184: 4.52 | G184: 4.28 | H184: 4.02 | I184: 5.02 | J184: 5.28 | K184: 5.52 | L184: 5.05 | M184: 4.55 | N184: 298908000 | O184: -22.93%
A185: 175 | B185: Banking | C185: SYNDIBANK | D185: 37.10 | E185: 37.03 | F185: 36.37 | G185: 35.63 | H185: 34.97 | I185: 37.77 | J185: 38.43 | K185: 39.17 | L185: 37.7 | M185: 36.3 | N185: 23625000 | O185: -3.20%
A186: 176 | B186: Fertilisers | C186: TATACHEM | D186: 678.25 | E186: 680.62 | F186: 673.18 | G186: 668.12 | H186: 660.68 | I186: 685.68 | J186: 693.12 | K186: 698.18 | L186: 688.05 | M186: 675.55 | N186: 2326500 | O186: -8.28%
A187: 177 | B187: Telecom | C187: TATACOMM | D187: 499.20 | E187: 503.05 | F187: 491.30 | G187: 483.40 | H187: 471.65 | I187: 510.95 | J187: 522.70 | K187: 530.60 | L187: 514.8 | M187: 495.15 | N187: 2788000 | O187: -20.34%
A188: 178 | B188: Technology | C188: TATAELXSI | D188: 879.45 | E188: 878.92 | F188: 871.63 | G188: 863.82 | H188: 856.53 | I188: 886.73 | J188: 894.02 | K188: 901.83 | L188: 886.2 | M188: 871.1 | N188: 1608800 | O188: -12.89%
A189: 179 | B189: FMCG | C189: TATAGLOBAL | D189: 205.15 | E189: 204.72 | F189: 202.43 | G189: 199.72 | H189: 197.43 | I189: 207.43 | J189: 209.72 | K189: 212.43 | L189: 207 | M189: 202 | N189: 9355500 | O189: -6.03%
A190: 180 | B190: Automobile | C190: TATAMOTORS | D190: 182.10 | E190: 180.93 | F190: 177.77 | G190: 173.43 | H190: 170.27 | I190: 185.27 | J190: 188.43 | K190: 192.77 | L190: 184.1 | M190: 176.6 | N190: 56962000 | O190: -9.63%
A191: 181 | B191: Automobile | C191: TATAMTRDVR | D191: 94.10 | E191: 93.45 | F191: 92.00 | G191: 89.90 | H191: 88.45 | I191: 95.55 | J191: 97.00 | K191: 99.10 | L191: 94.9 | M191: 91.35 | N191: 31547600 | O191: -4.40%
A192: 182 | B192: Power | C192: TATAPOWER | D192: 71.50 | E192: 70.67 | F192: 69.03 | G192: 66.57 | H192: 64.93 | I192: 73.13 | J192: 74.77 | K192: 77.23 | L192: 72.3 | M192: 68.2 | N192: 43416000 | O192: -12.47%
A193: 183 | B193: Metals | C193: TATASTEEL | D193: 479.05 | E193: 476.87 | F193: 472.18 | G193: 465.32 | H193: 460.63 | I193: 483.73 | J193: 488.42 | K193: 495.28 | L193: 481.55 | M193: 470 | N193: 39446919 | O193: -9.73%
A194: 184 | B194: Technology | C194: TCS | D194: 2025.45 | E194: 2015.62 | F194: 2001.23 | G194: 1977.02 | H194: 1962.63 | I194: 2039.83 | J194: 2054.22 | K194: 2078.43 | L194: 2030 | M194: 1991.4 | N194: 12409750 | O194: -12.31%
A195: 185 | B195: Technology | C195: TECHM | D195: 736.00 | E195: 732.33 | F195: 724.72 | G195: 713.43 | H195: 705.82 | I195: 743.62 | J195: 751.23 | K195: 762.52 | L195: 739.95 | M195: 721.05 | N195: 11755200 | O195: -4.46%
A196: 186 | B196: FMCG | C196: TITAN | D196: 1000.65 | E196: 992.20 | F196: 978.40 | G196: 956.15 | H196: 942.35 | I196: 1014.45 | J196: 1028.25 | K196: 1050.50 | L196: 1006 | M196: 969.95 | N196: 13658250 | O196: 0.63%
A197: 187 | B197: Pharma | C197: TORNTPHARM | D197: 1815.90 | E197: 1833.88 | F197: 1784.67 | G197: 1753.43 | H197: 1704.22 | I197: 1865.12 | J197: 1914.33 | K197: 1945.57 | L197: 1883.1 | M197: 1802.65 | N197: 374000 | O197: -30.48%
A198: 188 | B198: Power | C198: TORNTPOWER | D198: 249.10 | E198: 248.25 | F198: 246.05 | G198: 243.00 | H198: 240.80 | I198: 251.30 | J198: 253.50 | K198: 256.55 | L198: 250.45 | M198: 245.2 | N198: 2004000 | O198: -12.45%
A199: 189 | B199: Media | C199: TV18BRDCST | D199: 32.70 | E199: 32.73 | F199: 31.97 | G199: 31.23 | H199: 30.47 | I199: 33.47 | J199: 34.23 | K199: 34.97 | L199: 33.5 | M199: 32 | N199: 58552000 | O199: -15.31%
A200: 190 | B200: Automobile | C200: TVSMOTOR | D200: 501.15 | E200: 497.47 | F200: 489.93 | G200: 478.72 | H200: 471.18 | I200: 508.68 | J200: 516.22 | K200: 527.43 | L200: 505 | M200: 486.25 | N200: 4862000 | O200: -29.09%
A201: 191 | B201: FMCG | C201: UBL | D201: 1436.80 | E201: 1431.50 | F201: 1410.05 | G201: 1383.30 | H201: 1361.85 | I201: 1458.25 | J201: 1479.70 | K201: 1506.45 | L201: 1452.95 | M201: 1404.75 | N201: 1757700 | O201: -2.41%
A202: 192 | B202: Finance | C202: UJJIVAN | D202: 282.60 | E202: 277.98 | F202: 271.37 | G202: 260.13 | H202: 253.52 | I202: 289.22 | J202: 295.83 | K202: 307.07 | L202: 284.6 | M202: 266.75 | N202: 3377600 | O202: -24.71%
A203: 193 | B203: Cement | C203: ULTRACEMCO | D203: 3537.70 | E203: 3513.47 | F203: 3474.33 | G203: 3410.97 | H203: 3371.83 | I203: 3576.83 | J203: 3615.97 | K203: 3679.33 | L203: 3552.6 | M203: 3450.1 | N203: 2023400 | O203: -17.30%
A204: 194 | B204: Banking | C204: UNIONBANK | D204: 82.80 | E204: 81.92 | F204: 80.78 | G204: 78.77 | H204: 77.63 | I204: 83.93 | J204: 85.07 | K204: 87.08 | L204: 83.05 | M204: 79.9 | N204: 31304000 | O204: -12.91%
A205: 195 | B205: Fertilisers | C205: UPL | D205: 790.30 | E205: 783.67 | F205: 773.93 | G205: 757.57 | H205: 747.83 | I205: 800.03 | J205: 809.77 | K205: 826.13 | L205: 793.4 | M205: 767.3 | N205: 16459200 | O205: -2.51%
A206: 196 | B206: Metals | C206: VEDL | D206: 198.50 | E206: 197.50 | F206: 195.70 | G206: 192.90 | H206: 191.10 | I206: 200.30 | J206: 202.10 | K206: 204.90 | L206: 199.3 | M206: 194.7 | N206: 34026200 | O206: -13.60%
... 21 more rows

Sheet Cash Intra
M5: Back to Main Page
A6: FOR INTRA DAY TRADING | K6: =Main!B10 -> 2019-02-01
A8: Sr.no | B8: Scrip | C8: CLOSE RATE | D8: Pivot Point | E8: Supports | H8: Resistances
C9: Point | E9: S1 | F9: S2 | G9: S3 | H9: R1 | I9: R2 | J9: R3 | K9: HIGH | L9: LOW | M9: Total Trade Quanity in Lakhs
A10: 1 | B10: Nifty 50 | C10: 10830.95 | D10: 10782.52 | E10: 10726.98 | F10: 10623.02 | G10: 10567.48 | H10: 10886.48 | I10: 10942.02 | J10: 11045.98 | K10: 10838.05 | L10: 10678.55
A11: 2 | B11: Nifty Bank | C11: 27295.45 | D11: 27170.52 | E11: 27015.98 | F11: 26736.52 | G11: 26581.98 | H11: 27449.98 | I11: 27604.52 | J11: 27883.98 | K11: 27325.05 | L11: 26891.05
A12: 3 | B12: Nifty CPSE | C12: 1977.3 | D12: 1977.42 | E12: 1964.98 | F12: 1952.67 | G12: 1940.23 | H12: 1989.73 | I12: 2002.17 | J12: 2014.48 | K12: 1989.85 | L12: 1965.1
A13: 4 | B13: Nifty Infra | C13: 2976.85 | D13: 2969.53 | E13: 2956.72 | F13: 2936.58 | G13: 2923.77 | H13: 2989.67 | I13: 3002.48 | J13: 3022.62 | K13: 2982.35 | L13: 2949.4
A14: 5 | B14: Nifty IT | C14: 15499.3 | D14: 15429.60 | E14: 15345.75 | F14: 15192.20 | G14: 15108.35 | H14: 15583.15 | I14: 15667.00 | J14: 15820.55 | K14: 15513.45 | L14: 15276.05
A15: 6 | B15: Nifty PSE | C15: 3207.7 | D15: 3203.52 | E15: 3185.03 | F15: 3162.37 | G15: 3143.88 | H15: 3226.18 | I15: 3244.67 | J15: 3267.33 | K15: 3222 | L15: 3180.85
A16: 7 | B16: Nifty Midcap 50 | C16: 4689.1 | D16: 4673.28 | E16: 4643.17 | F16: 4597.23 | G16: 4567.12 | H16: 4719.22 | I16: 4749.33 | J16: 4795.27 | K16: 4703.4 | L16: 4627.35
A17: 8 | B17: ABB | C17: 1272.3 | D17: 1270.57 | E17: 1253.03 | F17: 1233.77 | G17: 1216.23 | H17: 1289.83 | I17: 1307.37 | J17: 1326.63 | K17: 1288.1 | L17: 1251.3 | M17: 0.80557
A18: 9 | B18: ACC | C18: 1423.35 | D18: 1414.40 | E18: 1400.00 | F18: 1376.65 | G18: 1362.25 | H18: 1437.75 | I18: 1452.15 | J18: 1475.50 | K18: 1428.8 | L18: 1391.05 | M18: 8.37929
A19: 10 | B19: AIAENG | C19: 1607.2 | D19: 1610.52 | E19: 1587.18 | F19: 1567.17 | G19: 1543.83 | H19: 1630.53 | I19: 1653.87 | J19: 1673.88 | K19: 1633.85 | L19: 1590.5 | M19: 0.18963
A20: 11 | B20: AUBANK | C20: 584.25 | D20: 586.90 | E20: 579.00 | F20: 573.75 | G20: 565.85 | H20: 592.15 | I20: 600.05 | J20: 605.30 | K20: 594.8 | L20: 581.65 | M20: 2.57833
A21: 12 | B21: ADANIENT | C21: 137.15 | D21: 137.97 | E21: 134.18 | F21: 131.22 | G21: 127.43 | H21: 140.93 | I21: 144.72 | J21: 147.68 | K21: 141.75 | L21: 135 | M21: 34.98642
A22: 13 | B22: ADANIPORTS | C22: 338.65 | D22: 336.85 | E22: 332.00 | F22: 325.35 | G22: 320.50 | H22: 343.50 | I22: 348.35 | J22: 355.00 | K22: 341.7 | L22: 330.2 | M22: 64.03921
A23: 14 | B23: ADANIPOWER | C23: 45.5 | D23: 45.02 | E23: 43.53 | F23: 41.57 | G23: 40.08 | H23: 46.98 | I23: 48.47 | J23: 50.43 | K23: 46.5 | L23: 43.05 | M23: 176.42681
A24: 15 | B24: ABFRL | C24: 209.5 | D24: 209.47 | E24: 205.03 | F24: 200.57 | G24: 196.13 | H24: 213.93 | I24: 218.37 | J24: 222.83 | K24: 213.9 | L24: 205 | M24: 7.01118
A25: 16 | B25: AJANTPHARM | C25: 1020.65 | D25: 1034.88 | E25: 994.77 | F25: 968.88 | G25: 928.77 | H25: 1060.77 | I25: 1100.88 | J25: 1126.77 | K25: 1075 | L25: 1009 | M25: 15.73401
A26: 17 | B26: ALKEM | C26: 1883.2 | D26: 1878.72 | E26: 1844.48 | F26: 1805.77 | G26: 1771.53 | H26: 1917.43 | I26: 1951.67 | J26: 1990.38 | K26: 1912.95 | L26: 1840 | M26: 0.63904
A27: 18 | B27: AMARAJABAT | C27: 744.95 | D27: 747.78 | E27: 736.32 | F27: 727.68 | G27: 716.22 | H27: 756.42 | I27: 767.88 | J27: 776.52 | K27: 759.25 | L27: 739.15 | M27: 3.20601
A28: 19 | B28: AMBUJACEM | C28: 209.9 | D28: 208.78 | E28: 205.57 | F28: 201.23 | G28: 198.02 | H28: 213.12 | I28: 216.33 | J28: 220.67 | K28: 212 | L28: 204.45 | M28: 76.69625
A29: 20 | B29: APOLLOHOSP | C29: 1325.65 | D29: 1324.33 | E29: 1314.67 | F29: 1303.68 | G29: 1294.02 | H29: 1335.32 | I29: 1344.98 | J29: 1355.97 | K29: 1334 | L29: 1313.35 | M29: 4.71658
A30: 21 | B30: APOLLOTYRE | C30: 204.35 | D30: 202.98 | E30: 200.67 | F30: 196.98 | G30: 194.67 | H30: 206.67 | I30: 208.98 | J30: 212.67 | K30: 205.3 | L30: 199.3 | M30: 17.95751
A31: 22 | B31: ARVIND | C31: 88.15 | D31: 89.37 | E31: 86.78 | F31: 85.42 | G31: 82.83 | H31: 90.73 | I31: 93.32 | J31: 94.68 | K31: 91.95 | L31: 88 | M31: 24.64301
A32: 23 | B32: ASHOKLEY | C32: 81.3 | D32: 81.02 | E32: 79.83 | F32: 78.37 | G32: 77.18 | H32: 82.48 | I32: 83.67 | J32: 85.13 | K32: 82.2 | L32: 79.55 | M32: 362.94901
A33: 24 | B33: ASIANPAINT | C33: 1412.6 | D33: 1406.22 | E33: 1397.43 | F33: 1382.27 | G33: 1373.48 | H33: 1421.38 | I33: 1430.17 | J33: 1445.33 | K33: 1415 | L33: 1391.05 | M33: 12.5605
A34: 25 | B34: AUROPHARMA | C34: 787.8 | D34: 784.97 | E34: 779.93 | F34: 772.07 | G34: 767.03 | H34: 792.83 | I34: 797.87 | J34: 805.73 | K34: 790 | L34: 777.1 | M34: 15.13974
A35: 26 | B35: DMART | C35: 1374.85 | D35: 1375.33 | E35: 1366.77 | F35: 1358.68 | G35: 1350.12 | H35: 1383.42 | I35: 1391.98 | J35: 1400.07 | K35: 1383.9 | L35: 1367.25 | M35: 2.87562
A36: 27 | B36: AXISBANK | C36: 722.7 | D36: 712.87 | E36: 698.88 | F36: 675.07 | G36: 661.08 | H36: 736.68 | I36: 750.67 | J36: 774.48 | K36: 726.85 | L36: 689.05 | M36: 352.39544
A37: 28 | B37: BAJAJ-AUTO | C37: 2554.55 | D37: 2528.55 | E37: 2487.10 | F37: 2419.65 | G37: 2378.20 | H37: 2596.00 | I37: 2637.45 | J37: 2704.90 | K37: 2570 | L37: 2461.1 | M37: 11.02133
A38: 29 | B38: BAJFINANCE | C38: 2574.85 | D38: 2569.62 | E38: 2531.23 | F38: 2487.62 | G38: 2449.23 | H38: 2613.23 | I38: 2651.62 | J38: 2695.23 | K38: 2608 | L38: 2526 | M38: 20.83418
A39: 30 | B39: BAJAJFINSV | C39: 6091.9 | D39: 6136.93 | E39: 6004.97 | F39: 5918.03 | G39: 5786.07 | H39: 6223.87 | I39: 6355.83 | J39: 6442.77 | K39: 6268.9 | L39: 6050 | M39: 3.77632
A40: 31 | B40: BALKRISIND | C40: 810.6 | D40: 811.62 | E40: 806.73 | F40: 802.87 | G40: 797.98 | H40: 815.48 | I40: 820.37 | J40: 824.23 | K40: 816.5 | L40: 807.75 | M40: 6.14464
A41: 32 | B41: BANKBARODA | C41: 112.45 | D41: 112.65 | E41: 110.35 | F41: 108.25 | G41: 105.95 | H41: 114.75 | I41: 117.05 | J41: 119.15 | K41: 114.95 | L41: 110.55 | M41: 148.42463
A42: 33 | B42: BANKINDIA | C42: 102.8 | D42: 101.60 | E42: 98.50 | F42: 94.20 | G42: 91.10 | H42: 105.90 | I42: 109.00 | J42: 113.30 | K42: 104.7 | L42: 97.3 | M42: 136.27828
A43: 34 | B43: BATAINDIA | C43: 1118.6 | D43: 1110.85 | E43: 1094.85 | F43: 1071.10 | G43: 1055.10 | H43: 1134.60 | I43: 1150.60 | J43: 1174.35 | K43: 1126.85 | L43: 1087.1 | M43: 5.68576
A44: 35 | B44: BERGEPAINT | C44: 318.75 | D44: 317.93 | E44: 314.47 | F44: 310.18 | G44: 306.72 | H44: 322.22 | I44: 325.68 | J44: 329.97 | K44: 321.4 | L44: 313.65 | M44: 10.42566
A45: 36 | B45: BEL | C45: 83.65 | D45: 85.00 | E45: 82.00 | F45: 80.35 | G45: 77.35 | H45: 86.65 | I45: 89.65 | J45: 91.30 | K45: 88 | L45: 83.35 | M45: 290.20309
A46: 37 | B46: BHARATFIN | C46: 946.3 | D46: 943.52 | E46: 930.58 | F46: 914.87 | G46: 901.93 | H46: 959.23 | I46: 972.17 | J46: 987.88 | K46: 956.45 | L46: 927.8 | M46: 9.0751
A47: 38 | B47: BHARATFORG | C47: 493 | D47: 488.50 | E47: 481.00 | F47: 469.00 | G47: 461.50 | H47: 500.50 | I47: 508.00 | J47: 520.00 | K47: 496 | L47: 476.5 | M47: 22.64567
A48: 39 | B48: BHEL | C48: 64.7 | D48: 64.47 | E48: 63.93 | F48: 63.17 | G48: 62.63 | H48: 65.23 | I48: 65.77 | J48: 66.53 | K48: 65 | L48: 63.7 | M48: 123.25961
A49: 40 | B49: BPCL | C49: 345.45 | D49: 344.85 | E49: 338.70 | F49: 331.95 | G49: 325.80 | H49: 351.60 | I49: 357.75 | J49: 364.50 | K49: 351 | L49: 338.1 | M49: 78.19453
A50: 41 | B50: BHARTIARTL | C50: 306.4 | D50: 306.67 | E50: 302.88 | F50: 299.37 | G50: 295.58 | H50: 310.18 | I50: 313.97 | J50: 317.48 | K50: 310.45 | L50: 303.15 | M50: 85.55853
A51: 42 | B51: INFRATEL | C51: 292.25 | D51: 291.22 | E51: 286.03 | F51: 279.82 | G51: 274.63 | H51: 297.43 | I51: 302.62 | J51: 308.83 | K51: 296.4 | L51: 285 | M51: 47.62254
A52: 43 | B52: BIOCON | C52: 648.3 | D52: 649.88 | E52: 644.42 | F52: 640.53 | G52: 635.07 | H52: 653.77 | I52: 659.23 | J52: 663.12 | K52: 655.35 | L52: 646 | M52: 9.53052
A53: 44 | B53: BOSCHLTD | C53: 18851.7 | D53: 18733.90 | E53: 18547.80 | F53: 18243.90 | G53: 18057.80 | H53: 19037.80 | I53: 19223.90 | J53: 19527.80 | K53: 18920 | L53: 18430 | M53: 0.21091
A54: 45 | B54: BRITANNIA | C54: 3197.7 | D54: 3206.28 | E54: 3180.62 | F54: 3163.53 | G54: 3137.87 | H54: 3223.37 | I54: 3249.03 | J54: 3266.12 | K54: 3231.95 | L54: 3189.2 | M54: 2.55273
A55: 46 | B55: CRISIL | C55: 1648.65 | D55: 1648.83 | E55: 1637.77 | F55: 1626.88 | G55: 1615.82 | H55: 1659.72 | I55: 1670.78 | J55: 1681.67 | K55: 1659.9 | L55: 1637.95 | M55: 0.02859
A56: 47 | B56: CADILAHC | C56: 318.95 | D56: 319.75 | E56: 316.65 | F56: 314.35 | G56: 311.25 | H56: 322.05 | I56: 325.15 | J56: 327.45 | K56: 322.85 | L56: 317.45 | M56: 9.82622
A57: 48 | B57: CANBK | C57: 250.15 | D57: 249.40 | E57: 246.55 | F57: 242.95 | G57: 240.10 | H57: 253.00 | I57: 255.85 | J57: 259.45 | K57: 252.25 | L57: 245.8 | M57: 45.221
A58: 49 | B58: CASTROLIND | C58: 158.65 | D58: 160.57 | E58: 154.73 | F58: 150.82 | G58: 144.98 | H58: 164.48 | I58: 170.32 | J58: 174.23 | K58: 166.4 | L58: 156.65 | M58: 51.51093
A59: 50 | B59: CENTRALBK | C59: 31.1 | D59: 31.23 | E59: 30.82 | F59: 30.53 | G59: 30.12 | H59: 31.52 | I59: 31.93 | J59: 32.22 | K59: 31.65 | L59: 30.95 | M59: 1.88252
A60: 51 | B60: CENTURYTEX | C60: 793.6 | D60: 795.25 | E60: 784.75 | F60: 775.90 | G60: 765.40 | H60: 804.10 | I60: 814.60 | J60: 823.45 | K60: 805.75 | L60: 786.4 | M60: 5.41762
A61: 52 | B61: CHOLAFIN | C61: 1172.3 | D61: 1161.13 | E61: 1141.12 | F61: 1109.93 | G61: 1089.92 | H61: 1192.32 | I61: 1212.33 | J61: 1243.52 | K61: 1181.15 | L61: 1129.95 | M61: 7.47226
A62: 53 | B62: CIPLA | C62: 517.3 | D62: 513.80 | E62: 507.75 | F62: 498.20 | G62: 492.15 | H62: 523.35 | I62: 529.40 | J62: 538.95 | K62: 519.85 | L62: 504.25 | M62: 22.03919
A63: 54 | B63: COALINDIA | C63: 224.65 | D63: 225.07 | E63: 222.63 | F63: 220.62 | G63: 218.18 | H63: 227.08 | I63: 229.52 | J63: 231.53 | K63: 227.5 | L63: 223.05 | M63: 153.89786
A64: 55 | B64: COLPAL | C64: 1280.1 | D64: 1281.67 | E64: 1273.33 | F64: 1266.57 | G64: 1258.23 | H64: 1288.43 | I64: 1296.77 | J64: 1303.53 | K64: 1290 | L64: 1274.9 | M64: 5.29589
A65: 56 | B65: CONCOR | C65: 655.5 | D65: 657.50 | E65: 650.00 | F65: 644.50 | G65: 637.00 | H65: 663.00 | I65: 670.50 | J65: 676.00 | K65: 665 | L65: 652 | M65: 16.83954
A66: 57 | B66: COROMANDEL | C66: 449.85 | D66: 449.28 | E66: 443.67 | F66: 437.48 | G66: 431.87 | H66: 455.47 | I66: 461.08 | J66: 467.27 | K66: 454.9 | L66: 443.1 | M66: 1.58045
A67: 58 | B67: CROMPTON | C67: 213.95 | D67: 215.50 | E67: 210.55 | F67: 207.15 | G67: 202.20 | H67: 218.90 | I67: 223.85 | J67: 227.25 | K67: 220.45 | L67: 212.1 | M67: 3.97138
A68: 59 | B68: CUMMINSIND | C68: 788.2 | D68: 793.57 | E68: 779.13 | F68: 770.07 | G68: 755.63 | H68: 802.63 | I68: 817.07 | J68: 826.13 | K68: 808 | L68: 784.5 | M68: 5.32524
A69: 60 | B69: DLF | C69: 164.85 | D69: 163.78 | E69: 159.57 | F69: 154.28 | G69: 150.07 | H69: 169.07 | I69: 173.28 | J69: 178.57 | K69: 168 | L69: 158.5 | M69: 55.87357
A70: 61 | B70: DABUR | C70: 443.65 | D70: 439.68 | E70: 431.17 | F70: 418.68 | G70: 410.17 | H70: 452.17 | I70: 460.68 | J70: 473.17 | K70: 448.2 | L70: 427.2 | M70: 109.694
A71: 62 | B71: DHFL | C71: 135.9 | D71: 140.97 | E71: 124.43 | F71: 112.97 | G71: 96.43 | H71: 152.43 | I71: 168.97 | J71: 180.43 | K71: 157.5 | L71: 129.5 | M71: 930.32836
A72: 63 | B72: DISHTV | C72: 23.65 | D72: 23.58 | E72: 22.37 | F72: 21.08 | G72: 19.87 | H72: 24.87 | I72: 26.08 | J72: 27.37 | K72: 24.8 | L72: 22.3 | M72: 460.41051
A73: 64 | B73: DIVISLAB | C73: 1506.2 | D73: 1506.87 | E73: 1493.83 | F73: 1481.47 | G73: 1468.43 | H73: 1519.23 | I73: 1532.27 | J73: 1544.63 | K73: 1519.9 | L73: 1494.5 | M73: 5.12854
A74: 65 | B74: LALPATHLAB | C74: 1078.65 | D74: 1067.73 | E74: 1050.47 | F74: 1022.28 | G74: 1005.02 | H74: 1095.92 | I74: 1113.18 | J74: 1141.37 | K74: 1085 | L74: 1039.55 | M74: 0.28497
A75: 66 | B75: DRREDDY | C75: 2720.8 | D75: 2700.12 | E75: 2671.68 | F75: 2622.57 | G75: 2594.13 | H75: 2749.23 | I75: 2777.67 | J75: 2826.78 | K75: 2728.55 | L75: 2651 | M75: 12.31518
A76: 67 | B76: EDELWEISS | C76: 154.05 | D76: 153.38 | E76: 150.82 | F76: 147.58 | G76: 145.02 | H76: 156.62 | I76: 159.18 | J76: 162.42 | K76: 155.95 | L76: 150.15 | M76: 14.53709
A77: 68 | B77: EICHERMOT | C77: 19005.75 | D77: 19006.93 | E77: 18834.92 | F77: 18664.08 | G77: 18492.07 | H77: 19177.77 | I77: 19349.78 | J77: 19520.62 | K77: 19178.95 | L77: 18836.1 | M77: 0.67511
A78: 69 | B78: EMAMILTD | C78: 410.9 | D78: 411.47 | E78: 400.43 | F78: 389.97 | G78: 378.93 | H78: 421.93 | I78: 432.97 | J78: 443.43 | K78: 422.5 | L78: 401 | M78: 5.3896
A79: 70 | B79: ENDURANCE | C79: 1147.95 | D79: 1142.67 | E79: 1119.53 | F79: 1091.12 | G79: 1067.98 | H79: 1171.08 | I79: 1194.22 | J79: 1222.63 | K79: 1165.8 | L79: 1114.25 | M79: 0.11689
A80: 71 | B80: ENGINERSIN | C80: 112.6 | D80: 113.13 | E80: 110.92 | F80: 109.23 | G80: 107.02 | H80: 114.82 | I80: 117.03 | J80: 118.72 | K80: 115.35 | L80: 111.45 | M80: 21.12035
A81: 72 | B81: EXIDEIND | C81: 226.9 | D81: 225.50 | E81: 223.00 | F81: 219.10 | G81: 216.60 | H81: 229.40 | I81: 231.90 | J81: 235.80 | K81: 228 | L81: 221.6 | M81: 24.86423
A82: 73 | B82: FEDERALBNK | C82: 85.9 | D82: 86.08 | E82: 84.92 | F82: 83.93 | G82: 82.77 | H82: 87.07 | I82: 88.23 | J82: 89.22 | K82: 87.25 | L82: 85.1 | M82: 161.87111
A83: 74 | B83: GAIL | C83: 332.15 | D83: 329.52 | E83: 325.13 | F83: 318.12 | G83: 313.73 | H83: 336.53 | I83: 340.92 | J83: 347.93 | K83: 333.9 | L83: 322.5 | M83: 110.52707
A84: 75 | B84: GMRINFRA | C84: 15.2 | D84: 15.30 | E84: 14.90 | F84: 14.60 | G84: 14.20 | H84: 15.60 | I84: 16.00 | J84: 16.30 | K84: 15.7 | L84: 15 | M84: 437.41779
A85: 76 | B85: GSKCONS | C85: 7330.85 | D85: 7296.90 | E85: 7233.80 | F85: 7136.75 | G85: 7073.65 | H85: 7393.95 | I85: 7457.05 | J85: 7554.10 | K85: 7360 | L85: 7199.85 | M85: 0.20055
A86: 77 | B86: GLAXO | C86: 1409.25 | D86: 1408.07 | E86: 1391.13 | F86: 1373.02 | G86: 1356.08 | H86: 1426.18 | I86: 1443.12 | J86: 1461.23 | K86: 1425 | L86: 1389.95 | M86: 0.24542
A87: 78 | B87: GLENMARK | C87: 651.65 | D87: 647.47 | E87: 640.93 | F87: 630.22 | G87: 623.68 | H87: 658.18 | I87: 664.72 | J87: 675.43 | K87: 654 | L87: 636.75 | M87: 3.66009
A88: 79 | B88: GODREJCP | C88: 709.3 | D88: 705.78 | E88: 696.57 | F88: 683.83 | G88: 674.62 | H88: 718.52 | I88: 727.73 | J88: 740.47 | K88: 715 | L88: 693.05 | M88: 30.7346
A89: 80 | B89: GODREJIND | C89: 503.3 | D89: 499.92 | E89: 491.68 | F89: 480.07 | G89: 471.83 | H89: 511.53 | I89: 519.77 | J89: 531.38 | K89: 508.15 | L89: 488.3 | M89: 3.04718
A90: 81 | B90: GRUH | C90: 208.6 | D90: 208.97 | E90: 204.23 | F90: 199.87 | G90: 195.13 | H90: 213.33 | I90: 218.07 | J90: 222.43 | K90: 213.7 | L90: 204.6 | M90: 31.89501
A91: 82 | B91: GPPL | C91: 84.95 | D91: 85.88 | E91: 83.57 | F91: 82.18 | G91: 79.87 | H91: 87.27 | I91: 89.58 | J91: 90.97 | K91: 88.2 | L91: 84.5 | M91: 3.67038
A92: 83 | B92: GSPL | C92: 176.05 | D92: 176.00 | E92: 173.95 | F92: 171.85 | G92: 169.80 | H92: 178.10 | I92: 180.15 | J92: 182.25 | K92: 178.05 | L92: 173.9 | M92: 1.40721
A93: 84 | B93: HCLTECH | C93: 1005.2 | D93: 1005.03 | E93: 986.92 | F93: 968.63 | G93: 950.52 | H93: 1023.32 | I93: 1041.43 | J93: 1059.72 | K93: 1023.15 | L93: 986.75 | M93: 45.29214
A94: 85 | B94: HDFCBANK | C94: 2079.95 | D94: 2063.90 | E94: 2038.05 | F94: 1996.15 | G94: 1970.30 | H94: 2105.80 | I94: 2131.65 | J94: 2173.55 | K94: 2089.75 | L94: 2022 | M94: 41.44851
A95: 86 | B95: HAVELLS | C95: 713.45 | D95: 707.27 | E95: 698.28 | F95: 683.12 | G95: 674.13 | H95: 722.43 | I95: 731.42 | J95: 746.58 | K95: 716.25 | L95: 692.1 | M95: 16.99328
A96: 87 | B96: HEROMOTOCO | C96: 2613.95 | D96: 2603.22 | E96: 2571.73 | F96: 2529.52 | G96: 2498.03 | H96: 2645.43 | I96: 2676.92 | J96: 2719.13 | K96: 2634.7 | L96: 2561 | M96: 19.01346
A97: 88 | B97: HEXAWARE | C97: 342.6 | D97: 334.35 | E97: 320.95 | F97: 299.30 | G97: 285.90 | H97: 356.00 | I97: 369.40 | J97: 391.05 | K97: 347.75 | L97: 312.7 | M97: 70.42767
A98: 89 | B98: HINDALCO | C98: 208.5 | D98: 207.62 | E98: 205.23 | F98: 201.97 | G98: 199.58 | H98: 210.88 | I98: 213.27 | J98: 216.53 | K98: 210 | L98: 204.35 | M98: 65.53608
A99: 90 | B99: HINDPETRO | C99: 233.5 | D99: 233.27 | E99: 229.28 | F99: 225.07 | G99: 221.08 | H99: 237.48 | I99: 241.47 | J99: 245.68 | K99: 237.25 | L99: 229.05 | M99: 59.12293
A100: 91 | B100: HINDUNILVR | C100: 1763.25 | D100: 1757.80 | E100: 1740.70 | F100: 1718.15 | G100: 1701.05 | H100: 1780.35 | I100: 1797.45 | J100: 1820.00 | K100: 1774.9 | L100: 1735.25 | M100: 18.80257
A101: 92 | B101: HINDZINC | C101: 260.2 | D101: 260.72 | E101: 257.78 | F101: 255.37 | G101: 252.43 | H101: 263.13 | I101: 266.07 | J101: 268.48 | K101: 263.65 | L101: 258.3 | M101: 10.75156
A102: 93 | B102: HUDCO | C102: 41.9 | D102: 41.83 | E102: 41.47 | F102: 41.03 | G102: 40.67 | H102: 42.27 | I102: 42.63 | J102: 43.07 | K102: 42.2 | L102: 41.4 | M102: 5.87365
A103: 94 | B103: HDFC | C103: 1922.35 | D103: 1913.62 | E103: 1886.03 | F103: 1849.72 | G103: 1822.13 | H103: 1949.93 | I103: 1977.52 | J103: 2013.83 | K103: 1941.2 | L103: 1877.3 | M103: 53.03839
A104: 95 | B104: ITC | C104: 278.65 | D104: 277.28 | E104: 274.97 | F104: 271.28 | G104: 268.97 | H104: 280.97 | I104: 283.28 | J104: 286.97 | K104: 279.6 | L104: 273.6 | M104: 153.46406
A105: 96 | B105: ICICIBANK | C105: 364.45 | D105: 365.07 | E105: 353.48 | F105: 342.52 | G105: 330.93 | H105: 376.03 | I105: 387.62 | J105: 398.58 | K105: 376.65 | L105: 354.1 | M105: 859.17249
A106: 97 | B106: ICICIPRULI | C106: 285.85 | D106: 287.98 | E106: 281.27 | F106: 276.68 | G106: 269.97 | H106: 292.57 | I106: 299.28 | J106: 303.87 | K106: 294.7 | L106: 283.4 | M106: 27.1918
A107: 98 | B107: IDBI | C107: 55.4 | D107: 55.00 | E107: 54.05 | F107: 52.70 | G107: 51.75 | H107: 56.35 | I107: 57.30 | J107: 58.65 | K107: 55.95 | L107: 53.65 | M107: 23.45094
A108: 99 | B108: IDFCFIRSTB | C108: 45.2 | D108: 44.92 | E108: 43.88 | F108: 42.57 | G108: 41.53 | H108: 46.23 | I108: 47.27 | J108: 48.58 | K108: 45.95 | L108: 43.6 | M108: 330.93404
A109: 100 | B109: IDFC | C109: 39.6 | D109: 39.23 | E109: 38.57 | F109: 37.53 | G109: 36.87 | H109: 40.27 | I109: 40.93 | J109: 41.97 | K109: 39.9 | L109: 38.2 | M109: 38.27805
A110: 101 | B110: IRB | C110: 144.75 | D110: 144.83 | E110: 142.12 | F110: 139.48 | G110: 136.77 | H110: 147.47 | I110: 150.18 | J110: 152.82 | K110: 147.55 | L110: 142.2 | M110: 28.9276
A111: 102 | B111: IDEA | C111: 30.1 | D111: 30.27 | E111: 29.43 | F111: 28.77 | G111: 27.93 | H111: 30.93 | I111: 31.77 | J111: 32.43 | K111: 31.1 | L111: 29.6 | M111: 287.45767
A112: 103 | B112: IBULHSGFIN | C112: 664.7 | D112: 668.07 | E112: 644.63 | F112: 624.57 | G112: 601.13 | H112: 688.13 | I112: 711.57 | J112: 731.63 | K112: 691.5 | L112: 648 | M112: 205.00097
A113: 104 | B113: INDIANB | C113: 225.4 | D113: 226.47 | E113: 222.93 | F113: 220.47 | G113: 216.93 | H113: 228.93 | I113: 232.47 | J113: 234.93 | K113: 230 | L113: 224 | M113: 12.44835
A114: 105 | B114: INDHOTEL | C114: 142.05 | D114: 140.30 | E114: 135.65 | F114: 129.25 | G114: 124.60 | H114: 146.70 | I114: 151.35 | J114: 157.75 | K114: 144.95 | L114: 133.9 | M114: 25.318
A115: 106 | B115: IOC | C115: 136.85 | D115: 135.80 | E115: 133.30 | F115: 129.75 | G115: 127.25 | H115: 139.35 | I115: 141.85 | J115: 145.40 | K115: 138.3 | L115: 132.25 | M115: 323.32758
A116: 107 | B116: IGL | C116: 283.55 | D116: 282.10 | E116: 276.75 | F116: 269.95 | G116: 264.60 | H116: 288.90 | I116: 294.25 | J116: 301.05 | K116: 287.45 | L116: 275.3 | M116: 44.44978
A117: 108 | B117: INDUSINDBK | C117: 1505.55 | D117: 1499.72 | E117: 1478.93 | F117: 1452.32 | G117: 1431.53 | H117: 1526.33 | I117: 1547.12 | J117: 1573.73 | K117: 1520.5 | L117: 1473.1 | M117: 24.69714
A118: 109 | B118: NAUKRI | C118: 1747.35 | D118: 1722.45 | E118: 1686.90 | F118: 1626.45 | G118: 1590.90 | H118: 1782.90 | I118: 1818.45 | J118: 1878.90 | K118: 1758 | L118: 1662 | M118: 2.27402
A119: 110 | B119: INFY | C119: 749.55 | D119: 742.28 | E119: 733.27 | F119: 716.98 | G119: 707.97 | H119: 758.57 | I119: 767.58 | J119: 783.87 | K119: 751.3 | L119: 726 | M119: 138.25233
A120: 111 | B120: INDIGO | C120: 1187.8 | D120: 1179.63 | E120: 1165.27 | F120: 1142.73 | G120: 1128.37 | H120: 1202.17 | I120: 1216.53 | J120: 1239.07 | K120: 1194 | L120: 1157.1 | M120: 9.92642
A121: 112 | B121: IPCALAB | C121: 769.45 | D121: 771.43 | E121: 759.07 | F121: 748.68 | G121: 736.32 | H121: 781.82 | I121: 794.18 | J121: 804.57 | K121: 783.8 | L121: 761.05 | M121: 2.59955
A122: 113 | B122: JSWENERGY | C122: 66.85 | D122: 67.15 | E122: 65.50 | F122: 64.15 | G122: 62.50 | H122: 68.50 | I122: 70.15 | J122: 71.50 | K122: 68.8 | L122: 65.8 | M122: 14.57522
A123: 114 | B123: JSWSTEEL | C123: 274.6 | D123: 272.35 | E123: 268.85 | F123: 263.10 | G123: 259.60 | H123: 278.10 | I123: 281.60 | J123: 287.35 | K123: 275.85 | L123: 266.6 | M123: 46.66551
A124: 115 | B124: JINDALSTEL | C124: 135.1 | D124: 132.83 | E124: 129.87 | F124: 124.63 | G124: 121.67 | H124: 138.07 | I124: 141.03 | J124: 146.27 | K124: 135.8 | L124: 127.6 | M124: 154.16477
A125: 116 | B125: JUBLFOOD | C125: 1258.45 | D125: 1248.45 | E125: 1226.85 | F125: 1195.25 | G125: 1173.65 | H125: 1280.05 | I125: 1301.65 | J125: 1333.25 | K125: 1270.05 | L125: 1216.85 | M125: 51.99704
A126: 117 | B126: JUBILANT | C126: 703.45 | D126: 706.48 | E126: 697.97 | F126: 692.48 | G126: 683.97 | H126: 711.97 | I126: 720.48 | J126: 725.97 | K126: 715 | L126: 701 | M126: 1.77321
A127: 118 | B127: KARURVYSYA | C127: 87.95 | D127: 87.93 | E127: 87.07 | F127: 86.18 | G127: 85.32 | H127: 88.82 | I127: 89.68 | J127: 90.57 | K127: 88.8 | L127: 87.05 | M127: 2.88406
A128: 119 | B128: KOTAKBANK | C128: 1255.75 | D128: 1242.38 | E128: 1224.77 | F128: 1193.78 | G128: 1176.17 | H128: 1273.37 | I128: 1290.98 | J128: 1321.97 | K128: 1260 | L128: 1211.4 | M128: 29.6866
A129: 120 | B129: L&TFH | C129: 131.45 | D129: 131.20 | E129: 128.50 | F129: 125.55 | G129: 122.85 | H129: 134.15 | I129: 136.85 | J129: 139.80 | K129: 133.9 | L129: 128.25 | M129: 47.63262
A130: 121 | B130: LICHSGFIN | C130: 448.85 | D130: 445.03 | E130: 437.57 | F130: 426.28 | G130: 418.82 | H130: 456.32 | I130: 463.78 | J130: 475.07 | K130: 452.5 | L130: 433.75 | M130: 55.49988
A131: 122 | B131: LT | C131: 1314.3 | D131: 1310.85 | E131: 1300.00 | F131: 1285.70 | G131: 1274.85 | H131: 1325.15 | I131: 1336.00 | J131: 1350.30 | K131: 1321.7 | L131: 1296.55 | M131: 58.52257
A132: 123 | B132: LUPIN | C132: 875.7 | D132: 875.88 | E132: 865.82 | F132: 855.93 | G132: 845.87 | H132: 885.77 | I132: 895.83 | J132: 905.72 | K132: 885.95 | L132: 866 | M132: 23.47389
A133: 124 | B133: MRF | C133: 61289.2 | D133: 61198.98 | E133: 60630.37 | F133: 59971.53 | G133: 59402.92 | H133: 61857.82 | I133: 62426.43 | J133: 63085.27 | K133: 61767.6 | L133: 60540.15 | M133: 0.07598
A134: 125 | B134: MGL | C134: 919.95 | D134: 917.65 | E134: 912.80 | F134: 905.65 | G134: 900.80 | H134: 924.80 | I134: 929.65 | J134: 936.80 | K134: 922.5 | L134: 910.5 | M134: 2.31903
A135: 126 | B135: M&MFIN | C135: 404.5 | D135: 403.58 | E135: 399.17 | F135: 393.83 | G135: 389.42 | H135: 408.92 | I135: 413.33 | J135: 418.67 | K135: 408 | L135: 398.25 | M135: 12.54293
A136: 127 | B136: M&M | C136: 680.05 | D136: 678.60 | E136: 674.20 | F136: 668.35 | G136: 663.95 | H136: 684.45 | I136: 688.85 | J136: 694.70 | K136: 683 | L136: 672.75 | M136: 34.96189
A137: 128 | B137: MANAPPURAM | C137: 92.2 | D137: 91.78 | E137: 90.67 | F137: 89.13 | G137: 88.02 | H137: 93.32 | I137: 94.43 | J137: 95.97 | K137: 92.9 | L137: 90.25 | M137: 20.5188
A138: 129 | B138: MRPL | C138: 67.85 | D138: 67.83 | E138: 66.67 | F138: 65.48 | G138: 64.32 | H138: 69.02 | I138: 70.18 | J138: 71.37 | K138: 69 | L138: 66.65 | M138: 18.07343
A139: 130 | B139: MARICO | C139: 366.75 | D139: 366.77 | E139: 362.13 | F139: 357.52 | G139: 352.88 | H139: 371.38 | I139: 376.02 | J139: 380.63 | K139: 371.4 | L139: 362.15 | M139: 35.94106
A140: 131 | B140: MARUTI | C140: 6641.15 | D140: 6587.08 | E140: 6514.12 | F140: 6387.08 | G140: 6314.12 | H140: 6714.12 | I140: 6787.08 | J140: 6914.12 | K140: 6660.05 | L140: 6460.05 | M140: 9.2627
A141: 132 | B141: MFSL | C141: 398.15 | D141: 404.90 | E141: 384.80 | F141: 371.45 | G141: 351.35 | H141: 418.25 | I141: 438.35 | J141: 451.70 | K141: 425 | L141: 391.55 | M141: 8.06267
A142: 133 | B142: MINDTREE | C142: 894.05 | D142: 892.02 | E142: 882.03 | F142: 870.02 | G142: 860.03 | H142: 904.03 | I142: 914.02 | J142: 926.03 | K142: 902 | L142: 880 | M142: 12.11981
A143: 134 | B143: MOTHERSUMI | C143: 140.6 | D143: 141.30 | E143: 139.40 | F143: 138.20 | G143: 136.30 | H143: 142.50 | I143: 144.40 | J143: 145.60 | K143: 143.2 | L143: 140.1 | M143: 41.17588
A144: 135 | B144: MPHASIS | C144: 1002.65 | D144: 1003.83 | E144: 979.97 | F144: 957.28 | G144: 933.42 | H144: 1026.52 | I144: 1050.38 | J144: 1073.07 | K144: 1027.7 | L144: 981.15 | M144: 6.316
A145: 136 | B145: MUTHOOTFIN | C145: 499.45 | D145: 499.92 | E145: 494.53 | F145: 489.62 | G145: 484.23 | H145: 504.83 | I145: 510.22 | J145: 515.13 | K145: 505.3 | L145: 495 | M145: 10.24259
A146: 137 | B146: NATCOPHARM | C146: 692.4 | D146: 688.48 | E146: 675.97 | F146: 659.53 | G146: 647.02 | H146: 704.92 | I146: 717.43 | J146: 733.87 | K146: 701 | L146: 672.05 | M146: 4.79903
A147: 138 | B147: NBCC | C147: 58.7 | D147: 59.17 | E147: 57.93 | F147: 57.17 | G147: 55.93 | H147: 59.93 | I147: 61.17 | J147: 61.93 | K147: 60.4 | L147: 58.4 | M147: 88.87982
A148: 139 | B148: NHPC | C148: 25 | D148: 24.85 | E148: 24.40 | F148: 23.80 | G148: 23.35 | H148: 25.45 | I148: 25.90 | J148: 26.50 | K148: 25.3 | L148: 24.25 | M148: 47.4853
A149: 140 | B149: NMDC | C149: 96.9 | D149: 96.27 | E149: 95.28 | F149: 93.67 | G149: 92.68 | H149: 97.88 | I149: 98.87 | J149: 100.48 | K149: 97.25 | L149: 94.65 | M149: 88.05573
A150: 141 | B150: NTPC | C150: 139.7 | D150: 139.97 | E150: 138.73 | F150: 137.77 | G150: 136.53 | H150: 140.93 | I150: 142.17 | J150: 143.13 | K150: 141.2 | L150: 139 | M150: 366.957
A151: 142 | B151: NATIONALUM | C151: 59.6 | D151: 59.65 | E151: 58.80 | F151: 58.00 | G151: 57.15 | H151: 60.45 | I151: 61.30 | J151: 62.10 | K151: 60.5 | L151: 58.85 | M151: 193.00402
A152: 143 | B152: OBEROIRLTY | C152: 444.65 | D152: 442.38 | E152: 436.77 | F152: 428.88 | G152: 423.27 | H152: 450.27 | I152: 455.88 | J152: 463.77 | K152: 448 | L152: 434.5 | M152: 2.11627
A153: 144 | B153: ONGC | C153: 141.25 | D153: 141.10 | E153: 139.40 | F153: 137.55 | G153: 135.85 | H153: 142.95 | I153: 144.65 | J153: 146.50 | K153: 142.8 | L153: 139.25 | M153: 281.07358
A154: 145 | B154: OIL | C154: 167.65 | D154: 168.03 | E154: 166.22 | F154: 164.78 | G154: 162.97 | H154: 169.47 | I154: 171.28 | J154: 172.72 | K154: 169.85 | L154: 166.6 | M154: 42.46822
A155: 146 | B155: OFSS | C155: 3801.05 | D155: 3794.58 | E155: 3756.02 | F155: 3710.98 | G155: 3672.42 | H155: 3839.62 | I155: 3878.18 | J155: 3923.22 | K155: 3833.15 | L155: 3749.55 | M155: 0.24508
A156: 147 | B156: PCJEWELLER | C156: 73 | D156: 72.28 | E156: 70.57 | F156: 68.13 | G156: 66.42 | H156: 74.72 | I156: 76.43 | J156: 78.87 | K156: 74 | L156: 69.85 | M156: 79.08503
A157: 148 | B157: PIIND | C157: 852.5 | D157: 849.87 | E157: 834.73 | F157: 816.97 | G157: 801.83 | H157: 867.63 | I157: 882.77 | J157: 900.53 | K157: 865 | L157: 832.1 | M157: 1.18044
A158: 149 | B158: PNBHOUSING | C158: 902.45 | D158: 909.82 | E158: 887.63 | F158: 872.82 | G158: 850.63 | H158: 924.63 | I158: 946.82 | J158: 961.63 | K158: 932 | L158: 895 | M158: 0.73766
A159: 150 | B159: PAGEIND | C159: 23370 | D159: 23277.67 | E159: 23061.48 | F159: 22752.97 | G159: 22536.78 | H159: 23586.18 | I159: 23802.37 | J159: 24110.88 | K159: 23493.85 | L159: 22969.15 | M159: 0.65841
A160: 151 | B160: PETRONET | C160: 227.65 | D160: 227.43 | E160: 225.17 | F160: 222.68 | G160: 220.42 | H160: 229.92 | I160: 232.18 | J160: 234.67 | K160: 229.7 | L160: 224.95 | M160: 27.78449
A161: 152 | B161: PIDILITIND | C161: 1119.75 | D161: 1112.08 | E161: 1099.17 | F161: 1078.58 | G161: 1065.67 | H161: 1132.67 | I161: 1145.58 | J161: 1166.17 | K161: 1125 | L161: 1091.5 | M161: 11.0314
A162: 153 | B162: PEL | C162: 2032.45 | D162: 2045.70 | E162: 2001.20 | F162: 1969.95 | G162: 1925.45 | H162: 2076.95 | I162: 2121.45 | J162: 2152.70 | K162: 2090.2 | L162: 2014.45 | M162: 7.69269
A163: 154 | B163: PFC | C163: 103.55 | D163: 102.63 | E163: 100.87 | F163: 98.18 | G163: 96.42 | H163: 105.32 | I163: 107.08 | J163: 109.77 | K163: 104.4 | L163: 99.95 | M163: 141.86583
A164: 155 | B164: POWERGRID | C164: 188.6 | D164: 188.97 | E164: 186.43 | F164: 184.27 | G164: 181.73 | H164: 191.13 | I164: 193.67 | J164: 195.83 | K164: 191.5 | L164: 186.8 | M164: 144.98055
A165: 156 | B165: PRESTIGE | C165: 199.9 | D165: 200.07 | E165: 196.18 | F165: 192.47 | G165: 188.58 | H165: 203.78 | I165: 207.67 | J165: 211.38 | K165: 203.95 | L165: 196.35 | M165: 2.17205
A166: 157 | B166: PGHH | C166: 9908.75 | D166: 9926.60 | E166: 9853.20 | F166: 9797.65 | G166: 9724.25 | H166: 9982.15 | I166: 10055.55 | J166: 10111.10 | K166: 10000 | L166: 9871.05 | M166: 0.07382
A167: 158 | B167: PNB | C167: 77.5 | D167: 76.92 | E167: 76.03 | F167: 74.57 | G167: 73.68 | H167: 78.38 | I167: 79.27 | J167: 80.73 | K167: 77.8 | L167: 75.45 | M167: 167.57529
A168: 159 | B168: RBLBANK | C168: 568.65 | D168: 565.98 | E168: 558.22 | F168: 547.78 | G168: 540.02 | H168: 576.42 | I168: 584.18 | J168: 594.62 | K168: 573.75 | L168: 555.55 | M168: 13.3099
A169: 160 | B169: RAJESHEXPO | C169: 607.1 | D169: 610.00 | E169: 595.60 | F169: 584.10 | G169: 569.70 | H169: 621.50 | I169: 635.90 | J169: 647.40 | K169: 624.4 | L169: 598.5 | M169: 2.06452
A170: 161 | B170: RELCAPITAL | C170: 193.95 | D170: 194.12 | E170: 187.33 | F170: 180.72 | G170: 173.93 | H170: 200.73 | I170: 207.52 | J170: 214.13 | K170: 200.9 | L170: 187.5 | M170: 78.69852
A171: 162 | B171: RCOM | C171: 11.75 | D171: 11.58 | E171: 11.07 | F171: 10.38 | G171: 9.87 | H171: 12.27 | I171: 12.78 | J171: 13.47 | K171: 12.1 | L171: 10.9 | M171: 616.41012
A172: 163 | B172: RELIANCE | C172: 1227.15 | D172: 1219.28 | E172: 1208.87 | F172: 1190.58 | G172: 1180.17 | H172: 1237.57 | I172: 1247.98 | J172: 1266.27 | K172: 1229.7 | L172: 1201 | M172: 101.85347
A173: 164 | B173: RELINFRA | C173: 268.95 | D173: 266.93 | E173: 262.37 | F173: 255.78 | G173: 251.22 | H173: 273.52 | I173: 278.08 | J173: 284.67 | K173: 271.5 | L173: 260.35 | M173: 35.37287
A174: 165 | B174: RPOWER | C174: 26.5 | D174: 26.35 | E174: 25.85 | F174: 25.20 | G174: 24.70 | H174: 27.00 | I174: 27.50 | J174: 28.15 | K174: 26.85 | L174: 25.7 | M174: 67.43523
A175: 166 | B175: RECLTD | C175: 124.7 | D175: 124.72 | E175: 122.78 | F175: 120.87 | G175: 118.93 | H175: 126.63 | I175: 128.57 | J175: 130.48 | K175: 126.65 | L175: 122.8 | M175: 142.08737
A176: 167 | B176: SRF | C176: 2011.35 | D176: 2018.25 | E176: 1991.50 | F176: 1971.65 | G176: 1944.90 | H176: 2038.10 | I176: 2064.85 | J176: 2084.70 | K176: 2045 | L176: 1998.4 | M176: 3.48718
A177: 168 | B177: SHREECEM | C177: 15714.7 | D177: 15692.32 | E177: 15472.38 | F177: 15230.07 | G177: 15010.13 | H177: 15934.63 | I177: 16154.57 | J177: 16396.88 | K177: 15912.25 | L177: 15450 | M177: 0.36653
A178: 169 | B178: SRTRANSFIN | C178: 1015.35 | D178: 1010.55 | E178: 996.15 | F178: 976.95 | G178: 962.55 | H178: 1029.75 | I178: 1044.15 | J178: 1063.35 | K178: 1024.95 | L178: 991.35 | M178: 20.21427
A179: 170 | B179: SIEMENS | C179: 1030.1 | D179: 1022.88 | E179: 1010.97 | F179: 991.83 | G179: 979.92 | H179: 1042.02 | I179: 1053.93 | J179: 1073.07 | K179: 1034.8 | L179: 1003.75 | M179: 2.8107
A180: 171 | B180: SBIN | C180: 293.65 | D180: 292.15 | E180: 289.50 | F180: 285.35 | G180: 282.70 | H180: 296.30 | I180: 298.95 | J180: 303.10 | K180: 294.8 | L180: 288 | M180: 255.46487
A181: 172 | B181: SAIL | C181: 47 | D181: 47.30 | E181: 46.45 | F181: 45.90 | G181: 45.05 | H181: 47.85 | I181: 48.70 | J181: 49.25 | K181: 48.15 | L181: 46.75 | M181: 110.3958
A182: 173 | B182: SPARC | C182: 157.05 | D182: 157.40 | E182: 154.40 | F182: 151.75 | G182: 148.75 | H182: 160.05 | I182: 163.05 | J182: 165.70 | K182: 160.4 | L182: 154.75 | M182: 5.49037
A183: 174 | B183: SUNPHARMA | C183: 423.45 | D183: 422.83 | E183: 414.32 | F183: 405.18 | G183: 396.67 | H183: 431.97 | I183: 440.48 | J183: 449.62 | K183: 431.35 | L183: 413.7 | M183: 166.72076
A184: 175 | B184: SUNTV | C184: 530.1 | D184: 529.02 | E184: 521.23 | F184: 512.37 | G184: 504.58 | H184: 537.88 | I184: 545.67 | J184: 554.53 | K184: 536.8 | L184: 520.15 | M184: 17.04334
A185: 176 | B185: SUZLON | C185: 4.7 | D185: 4.75 | E185: 4.50 | F185: 4.30 | G185: 4.05 | H185: 4.95 | I185: 5.20 | J185: 5.40 | K185: 5 | L185: 4.55 | M185: 425.99703
A186: 177 | B186: SYNDIBANK | C186: 36.9 | D186: 36.83 | E186: 36.27 | F186: 35.63 | G186: 35.07 | H186: 37.47 | I186: 38.03 | J186: 38.67 | K186: 37.4 | L186: 36.2 | M186: 45.6039
A187: 178 | B187: SYNGENE | C187: 578.2 | D187: 577.48 | E187: 567.87 | F187: 557.53 | G187: 547.92 | H187: 587.82 | I187: 597.43 | J187: 607.77 | K187: 587.1 | L187: 567.15 | M187: 0.36541
A188: 179 | B188: TV18BRDCST | C188: 32.6 | D188: 32.63 | E188: 32.02 | F188: 31.43 | G188: 30.82 | H188: 33.22 | I188: 33.83 | J188: 34.42 | K188: 33.25 | L188: 32.05 | M188: 43.24123
A189: 180 | B189: TVSMOTOR | C189: 500 | D189: 498.10 | E189: 489.25 | F189: 478.50 | G189: 469.65 | H189: 508.85 | I189: 517.70 | J189: 528.45 | K189: 506.95 | L189: 487.35 | M189: 13.01064
A190: 181 | B190: TATACHEM | C190: 674.3 | D190: 677.35 | E190: 668.75 | F190: 663.20 | G190: 654.60 | H190: 682.90 | I190: 691.50 | J190: 697.05 | K190: 685.95 | L190: 671.8 | M190: 4.17905
A191: 182 | B191: TATACOMM | C191: 495.95 | D191: 501.15 | E191: 486.80 | F191: 477.65 | G191: 463.30 | H191: 510.30 | I191: 524.65 | J191: 533.80 | K191: 515.5 | L191: 492 | M191: 11.75711
A192: 183 | B192: TCS | C192: 2014.1 | D192: 2006.28 | E192: 1992.82 | F192: 1971.53 | G192: 1958.07 | H192: 2027.57 | I192: 2041.03 | J192: 2062.32 | K192: 2019.75 | L192: 1985 | M192: 40.94319
A193: 184 | B193: TATAGLOBAL | C193: 203.8 | D193: 203.53 | E193: 201.07 | F193: 198.33 | G193: 195.87 | H193: 206.27 | I193: 208.73 | J193: 211.47 | K193: 206 | L193: 200.8 | M193: 25.84783
A194: 185 | B194: TATAMTRDVR | C194: 93.65 | D194: 92.97 | E194: 91.43 | F194: 89.22 | G194: 87.68 | H194: 95.18 | I194: 96.72 | J194: 98.93 | K194: 94.5 | L194: 90.75 | M194: 36.64954
A195: 186 | B195: TATAMOTORS | C195: 181.2 | D195: 180.30 | E195: 176.70 | F195: 172.20 | G195: 168.60 | H195: 184.80 | I195: 188.40 | J195: 192.90 | K195: 183.9 | L195: 175.8 | M195: 222.77646
A196: 187 | B196: TATAPOWER | C196: 71.3 | D196: 70.40 | E196: 68.80 | F196: 66.30 | G196: 64.70 | H196: 72.90 | I196: 74.50 | J196: 77.00 | K196: 72 | L196: 67.9 | M196: 74.42257
A197: 188 | B197: TATASTEEL | C197: 476.7 | D197: 474.42 | E197: 469.93 | F197: 463.17 | G197: 458.68 | H197: 481.18 | I197: 485.67 | J197: 492.43 | K197: 478.9 | L197: 467.65 | M197: 92.43729
A198: 189 | B198: TECHM | C198: 731.9 | D198: 728.87 | E198: 721.03 | F198: 710.17 | G198: 702.33 | H198: 739.73 | I198: 747.57 | J198: 758.43 | K198: 736.7 | L198: 718 | M198: 32.5364
A199: 190 | B199: RAMCOCEM | C199: 600.7 | D199: 596.28 | E199: 587.77 | F199: 574.83 | G199: 566.32 | H199: 609.22 | I199: 617.73 | J199: 630.67 | K199: 604.8 | L199: 583.35 | M199: 2.72963
A200: 191 | B200: TITAN | C200: 995.8 | D200: 987.43 | E200: 974.87 | F200: 953.93 | G200: 941.37 | H200: 1008.37 | I200: 1020.93 | J200: 1041.87 | K200: 1000 | L200: 966.5 | M200: 23.06391
A201: 192 | B201: TORNTPHARM | C201: 1818.8 | D201: 1836.45 | E201: 1778.90 | F201: 1739.00 | G201: 1681.45 | H201: 1876.35 | I201: 1933.90 | J201: 1973.80 | K201: 1894 | L201: 1796.55 | M201: 7.77787
A202: 193 | B202: TORNTPOWER | C202: 247.3 | D202: 246.75 | E202: 244.65 | F202: 242.00 | G202: 239.90 | H202: 249.40 | I202: 251.50 | J202: 254.15 | K202: 248.85 | L202: 244.1 | M202: 7.01329
A203: 194 | B203: UPL | C203: 786.5 | D203: 780.20 | E203: 770.50 | F203: 754.50 | G203: 744.80 | H203: 796.20 | I203: 805.90 | J203: 821.90 | K203: 789.9 | L203: 764.2 | M203: 22.99676
A204: 195 | B204: ULTRACEMCO | C204: 3519.35 | D204: 3497.15 | E204: 3454.30 | F204: 3389.25 | G204: 3346.40 | H204: 3562.20 | I204: 3605.05 | J204: 3670.10 | K204: 3540 | L204: 3432.1 | M204: 6.21043
A205: 196 | B205: UNIONBANK | C205: 82.75 | D205: 81.97 | E205: 80.53 | F205: 78.32 | G205: 76.88 | H205: 84.18 | I205: 85.62 | J205: 87.83 | K205: 83.4 | L205: 79.75 | M205: 84.95733
... 29 more rows

Sheet MidCap Intra
L5: Back To Main Page
A6: FOR INTRA DAY TRADING | K6: =Main!B10 -> 2019-02-01
A9: Sr.no | B9: Scrip | C9: CLOSE RATE | D9: Pivot Point | E9: Supports | H9: Resistances
C10: Point | E10: S1 | F10: S2 | G10: S3 | H10: R1 | I10: R2 | J10: R3 | K10: HIGH | L10: LOW | M10: Total Trade Quanity in Lakhs
A11: 1 | B11: 3MINDIA | C11: 20151.6 | D11: 20220.83 | E11: 20045.77 | F11: 19939.93 | G11: 19764.87 | H11: 20326.67 | I11: 20501.73 | J11: 20607.57 | K11: 20395.9 | L11: 20115 | M11: 0.00464
A12: 2 | B12: 8KMILES | C12: 126 | D12: 126.00 | E12: 126.00 | F12: 126.00 | G12: 126.00 | H12: 126.00 | I12: 126.00 | J12: 126.00 | K12: 126 | L12: 126 | M12: 0.70867
A13: 3 | B13: AARTIIND | C13: 1625.65 | D13: 1631.23 | E13: 1602.97 | F13: 1580.28 | G13: 1552.02 | H13: 1653.92 | I13: 1682.18 | J13: 1704.87 | K13: 1659.5 | L13: 1608.55 | M13: 0.92067
A14: 4 | B14: ABAN | C14: 67.15 | D14: 66.63 | E14: 65.57 | F14: 63.98 | G14: 62.92 | H14: 68.22 | I14: 69.28 | J14: 70.87 | K14: 67.7 | L14: 65.05 | M14: 3.6156
A15: 5 | B15: ABB | C15: 1272.3 | D15: 1270.57 | E15: 1253.03 | F15: 1233.77 | G15: 1216.23 | H15: 1289.83 | I15: 1307.37 | J15: 1326.63 | K15: 1288.1 | L15: 1251.3 | M15: 0.80557
A16: 6 | B16: ABCAPITAL | C16: 81 | D16: 81.40 | E16: 79.80 | F16: 78.60 | G16: 77.00 | H16: 82.60 | I16: 84.20 | J16: 85.40 | K16: 83 | L16: 80.2 | M16: 22.86803
A17: 7 | B17: ABFRL | C17: 209.5 | D17: 209.47 | E17: 205.03 | F17: 200.57 | G17: 196.13 | H17: 213.93 | I17: 218.37 | J17: 222.83 | K17: 213.9 | L17: 205 | M17: 7.01118
A18: 8 | B18: ACC | C18: 1423.35 | D18: 1414.40 | E18: 1400.00 | F18: 1376.65 | G18: 1362.25 | H18: 1437.75 | I18: 1452.15 | J18: 1475.50 | K18: 1428.8 | L18: 1391.05 | M18: 8.37929
A19: 9 | B19: ADANIPORTS | C19: 338.65 | D19: 336.85 | E19: 332.00 | F19: 325.35 | G19: 320.50 | H19: 343.50 | I19: 348.35 | J19: 355.00 | K19: 341.7 | L19: 330.2 | M19: 64.03921
A20: 10 | B20: ADANIPOWER | C20: 45.5 | D20: 45.02 | E20: 43.53 | F20: 41.57 | G20: 40.08 | H20: 46.98 | I20: 48.47 | J20: 50.43 | K20: 46.5 | L20: 43.05 | M20: 176.42681
A21: 11 | B21: ADANITRANS | C21: 213.4 | D21: 215.13 | E21: 210.77 | F21: 208.13 | G21: 203.77 | H21: 217.77 | I21: 222.13 | J21: 224.77 | K21: 219.5 | L21: 212.5 | M21: 1.1008
A22: 12 | B22: ADVENZYMES | C22: 166.5 | D22: 164.92 | E22: 161.83 | F22: 157.17 | G22: 154.08 | H22: 169.58 | I22: 172.67 | J22: 177.33 | K22: 168 | L22: 160.25 | M22: 0.60544
A23: 13 | B23: AEGISCHEM | C23: 189.9 | D23: 190.13 | E23: 187.27 | F23: 184.63 | G23: 181.77 | H23: 192.77 | I23: 195.63 | J23: 198.27 | K23: 193 | L23: 187.5 | M23: 0.58676
A24: 14 | B24: AIAENG | C24: 1607.2 | D24: 1610.52 | E24: 1587.18 | F24: 1567.17 | G24: 1543.83 | H24: 1630.53 | I24: 1653.87 | J24: 1673.88 | K24: 1633.85 | L24: 1590.5 | M24: 0.18963
A25: 15 | B25: AJANTPHARM | C25: 1020.65 | D25: 1034.88 | E25: 994.77 | F25: 968.88 | G25: 928.77 | H25: 1060.77 | I25: 1100.88 | J25: 1126.77 | K25: 1075 | L25: 1009 | M25: 15.73401
A26: 16 | B26: AKZOINDIA | C26: 1759.85 | D26: 1756.27 | E26: 1728.58 | F26: 1697.32 | G26: 1669.63 | H26: 1787.53 | I26: 1815.22 | J26: 1846.48 | K26: 1783.95 | L26: 1725 | M26: 0.05882
A27: 17 | B27: ALBK | C27: 45.15 | D27: 45.37 | E27: 44.58 | F27: 44.02 | G27: 43.23 | H27: 45.93 | I27: 46.72 | J27: 47.28 | K27: 46.15 | L27: 44.8 | M27: 95.23555
A28: 18 | B28: ALKEM | C28: 1883.2 | D28: 1878.72 | E28: 1844.48 | F28: 1805.77 | G28: 1771.53 | H28: 1917.43 | I28: 1951.67 | J28: 1990.38 | K28: 1912.95 | L28: 1840 | M28: 0.63904
A29: 19 | B29: ALLCARGO | C29: 105.55 | D29: 106.15 | E29: 104.55 | F29: 103.55 | G29: 101.95 | H29: 107.15 | I29: 108.75 | J29: 109.75 | K29: 107.75 | L29: 105.15 | M29: 0.25816
A30: 20 | B30: AMARAJABAT | C30: 744.95 | D30: 747.78 | E30: 736.32 | F30: 727.68 | G30: 716.22 | H30: 756.42 | I30: 767.88 | J30: 776.52 | K30: 759.25 | L30: 739.15 | M30: 3.20601
A31: 21 | B31: AMBUJACEM | C31: 209.9 | D31: 208.78 | E31: 205.57 | F31: 201.23 | G31: 198.02 | H31: 213.12 | I31: 216.33 | J31: 220.67 | K31: 212 | L31: 204.45 | M31: 76.69625
A32: 22 | B32: ANDHRABANK | C32: 25.25 | D32: 25.40 | E32: 24.70 | F32: 24.15 | G32: 23.45 | H32: 25.95 | I32: 26.65 | J32: 27.20 | K32: 26.1 | L32: 24.85 | M32: 15.03528
A33: 23 | B33: APLAPOLLO | C33: 1110.3 | D33: 1109.32 | E33: 1090.53 | F33: 1070.77 | G33: 1051.98 | H33: 1129.08 | I33: 1147.87 | J33: 1167.63 | K33: 1128.1 | L33: 1089.55 | M33: 0.09692
A34: 24 | B34: APLLTD | C34: 593.65 | D34: 596.75 | E34: 583.60 | F34: 573.55 | G34: 560.40 | H34: 606.80 | I34: 619.95 | J34: 630.00 | K34: 609.9 | L34: 586.7 | M34: 0.38267
A35: 25 | B35: APOLLOHOSP | C35: 1325.65 | D35: 1324.33 | E35: 1314.67 | F35: 1303.68 | G35: 1294.02 | H35: 1335.32 | I35: 1344.98 | J35: 1355.97 | K35: 1334 | L35: 1313.35 | M35: 4.71658
A36: 26 | B36: APOLLOTYRE | C36: 204.35 | D36: 202.98 | E36: 200.67 | F36: 196.98 | G36: 194.67 | H36: 206.67 | I36: 208.98 | J36: 212.67 | K36: 205.3 | L36: 199.3 | M36: 17.95751
A37: 27 | B37: ARVIND | C37: 88.15 | D37: 89.37 | E37: 86.78 | F37: 85.42 | G37: 82.83 | H37: 90.73 | I37: 93.32 | J37: 94.68 | K37: 91.95 | L37: 88 | M37: 24.64301
A38: 28 | B38: ASAHIINDIA | C38: 255.1 | D38: 255.47 | E38: 254.63 | F38: 254.17 | G38: 253.33 | H38: 255.93 | I38: 256.77 | J38: 257.23 | K38: 256.3 | L38: 255 | M38: 0.1047
A39: 29 | B39: ASHOKA | C39: 119.7 | D39: 121.73 | E39: 115.97 | F39: 112.23 | G39: 106.47 | H39: 125.47 | I39: 131.23 | J39: 134.97 | K39: 127.5 | L39: 118 | M39: 1.98591
A40: 30 | B40: ASHOKLEY | C40: 81.3 | D40: 81.02 | E40: 79.83 | F40: 78.37 | G40: 77.18 | H40: 82.48 | I40: 83.67 | J40: 85.13 | K40: 82.2 | L40: 79.55 | M40: 362.94901
A41: 31 | B41: ASIANPAINT | C41: 1412.6 | D41: 1406.22 | E41: 1397.43 | F41: 1382.27 | G41: 1373.48 | H41: 1421.38 | I41: 1430.17 | J41: 1445.33 | K41: 1415 | L41: 1391.05 | M41: 12.5605
A42: 32 | B42: ASTRAL | C42: 1131.2 | D42: 1128.70 | E42: 1115.40 | F42: 1099.60 | G42: 1086.30 | H42: 1144.50 | I42: 1157.80 | J42: 1173.60 | K42: 1142 | L42: 1112.9 | M42: 0.20992
A43: 33 | B43: ATUL | C43: 3466.2 | D43: 3486.72 | E43: 3429.48 | F43: 3392.77 | G43: 3335.53 | H43: 3523.43 | I43: 3580.67 | J43: 3617.38 | K43: 3543.95 | L43: 3450 | M43: 0.16907
A44: 34 | B44: AUBANK | C44: 584.25 | D44: 586.90 | E44: 579.00 | F44: 573.75 | G44: 565.85 | H44: 592.15 | I44: 600.05 | J44: 605.30 | K44: 594.8 | L44: 581.65 | M44: 2.57833
A45: 35 | B45: AUROPHARMA | C45: 787.8 | D45: 784.97 | E45: 779.93 | F45: 772.07 | G45: 767.03 | H45: 792.83 | I45: 797.87 | J45: 805.73 | K45: 790 | L45: 777.1 | M45: 15.13974
A46: 36 | B46: AVANTIFEED | C46: 356.7 | D46: 344.40 | E46: 327.30 | F46: 297.90 | G46: 280.80 | H46: 373.80 | I46: 390.90 | J46: 420.30 | K46: 361.5 | L46: 315 | M46: 21.82722
A47: 37 | B47: AXISBANK | C47: 722.7 | D47: 712.87 | E47: 698.88 | F47: 675.07 | G47: 661.08 | H47: 736.68 | I47: 750.67 | J47: 774.48 | K47: 726.85 | L47: 689.05 | M47: 352.39544
A48: 38 | B48: BAJAJ-AUTO | C48: 2554.55 | D48: 2528.55 | E48: 2487.10 | F48: 2419.65 | G48: 2378.20 | H48: 2596.00 | I48: 2637.45 | J48: 2704.90 | K48: 2570 | L48: 2461.1 | M48: 11.02133
A49: 39 | B49: BAJAJCON | C49: 354.1 | D49: 353.83 | E49: 350.67 | F49: 347.23 | G49: 344.07 | H49: 357.27 | I49: 360.43 | J49: 363.87 | K49: 357 | L49: 350.4 | M49: 1.2725
A50: 40 | B50: BAJAJELEC | C50: 458.2 | D50: 457.85 | E50: 447.70 | F50: 437.20 | G50: 427.05 | H50: 468.35 | I50: 478.50 | J50: 489.00 | K50: 468 | L50: 447.35 | M50: 2.87725
A51: 41 | B51: BAJAJFINSV | C51: 6091.9 | D51: 6136.93 | E51: 6004.97 | F51: 5918.03 | G51: 5786.07 | H51: 6223.87 | I51: 6355.83 | J51: 6442.77 | K51: 6268.9 | L51: 6050 | M51: 3.77632
A52: 42 | B52: BAJAJHIND | C52: 8.05 | D52: 8.00 | E52: 7.85 | F52: 7.65 | G52: 7.50 | H52: 8.20 | I52: 8.35 | J52: 8.55 | K52: 8.15 | L52: 7.8 | M52: 10.80384
A53: 43 | B53: BAJAJHLDNG | C53: 2847.05 | D53: 2847.25 | E53: 2814.80 | F53: 2782.55 | G53: 2750.10 | H53: 2879.50 | I53: 2911.95 | J53: 2944.20 | K53: 2879.7 | L53: 2815 | M53: 0.28439
A54: 44 | B54: BAJFINANCE | C54: 2574.85 | D54: 2569.62 | E54: 2531.23 | F54: 2487.62 | G54: 2449.23 | H54: 2613.23 | I54: 2651.62 | J54: 2695.23 | K54: 2608 | L54: 2526 | M54: 20.83418
A55: 45 | B55: BALKRISIND | C55: 810.6 | D55: 811.62 | E55: 806.73 | F55: 802.87 | G55: 797.98 | H55: 815.48 | I55: 820.37 | J55: 824.23 | K55: 816.5 | L55: 807.75 | M55: 6.14464
A56: 46 | B56: BALLARPUR | C56: 3.65 | D56: 3.63 | E56: 3.57 | F56: 3.48 | G56: 3.42 | H56: 3.72 | I56: 3.78 | J56: 3.87 | K56: 3.7 | L56: 3.55 | M56: 9.61698
A57: 47 | B57: BALMLAWRIE | C57: 188.2 | D57: 188.13 | E57: 186.27 | F57: 184.33 | G57: 182.47 | H57: 190.07 | I57: 191.93 | J57: 193.87 | K57: 190 | L57: 186.2 | M57: 0.24546
A58: 48 | B58: BALRAMCHIN | C58: 101.9 | D58: 101.47 | E58: 100.43 | F58: 98.97 | G58: 97.93 | H58: 102.93 | I58: 103.97 | J58: 105.43 | K58: 102.5 | L58: 100 | M58: 7.49045
A59: 49 | B59: BANKBARODA | C59: 112.45 | D59: 112.65 | E59: 110.35 | F59: 108.25 | G59: 105.95 | H59: 114.75 | I59: 117.05 | J59: 119.15 | K59: 114.95 | L59: 110.55 | M59: 148.42463
A60: 50 | B60: BANKINDIA | C60: 102.8 | D60: 101.60 | E60: 98.50 | F60: 94.20 | G60: 91.10 | H60: 105.90 | I60: 109.00 | J60: 113.30 | K60: 104.7 | L60: 97.3 | M60: 136.27828
A61: 51 | B61: BASF | C61: 1352.7 | D61: 1354.60 | E61: 1330.20 | F61: 1307.70 | G61: 1283.30 | H61: 1377.10 | I61: 1401.50 | J61: 1424.00 | K61: 1379 | L61: 1332.1 | M61: 0.12835
A62: 52 | B62: BATAINDIA | C62: 1118.6 | D62: 1110.85 | E62: 1094.85 | F62: 1071.10 | G62: 1055.10 | H62: 1134.60 | I62: 1150.60 | J62: 1174.35 | K62: 1126.85 | L62: 1087.1 | M62: 5.68576
A63: 53 | B63: BBTC | C63: 1205.25 | D63: 1208.45 | E63: 1197.90 | F63: 1190.55 | G63: 1180.00 | H63: 1215.80 | I63: 1226.35 | J63: 1233.70 | K63: 1219 | L63: 1201.1 | M63: 0.64027
A64: 54 | B64: BEL | C64: 83.65 | D64: 85.00 | E64: 82.00 | F64: 80.35 | G64: 77.35 | H64: 86.65 | I64: 89.65 | J64: 91.30 | K64: 88 | L64: 83.35 | M64: 290.20309
A65: 55 | B65: BEML | C65: 794.15 | D65: 799.68 | E65: 779.52 | F65: 764.88 | G65: 744.72 | H65: 814.32 | I65: 834.48 | J65: 849.12 | K65: 819.85 | L65: 785.05 | M65: 20.99187
A66: 56 | B66: BERGEPAINT | C66: 318.75 | D66: 317.93 | E66: 314.47 | F66: 310.18 | G66: 306.72 | H66: 322.22 | I66: 325.68 | J66: 329.97 | K66: 321.4 | L66: 313.65 | M66: 10.42566
A67: 57 | B67: BFUTILITIE | C67: 200.75 | D67: 200.60 | E67: 193.65 | F67: 186.55 | G67: 179.60 | H67: 207.70 | I67: 214.65 | J67: 221.75 | K67: 207.55 | L67: 193.5 | M67: 5.50298
A68: 58 | B68: BGRENERGY | C68: 54.6 | D68: 54.60 | E68: 54.00 | F68: 53.40 | G68: 52.80 | H68: 55.20 | I68: 55.80 | J68: 56.40 | K68: 55.2 | L68: 54 | M68: 0.30487
A69: 59 | B69: BHARATFIN | C69: 946.3 | D69: 943.52 | E69: 930.58 | F69: 914.87 | G69: 901.93 | H69: 959.23 | I69: 972.17 | J69: 987.88 | K69: 956.45 | L69: 927.8 | M69: 9.0751
A70: 60 | B70: BHARATFORG | C70: 493 | D70: 488.50 | E70: 481.00 | F70: 469.00 | G70: 461.50 | H70: 500.50 | I70: 508.00 | J70: 520.00 | K70: 496 | L70: 476.5 | M70: 22.64567
A71: 61 | B71: BHARTIARTL | C71: 306.4 | D71: 306.67 | E71: 302.88 | F71: 299.37 | G71: 295.58 | H71: 310.18 | I71: 313.97 | J71: 317.48 | K71: 310.45 | L71: 303.15 | M71: 85.55853
A72: 62 | B72: BHEL | C72: 64.7 | D72: 64.47 | E72: 63.93 | F72: 63.17 | G72: 62.63 | H72: 65.23 | I72: 65.77 | J72: 66.53 | K72: 65 | L72: 63.7 | M72: 123.25961
A73: 63 | B73: BIOCON | C73: 648.3 | D73: 649.88 | E73: 644.42 | F73: 640.53 | G73: 635.07 | H73: 653.77 | I73: 659.23 | J73: 663.12 | K73: 655.35 | L73: 646 | M73: 9.53052
A74: 64 | B74: BIRLACORPN | C74: 486.1 | D74: 487.98 | E74: 482.07 | F74: 478.03 | G74: 472.12 | H74: 492.02 | I74: 497.93 | J74: 501.97 | K74: 493.9 | L74: 483.95 | M74: 0.61407
A75: 65 | B75: BLISSGVS | C75: 156.2 | D75: 155.57 | E75: 149.53 | F75: 142.87 | G75: 136.83 | H75: 162.23 | I75: 168.27 | J75: 174.93 | K75: 161.6 | L75: 148.9 | M75: 20.18321
A76: 66 | B76: BLUEDART | C76: 3188.85 | D76: 3147.77 | E76: 3091.08 | F76: 2993.32 | G76: 2936.63 | H76: 3245.53 | I76: 3302.22 | J76: 3399.98 | K76: 3204.45 | L76: 3050 | M76: 0.12849
A77: 67 | B77: BLUESTARCO | C77: 595.4 | D77: 597.62 | E77: 589.78 | F77: 584.17 | G77: 576.33 | H77: 603.23 | I77: 611.07 | J77: 616.68 | K77: 605.45 | L77: 592 | M77: 0.09423
A78: 68 | B78: BOMDYEING | C78: 112.3 | D78: 110.50 | E78: 108.60 | F78: 104.90 | G78: 103.00 | H78: 114.20 | I78: 116.10 | J78: 119.80 | K78: 112.4 | L78: 106.8 | M78: 7.44893
A79: 69 | B79: BOSCHLTD | C79: 18851.7 | D79: 18733.90 | E79: 18547.80 | F79: 18243.90 | G79: 18057.80 | H79: 19037.80 | I79: 19223.90 | J79: 19527.80 | K79: 18920 | L79: 18430 | M79: 0.21091
A80: 70 | B80: BPCL | C80: 345.45 | D80: 344.85 | E80: 338.70 | F80: 331.95 | G80: 325.80 | H80: 351.60 | I80: 357.75 | J80: 364.50 | K80: 351 | L80: 338.1 | M80: 78.19453
A81: 71 | B81: BRFL | C81: 7.9 | D81: 7.93 | E81: 7.72 | F81: 7.53 | G81: 7.32 | H81: 8.12 | I81: 8.33 | J81: 8.52 | K81: 8.15 | L81: 7.75 | M81: 0.567
A82: 72 | B82: BRIGADE | C82: 210.45 | D82: 210.47 | E82: 208.98 | F82: 207.52 | G82: 206.03 | H82: 211.93 | I82: 213.42 | J82: 214.88 | K82: 211.95 | L82: 209 | M82: 0.49477
A83: 73 | B83: BRITANNIA | C83: 3197.7 | D83: 3206.28 | E83: 3180.62 | F83: 3163.53 | G83: 3137.87 | H83: 3223.37 | I83: 3249.03 | J83: 3266.12 | K83: 3231.95 | L83: 3189.2 | M83: 2.55273
A84: 74 | B84: BSE | C84: 589.45 | D84: 589.55 | E84: 586.95 | F84: 584.45 | G84: 581.85 | H84: 592.05 | I84: 594.65 | J84: 597.15 | K84: 592.15 | L84: 587.05 | M84: 0.44224
A85: 75 | B85: CADILAHC | C85: 318.95 | D85: 319.75 | E85: 316.65 | F85: 314.35 | G85: 311.25 | H85: 322.05 | I85: 325.15 | J85: 327.45 | K85: 322.85 | L85: 317.45 | M85: 9.82622
A86: 77 | B86: CANBK | C86: 250.15 | D86: 249.40 | E86: 246.55 | F86: 242.95 | G86: 240.10 | H86: 253.00 | I86: 255.85 | J86: 259.45 | K86: 252.25 | L86: 245.8 | M86: 45.221
A87: 78 | B87: CANFINHOME | C87: 250.7 | D87: 249.98 | E87: 245.42 | F87: 240.13 | G87: 235.57 | H87: 255.27 | I87: 259.83 | J87: 265.12 | K87: 254.55 | L87: 244.7 | M87: 7.37326
A88: 79 | B88: CAPLIPOINT | C88: 363.15 | D88: 354.72 | E88: 344.43 | F88: 325.72 | G88: 315.43 | H88: 373.43 | I88: 383.72 | J88: 402.43 | K88: 365 | L88: 336 | M88: 0.77132
A89: 80 | B89: CARBORUNIV | C89: 349.45 | D89: 350.30 | E89: 347.25 | F89: 345.05 | G89: 342.00 | H89: 352.50 | I89: 355.55 | J89: 357.75 | K89: 353.35 | L89: 348.1 | M89: 0.15265
A90: 81 | B90: CARERATING | C90: 990.55 | D90: 998.30 | E90: 979.80 | F90: 969.05 | G90: 950.55 | H90: 1009.05 | I90: 1027.55 | J90: 1038.30 | K90: 1016.8 | L90: 987.55 | M90: 0.20306
A91: 82 | B91: CASTROLIND | C91: 158.65 | D91: 160.57 | E91: 154.73 | F91: 150.82 | G91: 144.98 | H91: 164.48 | I91: 170.32 | J91: 174.23 | K91: 166.4 | L91: 156.65 | M91: 51.51093
A92: 83 | B92: CCL | C92: 268.05 | D92: 267.15 | E92: 265.30 | F92: 262.55 | G92: 260.70 | H92: 269.90 | I92: 271.75 | J92: 274.50 | K92: 269 | L92: 264.4 | M92: 0.06278
A93: 84 | B93: CDSL | C93: 218 | D93: 218.18 | E93: 216.37 | F93: 214.73 | G93: 212.92 | H93: 219.82 | I93: 221.63 | J93: 223.27 | K93: 220 | L93: 216.55 | M93: 1.86826
A94: 85 | B94: CEATLTD | C94: 1086.05 | D94: 1079.58 | E94: 1065.52 | F94: 1044.98 | G94: 1030.92 | H94: 1100.12 | I94: 1114.18 | J94: 1134.72 | K94: 1093.65 | L94: 1059.05 | M94: 6.66615
A95: 86 | B95: CENTRALBK | C95: 31.1 | D95: 31.23 | E95: 30.82 | F95: 30.53 | G95: 30.12 | H95: 31.52 | I95: 31.93 | J95: 32.22 | K95: 31.65 | L95: 30.95 | M95: 1.88252
A96: 87 | B96: CENTURYPLY | C96: 162.45 | D96: 163.08 | E96: 161.37 | F96: 160.28 | G96: 158.57 | H96: 164.17 | I96: 165.88 | J96: 166.97 | K96: 164.8 | L96: 162 | M96: 0.71589
A97: 88 | B97: CENTURYTEX | C97: 793.6 | D97: 795.25 | E97: 784.75 | F97: 775.90 | G97: 765.40 | H97: 804.10 | I97: 814.60 | J97: 823.45 | K97: 805.75 | L97: 786.4 | M97: 5.41762
A98: 89 | B98: CERA | C98: 2430 | D98: 2450.65 | E98: 2353.30 | F98: 2276.60 | G98: 2179.25 | H98: 2527.35 | I98: 2624.70 | J98: 2701.40 | K98: 2548 | L98: 2373.95 | M98: 0.12543
A99: 90 | B99: CGPOWER | C99: 37.6 | D99: 37.53 | E99: 37.02 | F99: 36.43 | G99: 35.92 | H99: 38.12 | I99: 38.63 | J99: 39.22 | K99: 38.05 | L99: 36.95 | M99: 37.15189
A100: 91 | B100: CHAMBLFERT | C100: 176.05 | D100: 175.57 | E100: 171.18 | F100: 166.32 | G100: 161.93 | H100: 180.43 | I100: 184.82 | J100: 189.68 | K100: 179.95 | L100: 170.7 | M100: 4.57038
A101: 92 | B101: CHENNPETRO | C101: 242.15 | D101: 242.17 | E101: 236.63 | F101: 231.12 | G101: 225.58 | H101: 247.68 | I101: 253.22 | J101: 258.73 | K101: 247.7 | L101: 236.65 | M101: 7.06361
A102: 93 | B102: CHOLAFIN | C102: 1172.3 | D102: 1161.13 | E102: 1141.12 | F102: 1109.93 | G102: 1089.92 | H102: 1192.32 | I102: 1212.33 | J102: 1243.52 | K102: 1181.15 | L102: 1129.95 | M102: 7.47226
A103: 94 | B103: CIPLA | C103: 517.3 | D103: 513.80 | E103: 507.75 | F103: 498.20 | G103: 492.15 | H103: 523.35 | I103: 529.40 | J103: 538.95 | K103: 519.85 | L103: 504.25 | M103: 22.03919
A104: 95 | B104: COALINDIA | C104: 224.65 | D104: 225.07 | E104: 222.63 | F104: 220.62 | G104: 218.18 | H104: 227.08 | I104: 229.52 | J104: 231.53 | K104: 227.5 | L104: 223.05 | M104: 153.89786
A105: 96 | B105: COCHINSHIP | C105: 363.95 | D105: 363.22 | E105: 361.33 | F105: 358.72 | G105: 356.83 | H105: 365.83 | I105: 367.72 | J105: 370.33 | K105: 365.1 | L105: 360.6 | M105: 0.52901
A106: 97 | B106: COFFEEDAY | C106: 266.65 | D106: 266.92 | E106: 263.93 | F106: 261.22 | G106: 258.23 | H106: 269.63 | I106: 272.62 | J106: 275.33 | K106: 269.9 | L106: 264.2 | M106: 1.22892
A107: 98 | B107: COLPAL | C107: 1280.1 | D107: 1281.67 | E107: 1273.33 | F107: 1266.57 | G107: 1258.23 | H107: 1288.43 | I107: 1296.77 | J107: 1303.53 | K107: 1290 | L107: 1274.9 | M107: 5.29589
A108: 99 | B108: CONCOR | C108: 655.5 | D108: 657.50 | E108: 650.00 | F108: 644.50 | G108: 637.00 | H108: 663.00 | I108: 670.50 | J108: 676.00 | K108: 665 | L108: 652 | M108: 16.83954
A109: 100 | B109: COROMANDEL | C109: 449.85 | D109: 449.28 | E109: 443.67 | F109: 437.48 | G109: 431.87 | H109: 455.47 | I109: 461.08 | J109: 467.27 | K109: 454.9 | L109: 443.1 | M109: 1.58045
A110: 101 | B110: COX&KINGS | C110: 155.6 | D110: 154.68 | E110: 152.02 | F110: 148.43 | G110: 145.77 | H110: 158.27 | I110: 160.93 | J110: 164.52 | K110: 157.35 | L110: 151.1 | M110: 0.42979
A111: 102 | B111: CRISIL | C111: 1648.65 | D111: 1648.83 | E111: 1637.77 | F111: 1626.88 | G111: 1615.82 | H111: 1659.72 | I111: 1670.78 | J111: 1681.67 | K111: 1659.9 | L111: 1637.95 | M111: 0.02859
A112: 103 | B112: CROMPTON | C112: 213.95 | D112: 215.50 | E112: 210.55 | F112: 207.15 | G112: 202.20 | H112: 218.90 | I112: 223.85 | J112: 227.25 | K112: 220.45 | L112: 212.1 | M112: 3.97138
A113: 104 | B113: CUB | C113: 191 | D113: 191.85 | E113: 188.95 | F113: 186.90 | G113: 184.00 | H113: 193.90 | I113: 196.80 | J113: 198.85 | K113: 194.75 | L113: 189.8 | M113: 6.74779
A114: 105 | B114: CUMMINSIND | C114: 788.2 | D114: 793.57 | E114: 779.13 | F114: 770.07 | G114: 755.63 | H114: 802.63 | I114: 817.07 | J114: 826.13 | K114: 808 | L114: 784.5 | M114: 5.32524
A115: 106 | B115: CYIENT | C115: 609.5 | D115: 609.80 | E115: 600.75 | F115: 592.00 | G115: 582.95 | H115: 618.55 | I115: 627.60 | J115: 636.35 | K115: 618.85 | L115: 601.05 | M115: 4.28906
A116: 107 | B116: DABUR | C116: 443.65 | D116: 439.68 | E116: 431.17 | F116: 418.68 | G116: 410.17 | H116: 452.17 | I116: 460.68 | J116: 473.17 | K116: 448.2 | L116: 427.2 | M116: 109.694
A117: 108 | B117: DBCORP | C117: 176.25 | D117: 174.83 | E117: 170.67 | F117: 165.08 | G117: 160.92 | H117: 180.42 | I117: 184.58 | J117: 190.17 | K117: 179 | L117: 169.25 | M117: 0.30895
A118: 109 | B118: DBL | C118: 321.1 | D118: 324.62 | E118: 314.98 | F118: 308.87 | G118: 299.23 | H118: 330.73 | I118: 340.37 | J118: 346.48 | K118: 334.25 | L118: 318.5 | M118: 1.19611
A119: 110 | B119: DBREALTY | C119: 25.55 | D119: 25.28 | E119: 25.02 | F119: 24.48 | G119: 24.22 | H119: 25.82 | I119: 26.08 | J119: 26.62 | K119: 25.55 | L119: 24.75 | M119: 1.08321
A120: 111 | B120: DCAL | C120: 207.45 | D120: 207.07 | E120: 204.28 | F120: 201.12 | G120: 198.33 | H120: 210.23 | I120: 213.02 | J120: 216.18 | K120: 209.85 | L120: 203.9 | M120: 1.59344
A121: 112 | B121: DCBBANK | C121: 178.15 | D121: 177.38 | E121: 175.82 | F121: 173.48 | G121: 171.92 | H121: 179.72 | I121: 181.28 | J121: 183.62 | K121: 178.95 | L121: 175.05 | M121: 8.70233
A122: 113 | B122: DCMSHRIRAM | C122: 335.6 | D122: 334.18 | E122: 329.37 | F122: 323.13 | G122: 318.32 | H122: 340.42 | I122: 345.23 | J122: 351.47 | K122: 339 | L122: 327.95 | M122: 1.00648
A123: 114 | B123: DEEPAKFERT | C123: 117.05 | D123: 116.28 | E123: 114.57 | F123: 112.08 | G123: 110.37 | H123: 118.77 | I123: 120.48 | J123: 122.97 | K123: 118 | L123: 113.8 | M123: 4.41163
A124: 115 | B124: DELTACORP | C124: 230.9 | D124: 230.37 | E124: 227.03 | F124: 223.17 | G124: 219.83 | H124: 234.23 | I124: 237.57 | J124: 241.43 | K124: 233.7 | L124: 226.5 | M124: 7.11719
A125: 116 | B125: DEN | C125: 71.5 | D125: 71.45 | E125: 71.25 | F125: 71.00 | G125: 70.80 | H125: 71.70 | I125: 71.90 | J125: 72.15 | K125: 71.65 | L125: 71.2 | M125: 18.75564
A126: 117 | B126: DENABANK | C126: 12.5 | D126: 12.57 | E126: 12.28 | F126: 12.07 | G126: 11.78 | H126: 12.78 | I126: 13.07 | J126: 13.28 | K126: 12.85 | L126: 12.35 | M126: 9.82895
A127: 118 | B127: DHFL | C127: 135.9 | D127: 140.97 | E127: 124.43 | F127: 112.97 | G127: 96.43 | H127: 152.43 | I127: 168.97 | J127: 180.43 | K127: 157.5 | L127: 129.5 | M127: 930.32836
A128: 119 | B128: DISHTV | C128: 23.65 | D128: 23.58 | E128: 22.37 | F128: 21.08 | G128: 19.87 | H128: 24.87 | I128: 26.08 | J128: 27.37 | K128: 24.8 | L128: 22.3 | M128: 460.41051
A129: 120 | B129: DIVISLAB | C129: 1506.2 | D129: 1506.87 | E129: 1493.83 | F129: 1481.47 | G129: 1468.43 | H129: 1519.23 | I129: 1532.27 | J129: 1544.63 | K129: 1519.9 | L129: 1494.5 | M129: 5.12854
A130: 121 | B130: DIXON | C130: 2268.55 | D130: 2262.85 | E130: 2230.70 | F130: 2192.85 | G130: 2160.70 | H130: 2300.70 | I130: 2332.85 | J130: 2370.70 | K130: 2295 | L130: 2225 | M130: 0.18791
A131: 122 | B131: DLF | C131: 164.85 | D131: 163.78 | E131: 159.57 | F131: 154.28 | G131: 150.07 | H131: 169.07 | I131: 173.28 | J131: 178.57 | K131: 168 | L131: 158.5 | M131: 55.87357
A132: 123 | B132: DMART | C132: 1374.85 | D132: 1375.33 | E132: 1366.77 | F132: 1358.68 | G132: 1350.12 | H132: 1383.42 | I132: 1391.98 | J132: 1400.07 | K132: 1383.9 | L132: 1367.25 | M132: 2.87562
A133: 124 | B133: DREDGECORP | C133: 409 | D133: 414.82 | E133: 401.13 | F133: 393.27 | G133: 379.58 | H133: 422.68 | I133: 436.37 | J133: 444.23 | K133: 428.5 | L133: 406.95 | M133: 5.49517
A134: 125 | B134: DRREDDY | C134: 2720.8 | D134: 2700.12 | E134: 2671.68 | F134: 2622.57 | G134: 2594.13 | H134: 2749.23 | I134: 2777.67 | J134: 2826.78 | K134: 2728.55 | L134: 2651 | M134: 12.31518
A135: 126 | B135: ECLERX | C135: 1074.35 | D135: 1051.50 | E135: 1008.00 | F135: 941.65 | G135: 898.15 | H135: 1117.85 | I135: 1161.35 | J135: 1227.70 | K135: 1095 | L135: 985.15 | M135: 0.60186
A136: 127 | B136: EDELWEISS | C136: 154.05 | D136: 153.38 | E136: 150.82 | F136: 147.58 | G136: 145.02 | H136: 156.62 | I136: 159.18 | J136: 162.42 | K136: 155.95 | L136: 150.15 | M136: 14.53709
A137: 128 | B137: EICHERMOT | C137: 19005.75 | D137: 19006.93 | E137: 18834.92 | F137: 18664.08 | G137: 18492.07 | H137: 19177.77 | I137: 19349.78 | J137: 19520.62 | K137: 19178.95 | L137: 18836.1 | M137: 0.67511
A138: 129 | B138: EIDPARRY | C138: 202.4 | D138: 201.57 | E138: 199.13 | F138: 195.87 | G138: 193.43 | H138: 204.83 | I138: 207.27 | J138: 210.53 | K138: 204 | L138: 198.3 | M138: 0.50656
A139: 130 | B139: EIHOTEL | C139: 201.85 | D139: 198.65 | E139: 188.30 | F139: 174.75 | G139: 164.40 | H139: 212.20 | I139: 222.55 | J139: 236.10 | K139: 209 | L139: 185.1 | M139: 34.69316
A140: 131 | B140: EMAMILTD | C140: 410.9 | D140: 411.47 | E140: 400.43 | F140: 389.97 | G140: 378.93 | H140: 421.93 | I140: 432.97 | J140: 443.43 | K140: 422.5 | L140: 401 | M140: 5.3896
A141: 132 | B141: ENDURANCE | C141: 1147.95 | D141: 1142.67 | E141: 1119.53 | F141: 1091.12 | G141: 1067.98 | H141: 1171.08 | I141: 1194.22 | J141: 1222.63 | K141: 1165.8 | L141: 1114.25 | M141: 0.11689
A142: 133 | B142: ENGINERSIN | C142: 112.6 | D142: 113.13 | E142: 110.92 | F142: 109.23 | G142: 107.02 | H142: 114.82 | I142: 117.03 | J142: 118.72 | K142: 115.35 | L142: 111.45 | M142: 21.12035
A143: 134 | B143: EQUITAS | C143: 119.95 | D143: 119.05 | E143: 117.10 | F143: 114.25 | G143: 112.30 | H143: 121.90 | I143: 123.85 | J143: 126.70 | K143: 121 | L143: 116.2 | M143: 12.5567
A144: 135 | B144: ERIS | C144: 627.4 | D144: 634.63 | E144: 608.27 | F144: 589.13 | G144: 562.77 | H144: 653.77 | I144: 680.13 | J144: 699.27 | K144: 661 | L144: 615.5 | M144: 2.82217
A145: 136 | B145: EROSMEDIA | C145: 77.1 | D145: 77.67 | E145: 75.13 | F145: 73.17 | G145: 70.63 | H145: 79.63 | I145: 82.17 | J145: 84.13 | K145: 80.2 | L145: 75.7 | M145: 2.54382
A146: 137 | B146: ESCORTS | C146: 659.6 | D146: 657.62 | E146: 650.98 | F146: 642.37 | G146: 635.73 | H146: 666.23 | I146: 672.87 | J146: 681.48 | K146: 664.25 | L146: 649 | M146: 12.04112
A147: 138 | B147: EVEREADY | C147: 214.1 | D147: 213.45 | E147: 211.90 | F147: 209.70 | G147: 208.15 | H147: 215.65 | I147: 217.20 | J147: 219.40 | K147: 215 | L147: 211.25 | M147: 1.41887
A148: 139 | B148: EXIDEIND | C148: 226.9 | D148: 225.50 | E148: 223.00 | F148: 219.10 | G148: 216.60 | H148: 229.40 | I148: 231.90 | J148: 235.80 | K148: 228 | L148: 221.6 | M148: 24.86423
A149: 140 | B149: FCONSUMER | C149: 41.55 | D149: 41.10 | E149: 40.25 | F149: 38.95 | G149: 38.10 | H149: 42.40 | I149: 43.25 | J149: 44.55 | K149: 41.95 | L149: 39.8 | M149: 15.22657
A150: 141 | B150: FEDERALBNK | C150: 85.9 | D150: 86.08 | E150: 84.92 | F150: 83.93 | G150: 82.77 | H150: 87.07 | I150: 88.23 | J150: 89.22 | K150: 87.25 | L150: 85.1 | M150: 161.87111
A151: 142 | B151: FINCABLES | C151: 415.2 | D151: 416.38 | E151: 410.82 | F151: 406.43 | G151: 400.87 | H151: 420.77 | I151: 426.33 | J151: 430.72 | K151: 421.95 | L151: 412 | M151: 0.27334
A152: 143 | B152: FINPIPE | C152: 513.65 | D152: 518.22 | E152: 507.43 | F152: 501.22 | G152: 490.43 | H152: 524.43 | I152: 535.22 | J152: 541.43 | K152: 529 | L152: 512 | M152: 0.22098
A153: 144 | B153: FLFL | C153: 426.6 | D153: 424.68 | E153: 416.42 | F153: 406.23 | G153: 397.97 | H153: 434.87 | I153: 443.13 | J153: 453.32 | K153: 432.95 | L153: 414.5 | M153: 0.69474
A154: 145 | B154: FSL | C154: 49.05 | D154: 48.58 | E154: 47.37 | F154: 45.68 | G154: 44.47 | H154: 50.27 | I154: 51.48 | J154: 53.17 | K154: 49.8 | L154: 46.9 | M154: 15.56783
A155: 146 | B155: GAIL | C155: 332.15 | D155: 329.52 | E155: 325.13 | F155: 318.12 | G155: 313.73 | H155: 336.53 | I155: 340.92 | J155: 347.93 | K155: 333.9 | L155: 322.5 | M155: 110.52707
A156: 147 | B156: GATI | C156: 73.8 | D156: 73.93 | E156: 72.87 | F156: 71.93 | G156: 70.87 | H156: 74.87 | I156: 75.93 | J156: 76.87 | K156: 75 | L156: 73 | M156: 2.52512
A157: 148 | B157: GDL | C157: 102.9 | D157: 102.20 | E157: 100.70 | F157: 98.50 | G157: 97.00 | H157: 104.40 | I157: 105.90 | J157: 108.10 | K157: 103.7 | L157: 100 | M157: 2.70598
A158: 149 | B158: GEPIL | C158: 771.85 | D158: 776.97 | E158: 763.93 | F158: 756.02 | G158: 742.98 | H158: 784.88 | I158: 797.92 | J158: 805.83 | K158: 790 | L158: 769.05 | M158: 0.0467
A159: 150 | B159: GESHIP | C159: 302.75 | D159: 299.92 | E159: 292.93 | F159: 283.12 | G159: 276.13 | H159: 309.73 | I159: 316.72 | J159: 326.53 | K159: 306.9 | L159: 290.1 | M159: 0.48777
A160: 151 | B160: GET&D | C160: 293.6 | D160: 294.18 | E160: 289.87 | F160: 286.13 | G160: 281.82 | H160: 297.92 | I160: 302.23 | J160: 305.97 | K160: 298.5 | L160: 290.45 | M160: 0.23494
A161: 152 | B161: GHCL | C161: 250.3 | D161: 249.23 | E161: 246.07 | F161: 241.83 | G161: 238.67 | H161: 253.47 | I161: 256.63 | J161: 260.87 | K161: 252.4 | L161: 245 | M161: 0.8581
A162: 153 | B162: GICRE | C162: 243.4 | D162: 244.42 | E162: 241.13 | F162: 238.87 | G162: 235.58 | H162: 246.68 | I162: 249.97 | J162: 252.23 | K162: 247.7 | L162: 242.15 | M162: 0.45644
A163: 154 | B163: GILLETTE | C163: 6500.05 | D163: 6504.75 | E163: 6480.50 | F163: 6460.95 | G163: 6436.70 | H163: 6524.30 | I163: 6548.55 | J163: 6568.10 | K163: 6529 | L163: 6485.2 | M163: 0.22609
A164: 155 | B164: GLAXO | C164: 1409.25 | D164: 1408.07 | E164: 1391.13 | F164: 1373.02 | G164: 1356.08 | H164: 1426.18 | I164: 1443.12 | J164: 1461.23 | K164: 1425 | L164: 1389.95 | M164: 0.24542
A165: 156 | B165: GLENMARK | C165: 651.65 | D165: 647.47 | E165: 640.93 | F165: 630.22 | G165: 623.68 | H165: 658.18 | I165: 664.72 | J165: 675.43 | K165: 654 | L165: 636.75 | M165: 3.66009
A166: 157 | B166: GMDCLTD | C166: 85.2 | D166: 85.78 | E166: 83.97 | F166: 82.73 | G166: 80.92 | H166: 87.02 | I166: 88.83 | J166: 90.07 | K166: 87.6 | L166: 84.55 | M166: 0.95421
A167: 158 | B167: GMRINFRA | C167: 15.2 | D167: 15.30 | E167: 14.90 | F167: 14.60 | G167: 14.20 | H167: 15.60 | I167: 16.00 | J167: 16.30 | K167: 15.7 | L167: 15 | M167: 437.41779
A168: 159 | B168: GNFC | C168: 328.45 | D168: 328.38 | E168: 325.97 | F168: 323.48 | G168: 321.07 | H168: 330.87 | I168: 333.28 | J168: 335.77 | K168: 330.8 | L168: 325.9 | M168: 2.25848
A169: 160 | B169: GODFRYPHLP | C169: 929.3 | D169: 932.82 | E169: 922.63 | F169: 915.97 | G169: 905.78 | H169: 939.48 | I169: 949.67 | J169: 956.33 | K169: 943 | L169: 926.15 | M169: 0.51646
A170: 161 | B170: GODREJAGRO | C170: 497 | D170: 497.42 | E170: 490.08 | F170: 483.17 | G170: 475.83 | H170: 504.33 | I170: 511.67 | J170: 518.58 | K170: 504.75 | L170: 490.5 | M170: 0.94876
A171: 162 | B171: GODREJCP | C171: 709.3 | D171: 705.78 | E171: 696.57 | F171: 683.83 | G171: 674.62 | H171: 718.52 | I171: 727.73 | J171: 740.47 | K171: 715 | L171: 693.05 | M171: 30.7346
A172: 163 | B172: GODREJIND | C172: 503.3 | D172: 499.92 | E172: 491.68 | F172: 480.07 | G172: 471.83 | H172: 511.53 | I172: 519.77 | J172: 531.38 | K172: 508.15 | L172: 488.3 | M172: 3.04718
A173: 164 | B173: GODREJPROP | C173: 741.9 | D173: 745.53 | E173: 736.37 | F173: 730.83 | G173: 721.67 | H173: 751.07 | I173: 760.23 | J173: 765.77 | K173: 754.7 | L173: 740 | M173: 4.86039
A174: 165 | B174: GPPL | C174: 84.95 | D174: 85.88 | E174: 83.57 | F174: 82.18 | G174: 79.87 | H174: 87.27 | I174: 89.58 | J174: 90.97 | K174: 88.2 | L174: 84.5 | M174: 3.67038
A175: 166 | B175: GRANULES | C175: 91.35 | D175: 91.83 | E175: 89.82 | F175: 88.28 | G175: 86.27 | H175: 93.37 | I175: 95.38 | J175: 96.92 | K175: 93.85 | L175: 90.3 | M175: 12.97284
A176: 167 | B176: GRAPHITE | C176: 565.55 | D176: 554.72 | E176: 543.88 | F176: 522.22 | G176: 511.38 | H176: 576.38 | I176: 587.22 | J176: 608.88 | K176: 565.55 | L176: 533.05 | M176: 19.57029
A177: 168 | B177: GRASIM | C177: 721 | D177: 722.98 | E177: 712.52 | F177: 704.03 | G177: 693.57 | H177: 731.47 | I177: 741.93 | J177: 750.42 | K177: 733.45 | L177: 714.5 | M177: 26.16247
A178: 169 | B178: GREAVESCOT | C178: 122.65 | D178: 122.85 | E178: 121.20 | F178: 119.75 | G178: 118.10 | H178: 124.30 | I178: 125.95 | J178: 127.40 | K178: 124.5 | L178: 121.4 | M178: 4.15722
A179: 170 | B179: GREENPLY | C179: 129.1 | D179: 129.30 | E179: 127.80 | F179: 126.50 | G179: 125.00 | H179: 130.60 | I179: 132.10 | J179: 133.40 | K179: 130.8 | L179: 128 | M179: 0.37865
A180: 171 | B180: GRUH | C180: 208.6 | D180: 208.97 | E180: 204.23 | F180: 199.87 | G180: 195.13 | H180: 213.33 | I180: 218.07 | J180: 222.43 | K180: 213.7 | L180: 204.6 | M180: 31.89501
A181: 172 | B181: GSFC | C181: 97.1 | D181: 96.50 | E181: 95.25 | F181: 93.40 | G181: 92.15 | H181: 98.35 | I181: 99.60 | J181: 101.45 | K181: 97.75 | L181: 94.65 | M181: 13.24518
A182: 173 | B182: GSKCONS | C182: 7330.85 | D182: 7296.90 | E182: 7233.80 | F182: 7136.75 | G182: 7073.65 | H182: 7393.95 | I182: 7457.05 | J182: 7554.10 | K182: 7360 | L182: 7199.85 | M182: 0.20055
A183: 174 | B183: GSPL | C183: 176.05 | D183: 176.00 | E183: 173.95 | F183: 171.85 | G183: 169.80 | H183: 178.10 | I183: 180.15 | J183: 182.25 | K183: 178.05 | L183: 173.9 | M183: 1.40721
A184: 175 | B184: GUJALKALI | C184: 506.5 | D184: 503.03 | E184: 496.17 | F184: 485.83 | G184: 478.97 | H184: 513.37 | I184: 520.23 | J184: 530.57 | K184: 509.9 | L184: 492.7 | M184: 1.10045
A185: 176 | B185: GUJFLUORO | C185: 863.05 | D185: 861.02 | E185: 853.03 | F185: 843.02 | G185: 835.03 | H185: 871.03 | I185: 879.02 | J185: 889.03 | K185: 869 | L185: 851 | M185: 0.17981
A186: 177 | B186: GUJGASLTD | C186: 127.55 | D186: 127.77 | E186: 125.78 | F186: 124.02 | G186: 122.03 | H186: 129.53 | I186: 131.52 | J186: 133.28 | K186: 129.75 | L186: 126 | M186: 0.57263
A187: 178 | B187: GULFOILLUB | C187: 905.85 | D187: 902.05 | E187: 893.85 | F187: 881.85 | G187: 873.65 | H187: 914.05 | I187: 922.25 | J187: 934.25 | K187: 910.25 | L187: 890.05 | M187: 0.14286
A188: 179 | B188: GVKPIL | C188: 6.55 | D188: 6.63 | E188: 6.42 | F188: 6.28 | G188: 6.07 | H188: 6.77 | I188: 6.98 | J188: 7.12 | K188: 6.85 | L188: 6.5 | M188: 14.47582
A189: 180 | B189: HATHWAY | C189: 32 | D189: 31.95 | E189: 31.90 | F189: 31.80 | G189: 31.75 | H189: 32.05 | I189: 32.10 | J189: 32.20 | K189: 32 | L189: 31.85 | M189: 47.80141
A190: 181 | B190: HATSUN | C190: 663.95 | D190: 661.67 | E190: 653.28 | F190: 642.62 | G190: 634.23 | H190: 672.33 | I190: 680.72 | J190: 691.38 | K190: 670.05 | L190: 651 | M190: 0.06566
A191: 182 | B191: HAVELLS | C191: 713.45 | D191: 707.27 | E191: 698.28 | F191: 683.12 | G191: 674.13 | H191: 722.43 | I191: 731.42 | J191: 746.58 | K191: 716.25 | L191: 692.1 | M191: 16.99328
A192: 183 | B192: HCC | C192: 12.35 | D192: 12.37 | E192: 12.13 | F192: 11.92 | G192: 11.68 | H192: 12.58 | I192: 12.82 | J192: 13.03 | K192: 12.6 | L192: 12.15 | M192: 30.48119
A193: 184 | B193: HCL-INSYS | C193: 20 | D193: 19.95 | E193: 19.45 | F193: 18.90 | G193: 18.40 | H193: 20.50 | I193: 21.00 | J193: 21.55 | K193: 20.45 | L193: 19.4 | M193: 6.28988
A194: 185 | B194: HCLTECH | C194: 1005.2 | D194: 1005.03 | E194: 986.92 | F194: 968.63 | G194: 950.52 | H194: 1023.32 | I194: 1041.43 | J194: 1059.72 | K194: 1023.15 | L194: 986.75 | M194: 45.29214
A195: 186 | B195: HDFC | C195: 1922.35 | D195: 1913.62 | E195: 1886.03 | F195: 1849.72 | G195: 1822.13 | H195: 1949.93 | I195: 1977.52 | J195: 2013.83 | K195: 1941.2 | L195: 1877.3 | M195: 53.03839
A196: 187 | B196: HDFCBANK | C196: 2079.95 | D196: 2063.90 | E196: 2038.05 | F196: 1996.15 | G196: 1970.30 | H196: 2105.80 | I196: 2131.65 | J196: 2173.55 | K196: 2089.75 | L196: 2022 | M196: 41.44851
A197: 188 | B197: HDIL | C197: 26.25 | D197: 26.18 | E197: 25.97 | F197: 25.68 | G197: 25.47 | H197: 26.47 | I197: 26.68 | J197: 26.97 | K197: 26.4 | L197: 25.9 | M197: 19.78662
A198: 189 | B198: HEG | C198: 2393.05 | D198: 2342.72 | E198: 2292.38 | F198: 2191.72 | G198: 2141.38 | H198: 2443.38 | I198: 2493.72 | J198: 2594.38 | K198: 2393.05 | L198: 2242.05 | M198: 6.11883
A199: 190 | B199: HEIDELBERG | C199: 148.05 | D199: 147.88 | E199: 145.77 | F199: 143.48 | G199: 141.37 | H199: 150.17 | I199: 152.28 | J199: 154.57 | K199: 150 | L199: 145.6 | M199: 0.49562
A200: 191 | B200: HERITGFOOD | C200: 494.95 | D200: 486.80 | E200: 475.60 | F200: 456.25 | G200: 445.05 | H200: 506.15 | I200: 517.35 | J200: 536.70 | K200: 498 | L200: 467.45 | M200: 2.07905
A201: 192 | B201: HEROMOTOCO | C201: 2613.95 | D201: 2603.22 | E201: 2571.73 | F201: 2529.52 | G201: 2498.03 | H201: 2645.43 | I201: 2676.92 | J201: 2719.13 | K201: 2634.7 | L201: 2561 | M201: 19.01346
A202: 193 | B202: HEXAWARE | C202: 342.6 | D202: 334.35 | E202: 320.95 | F202: 299.30 | G202: 285.90 | H202: 356.00 | I202: 369.40 | J202: 391.05 | K202: 347.75 | L202: 312.7 | M202: 70.42767
A203: 194 | B203: HFCL | C203: 22.8 | D203: 22.97 | E203: 22.48 | F203: 22.17 | G203: 21.68 | H203: 23.28 | I203: 23.77 | J203: 24.08 | K203: 23.45 | L203: 22.65 | M203: 27.11798
A204: 195 | B204: HIMATSEIDE | C204: 201.3 | D204: 202.67 | E204: 198.63 | F204: 195.97 | G204: 191.93 | H204: 205.33 | I204: 209.37 | J204: 212.03 | K204: 206.7 | L204: 200 | M204: 0.21711
A205: 196 | B205: HINDALCO | C205: 208.5 | D205: 207.62 | E205: 205.23 | F205: 201.97 | G205: 199.58 | H205: 210.88 | I205: 213.27 | J205: 216.53 | K205: 210 | L205: 204.35 | M205: 65.53608
A206: 197 | B206: HINDCOPPER | C206: 46.35 | D206: 46.28 | E206: 45.92 | F206: 45.48 | G206: 45.12 | H206: 46.72 | I206: 47.08 | J206: 47.52 | K206: 46.65 | L206: 45.85 | M206: 3.48903
... 304 more rows

Sheet Bulk Deals
E6: Back To Main Page
A7: Subject : | B7: BULK DEAL | D7: =Main!B10 -> 2019-02-01
A9: Date | B9: Scrip code | C9: Scrip Name | D9: Client Name | E9: Buy / Sell | F9: Quantity Traded | G9: Trade Price / Wt.Avg.trade price | H9: Exchange
A10: 2019-01-31 | B10: 537766 | C10: BCP | D10: KAMAL BABULAL AGARWAL | E10: SELL | F10: 566,641 | G10: 41.7 | H10: BSE
A11: 2019-01-31 | B11: 537766 | C11: BCP | D11: KAMAL BABULAL AGARWAL | E11: BUY | F11: 556,040 | G11: 42.12 | H11: BSE
A12: 2019-01-31 | B12: 531502 | C12: ESARIND | D12: PRABHA VISHWAMANI TIWARI . | E12: SELL | F12: 128619 | G12: 0.81 | H12: BSE
A13: 2019-01-31 | B13: 539009 | C13: GBLIL | D13: GAURISH SHANTILAL SHAH | E13: SELL | F13: 71417 | G13: 100.59 | H13: BSE
A14: 2019-01-31 | B14: 539009 | C14: GBLIL | D14: GAURISH SHANTILAL SHAH | E14: BUY | F14: 86795 | G14: 100.68 | H14: BSE
A15: 2019-01-31 | B15: 539009 | C15: GBLIL | D15: SUNIL LAXMINARAYAN JHA | E15: SELL | F15: 46795 | G15: 100.45 | H15: BSE
A16: 2019-01-31 | B16: 539009 | C16: GBLIL | D16: SUNIL LAXMINARAYAN JHA | E16: BUY | F16: 43732 | G16: 100.64 | H16: BSE
A17: 2019-01-31 | B17: 539009 | C17: GBLIL | D17: GLORIOUS VINCOM PRIVATE LIMITED | E17: BUY | F17: 102000 | G17: 100.93 | H17: BSE
A18: 2019-01-31 | B18: 539009 | C18: GBLIL | D18: GLORIOUS VINCOM PRIVATE LIMITED | E18: SELL | F18: 150000 | G18: 100.45 | H18: BSE
A19: 2019-01-31 | B19: 532773 | C19: GLOBALVECT | D19: PASHUPATI CAPITAL SERVICE PVT LTD | E19: BUY | F19: 75000 | G19: 57.5 | H19: BSE
A20: 2019-01-31 | B20: 532773 | C20: GLOBALVECT | D20: PASHUPATI CAPITAL SERVICE PVT LTD | E20: SELL | F20: 29 | G20: 56.5 | H20: BSE
A21: 2019-01-31 | B21: 532773 | C21: GLOBALVECT | D21: MULTIPLIER SHARE & STOCK ADVISORS PRIVATE LIMITED | E21: SELL | F21: 75000 | G21: 57.5 | H21: BSE
A22: 2019-01-31 | B22: 506134 | C22: INTELLCAP | D22: SWAPNA GIRISH SATHE | E22: BUY | F22: 1450000 | G22: 7.15 | H22: BSE
A23: 2019-01-31 | B23: 506134 | C23: INTELLCAP | D23: K A INVESTMENTS CONSULTANCY LLP | E23: SELL | F23: 1,442,200 | G23: 7.15 | H23: BSE
A24: 2019-01-31 | B24: 538765 | C24: JSHL | D24: JAWAHAR LAL AGARWAL | E24: SELL | F24: 75,000 | G24: 8.8 | H24: BSE
A25: 2019-01-31 | B25: 530805 | C25: OIVL | D25: AMBE PROJECTS LIMITED | E25: BUY | F25: 30,000 | G25: 18.5 | H25: BSE
A26: 2019-01-31 | B26: 530805 | C26: OIVL | D26: PUNIT SAMPAT | E26: SELL | F26: 30,000 | G26: 18.5 | H26: BSE
A27: 2019-01-31 | B27: 530805 | C27: OIVL | D27: SWETAPUNIT SAMPAT | E27: SELL | F27: 25,000 | G27: 18.5 | H27: BSE
A28: 2019-01-31 | B28: 532693 | C28: PUNJLLOYD | D28: IFCI LTD. | E28: SELL | F28: 2,965,255 | G28: 2.6 | H28: BSE
A29: 2019-01-31 | B29: 540590 | C29: RIDDHICORP | D29: MAULIK RAJENDRABHAI SHAH | E29: BUY | F29: 24,500 | G29: 61.5 | H29: BSE
A30: 2019-01-31 | B30: 540590 | C30: RIDDHICORP | D30: CHAITALEE RAJANBHAI SHAH | E30: SELL | F30: 24,500 | G30: 47.21 | H30: BSE
A31: 2019-01-31 | B31: 540590 | C31: RIDDHICORP | D31: SANJEEV VIJAYKUMAR DADDE | E31: BUY | F31: 35,000 | G31: 48.45 | H31: BSE
A32: 2019-01-31 | B32: 540590 | C32: RIDDHICORP | D32: SANJEEV VIJAYKUMAR DADDE | E32: SELL | F32: 35,000 | G32: 57.55 | H32: BSE
A33: 2019-01-31 | B33: 540590 | C33: RIDDHICORP | D33: TARUNKUMAR LAXMANBHAI RAJPUT | E33: BUY | F33: 17,500 | G33: 54.1 | H33: BSE
A34: 2019-01-31 | B34: 540590 | C34: RIDDHICORP | D34: TARUNKUMAR LAXMANBHAI RAJPUT | E34: SELL | F34: 17,500 | G34: 54.66 | H34: BSE
A35: 2019-01-31 | B35: 500366 | C35: ROLTA | D35: UNION BANK OF INDIA | E35: SELL | F35: 1,378,515 | G35: 5.12 | H35: BSE
A36: 2019-01-31 | B36: 530943 | C36: SABTN | D36: UNION BANK OF INDIA | E36: SELL | F36: 229,152 | G36: 4.09 | H36: BSE
A37: 2019-01-31 | B37: 506906 | C37: SCBL | D37: NILIMA SATISH DEODHAR | E37: BUY | F37: 74731 | G37: 7.68 | H37: BSE
A38: 2019-01-31 | B38: 539520 | C38: SHAILJA | D38: ANISH SAGGAR | E38: SELL | F38: 32000 | G38: 15.12 | H38: BSE
A39: 2019-01-31 | B39: DHFL | C39: Dewan Housing Fin Corp | D39: CHANDARANA INTERMEDIARIES BROKERS PRIVATE LIMITED | E39: BUY | F39: 1158869 | G39: 138.6 | H39: NSE
A40: 2019-01-31 | B40: DHFL | C40: Dewan Housing Fin Corp | D40: CROSSLAND TRADING CO | E40: BUY | F40: 1938159 | G40: 141.51 | H40: NSE
A41: 2019-01-31 | B41: DHFL | C41: Dewan Housing Fin Corp | D41: GENUINE STOCK BROKERS PVT LTD | E41: BUY | F41: 1885931 | G41: 140.14 | H41: NSE
A42: 2019-01-31 | B42: DHFL | C42: Dewan Housing Fin Corp | D42: GRAVITON RESEARCH CAPITAL LLP | E42: BUY | F42: 2434271 | G42: 140.51 | H42: NSE
A43: 2019-01-31 | B43: DHFL | C43: Dewan Housing Fin Corp | D43: PURITY TRADEMAX LLP | E43: BUY | F43: 2137823 | G43: 140.67 | H43: NSE
A44: 2019-01-31 | B44: DHFL | C44: Dewan Housing Fin Corp | D44: TOWER RESEARCH CAPITAL MARKETS INDIA PRIVATE LIMITED | E44: BUY | F44: 5936169 | G44: 140.69 | H44: NSE
A45: 2019-01-31 | B45: JETAIRWAYS | C45: Jet Airways (India) Ltd. | D45: TOWER RESEARCH CAPITAL MARKETS INDIA PRIVATE LIMITED | E45: BUY | F45: 603831 | G45: 238.57 | H45: NSE
A46: 2019-01-31 | B46: KEERTI | C46: Keerti Know & Skill Ltd. | D46: HITESH K KANANI HUF | E46: BUY | F46: 42000 | G46: 56.79 | H46: NSE
A47: 2019-01-31 | B47: PRIMESECU | C47: Prime Securities Limited | D47: K L B SECURITIES PVT LTD | E47: BUY | F47: 200000 | G47: 43.25 | H47: NSE
A48: 2019-01-31 | B48: PUNJLLOYD | C48: Punj Lloyd Limited | D48: J M GLOBAL EQUITIES PRIVATE LIMITED | E48: BUY | F48: 2520636 | G48: 2.7 | H48: NSE
A49: 2019-01-31 | B49: TARAJEWELS | C49: Tara Jewels Limited | D49: NAGANNAPRABHAKARAN | E49: BUY | F49: 139655 | G49: 0.8 | H49: NSE
A50: 2019-01-31 | B50: DHFL | C50: Dewan Housing Fin Corp | D50: CHANDARANA INTERMEDIARIES BROKERS PRIVATE LIMITED | E50: SELL | F50: 2296709 | G50: 139.06 | H50: NSE
A51: 2019-01-31 | B51: DHFL | C51: Dewan Housing Fin Corp | D51: CROSSLAND TRADING CO | E51: SELL | F51: 1938159 | G51: 141.61 | H51: NSE
A52: 2019-01-31 | B52: DHFL | C52: Dewan Housing Fin Corp | D52: GENUINE STOCK BROKERS PVT LTD | E52: SELL | F52: 1885931 | G52: 140.26 | H52: NSE
A53: 2019-01-31 | B53: DHFL | C53: Dewan Housing Fin Corp | D53: GRAVITON RESEARCH CAPITAL LLP | E53: SELL | F53: 2434271 | G53: 140.57 | H53: NSE
A54: 2019-01-31 | B54: DHFL | C54: Dewan Housing Fin Corp | D54: PURITY TRADEMAX LLP | E54: SELL | F54: 2137823 | G54: 140.77 | H54: NSE
A55: 2019-01-31 | B55: DHFL | C55: Dewan Housing Fin Corp | D55: TOWER RESEARCH CAPITAL MARKETS INDIA PRIVATE LIMITED | E55: SELL | F55: 5936169 | G55: 140.89 | H55: NSE
A56: 2019-01-31 | B56: JETAIRWAYS | C56: Jet Airways (India) Ltd. | D56: TOWER RESEARCH CAPITAL MARKETS INDIA PRIVATE LIMITED | E56: SELL | F56: 603831 | G56: 238.77 | H56: NSE
A57: 2019-01-31 | B57: KEERTI | C57: Keerti Know & Skill Ltd. | D57: KARNEE INVESTMENT PRIVATE LIMITED | E57: SELL | F57: 26000 | G57: 56.75 | H57: NSE
A58: 2019-01-31 | B58: PRIMESECU | C58: Prime Securities Limited | D58: GEETA CHETAN SHAH | E58: SELL | F58: 200000 | G58: 43.25 | H58: NSE
A59: 2019-01-31 | B59: PUNJLLOYD | C59: Punj Lloyd Limited | D59: IFCI LTD. | E59: SELL | F59: 3030913 | G59: 2.72 | H59: NSE
A60: 2019-01-31 | B60: PUNJLLOYD | C60: Punj Lloyd Limited | D60: J M GLOBAL EQUITIES PRIVATE LIMITED | E60: SELL | F60: 988802 | G60: 2.74 | H60: NSE
A61: 2019-01-31 | B61: SETCO | C61: Setco Automotive Ltd | D61: SETCO ENGINEERING PRIVATE LIMITED | E61: SELL | F61: 700000 | G61: 30.55 | H61: NSE
A62: 2019-01-31 | B62: SUULD | C62: Suumaya Lifestyle Limited | D62: UNICON TIE UP PRIVATE LIMITED | E62: SELL | F62: 144000 | G62: 25.63 | H62: NSE
A63: 2019-01-31 | B63: TARAJEWELS | C63: Tara Jewels Limited | D63: NAGANNAPRABHAKARAN | E63: SELL | F63: 89833 | G63: 0.9 | H63: NSE
A64: 2019-01-31 | B64: TARAJEWELS | C64: Tara Jewels Limited | D64: PUNJAB NATIONAL BANK | E64: SELL | F64: 200000 | G64: 0.8 | H64: NSE
A65: 2019-01-31 | B65: TVVISION | C65: TV Vision Limited | D65: UNION BANK OF INDIA | E65: SELL | F65: 190305 | G65: 3.2 | H65: NSE

Sheet Call Tracker (Equity & F&O)
M5: Back To Main Page
A6: Retail Research Technical Calls & Fundamental Performance Report for the month of January -2019
M7: =Main!B10 -> 2019-02-01
B8: Positional Call
A9: Sr.no | B9: Date | D9: Company | E9: Rec | F9: Rec Price | G9: Stop Loss*** | H9: Call Closed At | I9: Target | J9: Remark | K9: Profit / Loss per Share | L9: Gain / Loss % | M9: Status | N9: Closed Date | O9: NSE Closed Price
A10: 1 | B10: 2018-12-21 | D10: TATAGLOBAL | E10: Buy{} | F10: 217 | G10: 209 | H10: 217 | I10: 235-240 | J10: Neutral | K10: =H10-F10 -> 0 | L10: =K10/F10 -> 0.00% | M10: Neutral | N10: 2019-01-25 | R10: H
A11: 2 | B11: 2018-12-24 | D11: JSWSTEEL | E11: Buy | F11: 299.5 | G11: 289 | H11: 285.5 | I11: 320-325 | J11: Loss of Rs.14/- | K11: -14 | L11: -4.67% | M11: Unsuccessful | N11: 2019-01-03 | R11: H
A12: 3 | B12: 2018-12-24 | D12: TATAPOWER | E12: Buy | F12: 77.3 | G12: 73.7 | H12: 73.5 | I12: 83-84 | J12: Loss of Rs.3.8/- | K12: =H12-F12 -> -3.8 | L12: =K12/F12 -> -4.92% | M12: Unsuccessful | N12: 2019-01-28 | R12: R
A13: 4 | B13: 2018-12-27 | D13: TVSMOTOR | E13: Buy | F13: 552.5 | G13: 519 | H13: 571.75 | I13: 600-620 | J13: Profit of Rs.19.25/- | K13: =H13-F13 -> 19.25 | L13: =K13/F13 -> 3.48% | M13: Successful | N13: 2019-01-02 | R13: H
A14: 5 | B14: 2019-01-01 | D14: ASHOKLEY | E14: Buy | F14: 101 | G14: 96 | H14: 94.5 | I14: 110-112 | J14: Loss of Rs.6.5/- | K14: -6.5 | L14: -6.44% | M14: Unsuccessful | N14: 2019-01-07 | R14: R
A15: 6 | B15: 2019-01-03 | D15: PEL | E15: Buy | F15: 2345 | G15: 2222.2 | H15: 2210 | I15: 2565-2585 | J15: Loss of Rs.135/- | K15: =H15-F15 -> -135 | L15: =K15/F15 -> -5.76% | M15: Unsuccessful | N15: 2019-01-28 | R15: R
A16: 7 | B16: 2019-01-04 | D16: M&M | E16: Buy | F16: 719 | G16: 688 | H16: 688 | I16: 770-780 | J16: Loss of Rs.31/- | K16: =H16-F16 -> -31 | L16: =K16/F16 -> -4.31% | M16: Unsuccessful | N16: 2019-01-25 | R16: H
A17: 8 | B17: 2019-01-16 | D17: BHARTIARTL | E17: Sell | F17: 339 | G17: 356.6 | H17: 324.75 | I17: 310-305 | J17: Profit of Rs.14.25/- | K17: =F17-H17 -> 14.25 | L17: =K17/F17 -> 4.20% | M17: Successful | N17: 2019-01-18 | R17: R
A18: 9 | B18: 2019-01-18 | D18: TORNTPHARM | E18: Sell | F18: 1905 | G18: 1990 | H18: 1847.5 | I18: 1780-1740 | J18: Profit of Rs.57.50/- | K18: =F18-H18 -> 57.5 | L18: =K18/F18 -> 3.02% | M18: Successful | N18: 2019-01-28 | R18: H
A19: 10 | B19: 2019-01-24 | D19: ITC | E19: Buy | F19: 279-281 | G19: 268 | I19: 305 | J19: Open | O19: =VLOOKUP(D19,Sheet2!A10:M1505,6,0) -> 278.65 | R19: R
A20: 11 | B20: 2019-01-25 | D20: UBL | E20: Sell | F20: 1435 | G20: 1510 | H20: 1392.5 | I20: 1300-1280 | J20: Part Profit of Rs.42.50/- | K20: =F20-H20 -> 42.5 | L20: =K20/F20 -> 2.96% | M20: Successful | N20: 2019-01-28 | R20: H
A21: 12 | B21: 2019-01-29 | D21: MARUTI | E21: Buy | F21: 6570-6580 | G21: 6290 | I21: 7000-7100 | J21: Open | O21: =VLOOKUP(D21,Sheet2!A12:M1507,6,0) -> 6641.15 | R21: R
A22: 13 | B22: 2019-01-30 | D22: ULTRACEMCO | E22: Buy | F22: 3400 | G22: 3230 | H22: 3510 | I22: 3750-3800 | J22: Part Profit of Rs.110/- | K22: =H22-F22 -> 110 | L22: =K22/F22 -> 3.24% | M22: Successful | N22: 2019-01-31 | R22: H
A26: CLBS = Closing Basis *** | F26: Reinitiated $
A27: Dividend adjusted <> | F27: Revised stoploss #
A28: Part book {}
A29: Master Trade High Risk
A30: Sr.no | B30: Date | D30: Company | E30: Rec | F30: Rec Price | G30: Stop Loss | H30: Call Closed At | I30: Target | J30: Remark | K30: Profit / Loss per share | L30: Gain / Loss per Lot | M30: Lot | N30: Status | O30: Closed Date
A31: 1 | B31: 2018-12-28 | D31: INFY JAN FUT | E31: Buy | F31: 660.5 | G31: 643 | H31: 668.5 | I31: 690 | J31: Profit of Rs. 8.50 /- | K31: =H31-F31 -> 8 | L31: =M31*8.5 -> 10200 | M31: 1200 | N31: Successful | O31: 2019-01-01 | R31: H
D32: INFY JAN 680 CE | E32: Sell | F32: 21 | H32: 20.5 | K32: =F32-H32 -> 0.5 | R32: H
A33: 2 | B33: 2019-01-02 | D33: NIFTY JAN FUT | E33: Buy | F33: 10885 | G33: 10740 | H33: 10740 | I33: 11100 | J33: Loss of Rs.112/- | K33: =H33-F33 -> -145 | L33: =-M33*112 -> -8400 | M33: 75 | N33: UnSuccessful | O33: 2019-01-03 | R33: H
D34: Nifty JAN 11100 CE | E34: Sell | F34: 83 | H34: 50 | K34: =F34-H34 -> 33 | R34: H
A47: Master Trade Medium Risk
A48: Sr.no | B48: Date | D48: Company | E48: Rec | F48: Rec Price | G48: Stop Loss | H48: Call Closed At | I48: Target | J48: Remark | K48: Profit/ Loss per lot | L48: Gain / Loss per Lot | M48: Lot | N48: Status | O48: Closed Date
A49: 1 | B49: 2019-01-09 | D49: NIFTY JAN 10700 PE | E49: Buy | F49: 118 | G49: 80 | H49: 80 | I49: 200 | J49: Loss of Rs.38/- | K49: =H49-F49 -> -38 | L49: =M49*K49 -> -2850 | M49: 75 | N49: UnSuccessful | O49: 2019-01-11 | R49: A
A50: 2 | B50: 2019-01-16 | D50: IDFCFIRSTB JAN 46 PE | E50: Buy | F50: 0.35 | H50: 0.6 | I50: 1-1.20 | J50: Profit of Rs.0.25/- | K50: 0.25 | L50: 3000 | M50: 12000 | N50: Successful | O50: 2019-01-17 | R50: R
A51: 3 | B51: 2019-01-17 | D51: BANKNIFTY 17-JAN 27600 CE | E51: Buy | F51: 18 | G51: 0 | H51: 0 | I51: 50 | J51: Loss of Rs.18/- | K51: =H51-F51 -> -18 | L51: -360 | M51: 20 | N51: UnSuccessful | O51: 2019-01-17 | R51: A
A52: 4 | B52: 2019-01-17 | D52: HDFCBANK 2120 JAN CE | E52: Buy | F52: 36 | G52: 17 | H52: 42.5 | I52: 60-70 | J52: Profit of Rs.6.50/- | K52: =H52-F52 -> 6.5 | L52: 1625 | M52: 250 | N52: Successful | O52: 2019-01-17 | R52: H
A53: 5 | B53: 2019-01-18 | D53: HDFCBANK 2120 JAN CE | E53: Buy | F53: 34 | G53: 17 | H53: 40.5 | I53: 55-60 | J53: Profit of Rs.6.50/- | K53: =H53-F53 -> 6.5 | L53: 1625 | M53: 250 | N53: Successful | O53: 2019-01-18 | R53: H
A54: 6 | B54: 2019-01-21 | D54: ACC 1440 JAN PE | E54: Buy | F54: 26 | G54: 14 | H54: 32.5 | I54: 40-50 | J54: Profit of Rs.6.50/- | K54: =H54-F54 -> 6.5 | L54: 2600 | M54: 400 | N54: Successful | O54: 2019-01-21 | R54: H
A55: 7 | B55: 2019-01-21 | D55: TATASTEEL 480 JAN CE | E55: Buy | F55: 9.5 | G55: 4.5 | H55: 5.5 | I55: 17-20 | J55: Loss of Rs.4/- | K55: -4 | L55: =M55*K55 -> -4244 | M55: 1061 | N55: UnSuccessful | O55: 2019-01-22 | R55: H
A56: 8 | B56: 2019-01-22 | D56: NIFTY 10900 CE JAN | E56: Buy | F56: 105 | G56: 70 | H56: 123.5 | I56: 160-170 | J56: Profit of Rs.18.50/- | K56: =H56-F56 -> 18.5 | L56: 1387.5 | M56: 75 | N56: Successful | O56: 2019-01-22 | R56: R
A57: 9 | B57: 2019-01-23 | D57: LT 1320 JAN CE | E57: Buy | F57: 19 | G57: 8 | H57: 24.5 | I57: 35-40 | J57: Profit of Rs.5.5/- | K57: =H57-F57 -> 5.5 | L57: =M57*K57 -> 2062.5 | M57: 375 | N57: Successful | O57: 2019-01-25 | R57: H
A58: 10 | B58: 2019-01-23 | D58: NIFTY 10900 CE JAN | E58: Buy | F58: 102.5 | G58: 78 | H58: 78 | I58: 150 | J58: Loss of Rs.24.5/- | K58: =H58-F58 -> -24.5 | L58: =M58*K58 -> -1837.5 | M58: 75 | N58: UnSuccessful | O58: 2019-01-23 | R58: R
A59: 11 | B59: 2019-01-24 | D59: NIFTY 10900 CE JAN | E59: Buy | F59: 66.5 | G59: 40 | H59: 77 | I59: 130 | J59: Profit of Rs.10.50/- | K59: 10.5 | L59: 787.5 | M59: 75 | N59: Successful | O59: 2019-01-24 | R59: H
A60: 12 | B60: 2019-01-24 | D60: NIFTY 10850 CE JAN | E60: Buy | F60: 92.5 | G60: 68 | H60: 104 | I60: 140 | J60: Profit of Rs.11.50/- | K60: =H60-F60 -> 11.5 | L60: =M60*K60 -> 862.5 | M60: 75 | N60: Successful | O60: 2019-01-24 | R60: H
A61: 13 | B61: 2019-01-25 | D61: NIFTY 10800 CE JAN | E61: Buy | F61: 105.5 | G61: 70 | H61: 70 | I61: 160 | J61: Loss of Rs.35.50/- | K61: -35.5 | L61: -2662.5 | M61: 75 | N61: UnSuccessful | O61: 2019-01-25 | R61: R
A62: 14 | B62: 2019-01-28 | D62: BAJFINANCE 2650 JAN CE | E62: Buy | F62: 48.5 | G62: 18 | H62: 29 | I62: 80 | J62: Loss of Rs.19.50/- | K62: =H62-F62 -> -19.5 | L62: =M62*K62 -> -4875 | M62: 250 | N62: UnSuccessful | O62: 2019-01-28 | R62: H
A63: 15 | B63: 2019-01-28 | D63: NIFTY 10700 CE JAN | E63: Buy | F63: 103 | G63: 58 | H63: 58 | I63: 190 | J63: Loss of Rs.45/- | K63: -45 | L63: -3375 | M63: 75 | N63: UnSuccessful | O63: 2019-01-28 | R63: R
A64: 16 | B64: 2019-01-30 | D64: NIFTY JAN 10700 CE | E64: Buy | F64: 37 | H64: 45.5 | I64: 100 | J64: Profit of Rs.8.50/- | K64: 8.5 | L64: 637.5 | M64: 75 | N64: Successful | O64: 2019-01-31 | R64: H
B67: Smart Delivery Trade
A68: Sr.no | B68: Date | D68: Company | E68: Rec | F68: Rec Price | G68: Stop Loss*** | H68: Call Closed At | I68: Target | J68: Remark | K68: Profit / Loss per Share | L68: Gain / Loss % | M68: Status | N68: Closed Date | O68: NSE Closed Price
A69: 1 | B69: 2018-12-20 | D69: AUROPHARMA | E69: Buy | F69: 732.5 | G69: 709.3 | H69: 752 | I69: 775-785 | J69: Profit of Rs.19.5/- | K69: =H69-F69 -> 19.5 | L69: =K69/F69 -> 2.66% | M69: Successful | N69: 2019-01-08 | R69: R
A70: 2 | B70: 2018-12-27 | D70: HCLTECH | E70: Buy | F70: 946 | G70: 918 | H70: 972 | I70: 1000 | J70: Profit of Rs.26/- | K70: =H70-F70 -> 26 | L70: =K70/F70 -> 2.75% | M70: Successful | N70: 2019-01-21 | R70: H
A71: 3 | B71: 2018-12-28 | D71: JUBLFOOD | E71: Buy | F71: 1244 | G71: 1204 | H71: 1192.5 | I71: 1300-1320 | J71: Loss of Rs.51.5/- | K71: -51.5 | L71: -4.14% | M71: UnSuccessful | N71: 2019-01-21 | R71: R
A72: 4 | B72: 2019-01-01 | D72: DLF | E72: Buy | F72: 181 | G72: 174.7 | H72: 173.5 | I72: 192-194 | J72: Loss of Rs.7.5/- | K72: =H72-F72 -> -7.5 | L72: =K72/F72 -> -4.14% | M72: UnSuccessful | N72: 2019-01-02 | R72: R
A73: 5 | B73: 2019-01-02 | D73: MCDOWELL-N | E73: Buy | F73: 622.5 | G73: 603 | H73: 603 | I73: 650-660 | J73: Loss of Rs.19.5/- | K73: =H73-F73 -> -19.5 | L73: =K73/F73 -> -3.13% | M73: UnSuccessful | N73: 2019-01-08 | R73: R
A74: 6 | B74: 2019-01-02 | D74: PIDILITIND | E74: Buy | F74: 1102.5 | G74: 1068.7 | H74: 1128 | I74: 1165-1175 | J74: Profit of Rs.25.5/- | K74: 25.5 | L74: 2.31% | M74: Successful | N74: 2019-01-08 | R74: R
A75: 7 | B75: 2019-01-03 | D75: DABUR | E75: Buy | F75: 420.5 | G75: 407.7 | H75: 431 | I75: 444-448 | J75: Profit of Rs.10.50/- | K75: =H75-F75 -> 10.5 | L75: =K75/F75 -> 2.50% | M75: Successful | N75: 2019-01-14 | R75: R
A76: 8 | B76: 2019-01-04 | D76: RELIANCE | E76: Buy | F76: 1092.5 | G76: 1058.8 | H76: 1120 | I76: 1150-1160 | J76: Profit of Rs.27.50/- | K76: =H76-F76 -> 27.5 | L76: =K76/F76 -> 2.52% | M76: Successful | N76: 2019-01-15 | R76: R
A77: 9 | B77: 2019-01-04 | D77: ADANIPORTS | E77: Buy | F77: 379 | G77: 369 | H77: 388.5 | I77: 400 | J77: Profit of Rs.9.50/- | K77: =H77-F77 -> 9.5 | L77: =K77/F77 -> 2.51% | M77: Successful | N77: 2019-01-16 | R77: H
A78: 10 | B78: 2019-01-08 | D78: VGUARD | E78: Buy | F78: 207.5 | G78: 200.7 | H78: 198 | I78: 220-223 | J78: Loss of Rs.9.5/- | K78: -9.5 | L78: -4.58% | M78: UnSuccessful | N78: 2019-01-31 | R78: R
A79: 11 | B79: 2019-01-18 | D79: SBIN | E79: Sell | F79: 298.5 | G79: 310 | H79: 290.5 | I79: 285-280 | J79: Profit of Rs.8/- | K79: =F79-H79 -> 8 | L79: =K79/F79 -> 2.68% | M79: Successful | N79: 2019-01-22 | R79: H
A80: 12 | B80: 2019-01-22 | D80: BAJFINANCE | E80: Buy | F80: 2580 | G80: 2490 | H80: 2652.5 | I80: 2700-2750 | J80: Profit of Rs.72.5/- | K80: =H80-F80 -> 72.5 | L80: =K80/F80 -> 2.81% | M80: Successful | N80: 2019-01-23 | R80: H
A81: 13 | B81: 2019-01-25 | D81: ENGINERSIN | E81: Buy | F81: 119 | G81: 113.8 | H81: 113 | I81: 122-124 | J81: Loss of Rs.6/- | K81: -6 | L81: -5.04% | M81: UnSuccessful | N81: 2019-01-25 | R81: R
A82: 14 | B82: 2019-01-25 | D82: JSWSTEEL | E82: Buy | F82: 281 | G82: 272 | H82: 270 | I82: 295-300 | J82: Loss of Rs.11/- | K82: -11 | L82: -3.91% | M82: UnSuccessful | N82: 2019-01-28 | R82: R
A83: 15 | B83: 2019-01-25 | D83: RADICO | E83: Buy | F83: 437.5 | G83: 419 | H83: 423 | I83: 470-480 | J83: Loss of Rs.14.50/- | K83: =H83-F83 -> -14.5 | L83: =K83/F83 -> -3.31% | M83: UnSuccessful | N83: 2019-01-25 | R83: H
A84: 16 | B84: 2019-01-25 | D84: ASIANPAINT | E84: Sell | F84: 1395 | G84: 1444.4 | H84: 1352.5 | I84: 1330-1320 | J84: Profit of Rs.42.50/- | K84: =F84-H84 -> 42.5 | L84: =K84/F84 -> 3.05% | M84: Successful | N84: 2019-01-25 | R84: R
A85: 17 | B85: 2019-01-25 | D85: GAIL | E85: Buy | F85: 334 | G85: 322.7 | H85: 321 | I85: 350-355 | J85: Loss of Rs.13/- | K85: =H85-F85 -> -13 | L85: -3.89% | M85: UnSuccessful | N85: 2019-01-29 | R85: R
A86: 18 | B86: 2019-01-29 | D86: UNIONBANK | E86: Buy | F86: 80-81 | G86: 77 | I86: 87-88 | J86: Open | R86: H
A89: CLBS = Closing Basis *** | F89: Reinitiated $
A90: Dividend adjusted <> | F90: Revised stoploss #
B93: Momentum Call
A94: Sr.no | B94: Date | D94: Company | E94: Rec | F94: Rec Price | G94: Stop Loss | H94: Call Closed At | I94: Target | J94: Remark | K94: Profit / Loss per Share/Lot | L94: Gain / Loss % | M94: Gain / Loss per Lot | N94: Lot | O94: Status | P94: Closed Date
A95: 1 | B95: 2018-12-31 | D95: DRREDDY JAN FUT | E95: Buy | F95: 2662.5 | G95: 2620 | H95: 2615 | I95: 2750 | J95: Loss of Rs.47.5/- | K95: =H95-F95 -> -47.5 | M95: =N95*K95 -> -11875 | N95: 250 | O95: UnSuccessful | P95: 2019-01-02 | R95: R
A96: 2 | B96: 2018-12-31 | D96: COLPAL JAN FUT | E96: Sell | F96: 1333 | G96: 1353 | H96: 1325.5 | I96: 1300 | J96: Profit of Rs.7.5/- | K96: =F96-H96 -> 7.5 | M96: =N96*K96 -> 5250 | N96: 700 | O96: Successful | P96: 2019-01-01 | R96: H
A97: 3 | B97: 2018-12-31 | D97: SUNTV | E97: Buy | F97: 612.5 | G97: 594 | H97: 590.5 | I97: 635-645 | J97: Loss of Rs 22/- | K97: =H97-F97 -> -22 | L97: =K97/F97 -> -3.59% | O97: UnSuccessful | P97: 2019-01-03 | R97: H
A98: 4 | B98: 2019-01-01 | D98: TATACHEM JAN FUT | E98: Buy | F98: 709 | G98: 693 | H98: 698.5 | I98: 740 | J98: Loss of Rs.10.50/- | K98: =H98-F98 -> -10.5 | M98: =N98*K98 -> -7875 | N98: 750 | O98: UnSuccessful | P98: 2019-01-15 | R98: N
A99: 5 | B99: 2019-01-02 | D99: TCS JAN FUT | E99: Buy | F99: 1920 | G99: 1875 | H99: 1946.5 | I99: 2000 | J99: Profit of Rs.26.5/- | K99: =H99-F99 -> 26.5 | M99: =N99*K99 -> 6625 | N99: 250 | O99: Successful | P99: 2019-01-03 | R99: H
A100: 6 | B100: 2019-01-02 | D100: AMBUJACEM JAN FUT | E100: Buy | F100: 222 | G100: 217 | H100: 217 | I100: 232 | J100: Loss of Rs.5/- | K100: -5 | M100: -12500 | N100: 2500 | O100: UnSuccessful | P100: 2019-01-03 | R100: N
A101: 7 | B101: 2019-01-02 | D101: IOC | E101: Buy | F101: 137.5 | G101: 134 | H101: 134 | I101: 143-145 | J101: Loss of Rs 3.5/- | K101: -3.5 | L101: =K101/F101 -> -2.55% | O101: UnSuccessful | P101: 2019-01-03 | R101: H
A102: 8 | B102: 2019-01-03 | D102: ADANIPORTS JAN FUT | E102: Buy | F102: 384.5 | G102: 379 | H102: 380.5 | I102: 395 | J102: Loss of Rs.4/- | K102: -4 | M102: =N102*K102 -> -10000 | N102: 2500 | O102: UnSuccessful | P102: 2019-01-03 | R102: H
A103: 9 | B103: 2019-01-04 | D103: EXIDEIND JAN FUT | E103: Buy | F103: 260 | G103: 254 | H103: 263.5 | I103: 270 | J103: Profit of Rs.3.5/- | K103: 3.5 | M103: 7000 | N103: 2000 | O103: Successful | P103: 2019-01-07 | R103: N
A104: 10 | B104: 2019-01-04 | D104: VIPIND | E104: Buy | F104: 514.5 | G104: 508.7 | H104: 523.5 | I104: 525 | J104: Profit of Rs.9/- | K104: 9 | L104: =K104/F104 -> 1.75% | O104: Successful | P104: 2019-01-04 | R104: R
A105: 11 | B105: 2019-01-07 | D105: BHARTIARTL JAN FUT | E105: Buy | F105: 326 | G105: 319 | H105: 330.5 | I105: 340 | J105: Profit of Rs.4.5/- | K105: =H105-F105 -> 4.5 | M105: =N105*K105 -> 7650 | N105: 1700 | O105: Successful | P105: 2019-01-08 | R105: N
A106: 12 | B106: 2019-01-07 | D106: AJANTPHARM JAN FUT | E106: Buy | F106: 1142.5 | G106: 1118 | H106: 1159 | I106: 1190 | J106: Profit of Rs.16.5/- | K106: =H106-F106 -> 16.5 | M106: =N106*K106 -> 8250 | N106: 500 | O106: Successful | P106: 2019-01-07 | R106: N
A107: 13 | B107: 2019-01-08 | D107: CESC JAN FUT | E107: Sell | F107: 657.5 | G107: 680 | H107: 680 | I107: 625 | J107: Loss of Rs 22.5/- | K107: =F107-H107 -> -22.5 | M107: =N107*K107 -> -12375 | N107: 550 | O107: UnSuccessful | P107: 2019-01-11 | R107: N
A108: 14 | B108: 2019-01-08 | D108: UBL JAN FUT | E108: Buy | F108: 1394 | G108: 1377 | H108: 1406 | I108: 1430 | J108: Profit of Rs.12/- | K108: =H108-F108 -> 12 | M108: =N108*K108 -> 8400 | N108: 700 | O108: Successful | P108: 2019-01-08 | R108: N
A109: 15 | B109: 2019-01-08 | D109: UPL JAN FUT | E109: Buy | F109: 755.5 | G109: 746 | H109: 761.5 | I109: 775 | J109: Profit of Rs.6/- | K109: =H109-F109 -> 6 | M109: =N109*K109 -> 7200 | N109: 1200 | O109: Successful | P109: 2019-01-09 | R109: N
A110: 16 | B110: 2019-01-08 | D110: IRB JAN FUT | E110: Sell | F110: 161.5 | G110: 165 | H110: 158.5 | I110: 154 | J110: Profit of Rs.3/- | K110: =F110-H110 -> 3 | M110: 9600 | N110: 3200 | O110: Successful | P110: 2019-01-09 | R110: N
A111: 17 | B111: 2019-01-09 | D111: APOLLOHOSP JAN FUT | E111: Buy | F111: 1260 | G111: 1235 | H111: 1275 | I111: 1300 | J111: Profit of Rs.15/- | K111: =H111-F111 -> 15 | M111: =N111*K111 -> 7500 | N111: 500 | O111: Successful | P111: 2019-01-09 | R111: N
A112: 18 | B112: 2019-01-09 | D112: UJJIVAN | E112: Buy | F112: 289 | G112: 280 | H112: 295.5 | I112: 310 | J112: Profit of Rs.6.15/- | K112: 6.5 | L112: =K112/F112 -> 2.25% | O112: Successful | P112: 2019-01-15 | R112: R
A113: 19 | B113: 2019-01-09 | D113: EXIDEIND JAN FUT | E113: Buy | F113: 262 | G113: 256 | H113: 256 | I113: 273 | J113: Loss of Rs.6/- | K113: =H113-F113 -> -6 | M113: =N113*K113 -> -12000 | N113: 2000 | O113: UnSuccessful | P113: 2019-12-14 | R113: N
A114: 20 | B114: 2019-01-09 | D114: GODREJIND JAN FUT | E114: Buy | F114: 537 | G114: 529 | H114: 542.5 | I114: 550 | J114: Profit of Rs.5.5/- | K114: =H114-F114 -> 5.5 | M114: =N114*K114 -> 8250 | N114: 1500 | O114: Successful | P114: 2019-01-10 | R114: N
A115: 21 | B115: 2019-01-10 | D115: RAYMOND JAN FUT | E115: Buy | F115: 812 | G115: 796 | H115: 824 | I115: 835 | J115: Profit of Rs.12/- | K115: =H115-F115 -> 12 | M115: =N115*K115 -> 9600 | N115: 800 | O115: Successful | P115: 2019-01-11 | R115: N
A116: 22 | B116: 2019-01-14 | D116: APOLLOHOSP JAN FUT | E116: Buy | F116: 1296 | G116: 1268 | H116: 1314 | I116: 1340 | J116: Profit of Rs.18/- | K116: =H116-F116 -> 18 | M116: =N116*K116 -> 9000 | N116: 500 | O116: Successful | P116: 2019-01-14 | R116: R
A117: 23 | B117: 2019-01-14 | D117: UBL JAN FUT | E117: Buy | F117: 1378 | G117: 1363 | H117: 1392 | I117: 1420 | J117: Profit of Rs.14/- | K117: =H117-F117 -> 14 | M117: =N117*K117 -> 9800 | N117: 700 | O117: Successful | P117: 2019-01-14 | R117: N
A118: 24 | B118: 2019-01-14 | D118: ICICIBANK | E118: Buy | F118: 374 | G118: 364 | H118: 364 | I118: 390-395 | J118: Loss of Rs 10/- | K118: -10 | L118: =K118/F118 -> -2.67% | O118: UnSuccessful | P118: 2019-01-24 | R118: R
A119: 25 | B119: 2019-01-14 | D119: UPL JAN FUT | E119: Buy | F119: 773 | G119: 763 | H119: 781.5 | I119: 790 | J119: Profit of Rs.8.50/- | K119: =H119-F119 -> 8.5 | M119: =N119*K119 -> 10200 | N119: 1200 | O119: Successful | P119: 2019-01-15 | R119: N
A120: 26 | B120: 2019-01-15 | D120: BIOCON JAN FUT | E120: Buy | F120: 649 | G120: 636 | H120: 657.5 | I120: 670 | J120: Profit of Rs.8.50/- | K120: =H120-F120 -> 8.5 | M120: =N120*K120 -> 7650 | N120: 900 | O120: Successful | P120: 2019-01-17 | R120: N
A121: 27 | B121: 2019-01-15 | D121: TORNTPHARM JAN FUT | E121: Buy | F121: 1890 | G121: 1867 | H121: 1908 | I121: 1940 | J121: Profit of Rs.18/- | K121: =H121-F121 -> 18 | M121: =N121*K121 -> 9000 | N121: 500 | O121: Successful | P121: 2019-01-15 | R121: N
A122: 28 | B122: 2019-01-15 | D122: NIITTECH JAN FUT | E122: Sell | F122: 1192 | G122: 1208 | H122: 1208 | I122: 1160 | J122: Loss of Rs 16/- | K122: =F122-H122 -> -16 | M122: =N122*K122 -> -12000 | N122: 750 | O122: UnSuccessful | P122: 2019-01-16 | R122: R
A123: 29 | B123: 2019-01-15 | D123: ESCORTS JAN FUT | E123: Sell | F123: 759 | G123: 771 | H123: 752.5 | I123: 740 | J123: Profit of Rs.6.5/- | K123: =F123-H123 -> 6.5 | M123: =N123*K123 -> 7150 | N123: 1100 | O123: Successful | P123: 2019-01-16 | R123: R
A124: 30 | B124: 2019-01-16 | D124: TORNTPOWER JAN FUT | E124: Buy | F124: 269.5 | G124: 265 | H124: 266 | I124: 278 | J124: Loss of Rs.3.5/- | K124: =H124-F124 -> -3.5 | M124: =N124*K124 -> -10500 | N124: 3000 | O124: UnSuccessful | P124: 2019-01-16 | R124: N
A125: 31 | B125: 2019-01-16 | D125: SRTRANSFIN JAN FUT | E125: Buy | F125: 1202 | G125: 1179 | H125: 1179 | I125: 1240 | J125: Loss of Rs.23/- | K125: =H125-F125 -> -23 | M125: =N125*K125 -> -13800 | N125: 600 | O125: UnSuccessful | P125: 2019-01-17 | R125: R
A126: 32 | B126: 2019-01-17 | D126: EXIDEIND JAN FUT | E126: Buy | F126: 252.5 | G126: 246.5 | H126: 246.5 | I126: 262 | J126: Loss of Rs.6/- | K126: -6 | M126: -12000 | N126: 2000 | O126: UnSuccessful | P126: 2019-01-21 | R126: N
A127: 33 | B127: 2019-01-17 | D127: ZEEL | E127: Buy | F127: 447.5 | G127: 434 | H127: 432 | I127: 465-470 | J127: Loss of Rs 15.5/- | K127: -15.5 | L127: =K127/F127 -> -3.46% | O127: UnSuccessful | P127: 2019-01-22 | R127: H
A128: 34 | B128: 2019-01-18 | D128: RAYMOND JAN FUT | E128: Buy | F128: 810 | G128: 795 | H128: 801.5 | I128: 835 | J128: Loss of Rs.8.5/- | K128: =H128-F128 -> -8.5 | M128: =N128*K128 -> -6800 | N128: 800 | O128: UnSuccessful | P128: 2019-01-21 | R128: N
A129: 35 | B129: 2019-01-18 | D129: RECLTD JAN FUT | E129: Sell | F129: 127.5 | G129: 130.3 | H129: 126 | I129: 122-120 | J129: Profit of Rs.1.50/- | K129: =F129-H129 -> 1.5 | M129: =N129*K129 -> 9000 | N129: 6000 | O129: Successful | P129: 2019-01-18 | R129: H
A130: 36 | B130: 2019-01-18 | D130: BFUTILITIE | E130: Buy | F130: 225 | G130: 218.3 | H130: 215 | I130: 236-240 | J130: Loss of Rs 10/- | K130: =H130-F130 -> -10 | L130: =K130/F130 -> -4.44% | O130: UnSuccessful | P130: 2019-01-18 | R130: R
A131: 37 | B131: 2019-01-18 | D131: NIFTY JAN FUT | E131: Buy | F131: 10885 | G131: 10830 | H131: 10935 | I131: 10970-11000 | J131: Profit of Rs.50/- | K131: =H131-F131 -> 50 | M131: =N131*K131 -> 3750 | N131: 75 | O131: Successful | P131: 2019-01-18 | R131: R
A132: 38 | B132: 2019-01-21 | D132: LT JAN FUT | E132: Buy | F132: 1302.5 | G132: 1285 | H132: 1330 | I132: 1350-1360 | J132: Profit of Rs.27.50/- | K132: 27.5 | M132: 10312.5 | N132: 375 | O132: Successful | P132: 2019-01-21 | R132: H
A133: 39 | B133: 2019-01-21 | D133: JUBLFOOD JAN FUT | E133: Buy | F133: 1222.5 | G133: 1200 | H133: 1200 | I133: 1260-1270 | J133: Loss of Rs.22.5/- | K133: -22.5 | M133: -11250 | N133: 500 | O133: UnSuccessful | P133: 2019-01-21 | R133: N
A134: 40 | B134: 2019-01-21 | D134: NIFTY JAN FUT | E134: Sell | F134: 10985 | G134: 11060 | H134: 10935 | I134: 10850-10880 | J134: Profit of Rs.50/- | K134: =F134-H134 -> 50 | M134: 3750 | N134: 75 | O134: Successful | P134: 2019-01-22 | R134: R
A135: 41 | B135: 2019-01-22 | D135: BATAINDIA JAN FUT | E135: Buy | F135: 1153.5 | G135: 1135 | H135: 1166.5 | I135: 1190-1200 | J135: Profit of Rs.13/- | K135: =H135-F135 -> 13 | M135: 7150 | N135: 550 | O135: Successful | P135: 2019-01-23 | R135: R
A136: 42 | B136: 2019-01-22 | D136: TITAN JAN FUT | E136: Buy | F136: 968 | G136: 952 | H136: 978 | I136: 995 | J136: Profit of Rs.10/- | K136: =H136-F136 -> 10 | M136: =N136*K136 -> 7500 | N136: 750 | O136: Successful | P136: 2019-01-22 | R136: N
A137: 43 | B137: 2019-01-22 | D137: RBLBANK JAN FUT | E137: Buy | F137: 583.5 | G137: 573.5 | H137: 573.5 | I137: 605 | J137: Loss of Rs.10/- | K137: -10 | M137: -12000 | N137: 1200 | O137: UnSuccessful | P137: 2019-01-22 | R137: N
A138: 44 | B138: 2019-01-22 | D138: AMBUJACEM JAN FUT | E138: Buy | F138: 213.5 | G138: 208 | H138: 208.5 | I138: 225 | J138: Loss of Rs.5/- | K138: =H138-F138 -> -5 | M138: =N138*K138 -> -12500 | N138: 2500 | O138: UnSuccessful | P138: 2019-01-25 | R138: N
A139: 45 | B139: 2019-01-22 | D139: ACC JAN FUT | E139: Buy | F139: 1440 | G139: 1415 | H139: 1415 | I139: 1480-1500 | J139: Loss of Rs.25/- | K139: -25 | M139: -10000 | N139: 400 | O139: UnSuccessful | P139: 2019-01-25 | R139: H
A140: 46 | B140: 2019-01-23 | D140: SBIN JAN FUT | E140: Buy | F140: 292 | G140: 288 | H140: 288 | I140: 300 | J140: Loss of Rs.4/- | K140: =H140-F140 -> -4 | M140: =N140*K140 -> -12000 | N140: 3000 | O140: UnSuccessful | P140: 2019-01-23 | R140: H
A141: 47 | B141: 2019-01-23 | D141: ESCORTS JAN FUT | E141: Buy | F141: 728 | G141: 718 | H141: 736.5 | I141: 745 | J141: Profit of Rs.8.5/- | K141: 8.5 | M141: 9350 | N141: 1100 | O141: Successful | P141: 2019-01-23 | R141: R
A142: 48 | B142: 2019-01-23 | D142: AJANTPHARM JAN FUT | E142: Buy | F142: 1168.5 | G142: 1145 | H142: 1145 | I142: 1220 | J142: Loss of Rs.23.5/- | K142: -23.5 | M142: -11750 | N142: 500 | O142: UnSuccessful | P142: 2019-01-25 | R142: N
A143: 49 | B143: 2019-01-24 | D143: HDFC JAN FUT | E143: Buy | F143: 1956 | G143: 1935 | H143: 1969 | I143: 2000 | J143: Profit of Rs.13/- | K143: =H143-F143 -> 13 | M143: =N143*K143 -> 6500 | N143: 500 | O143: Successful | P143: 2019-01-24 | R143: H
A144: 50 | B144: 2019-01-25 | D144: HDFC JAN FUT | E144: Buy | F144: 1972.5 | G144: 1945 | H144: 1990 | I144: 2020 | J144: Profit of Rs.17.5/- | K144: =H144-F144 -> 17.5 | M144: =N144*K144 -> 8750 | N144: 500 | O144: Successful | P144: 2019-01-25 | R144: H
A145: 51 | B145: 2019-01-25 | D145: AXISBANK JAN FUT | E145: Sell | F145: 673 | G145: 684 | H145: 666.5 | I145: 650 | J145: Profit of Rs.6.50/- | K145: =F145-H145 -> 6.5 | M145: 7800 | N145: 1200 | O145: Successful | P145: 2019-01-25 | R145: R
A146: 52 | B146: 2019-01-25 | D146: HDFC JAN FUT | E146: Buy | F146: 1972.5 | G146: 1945 | H146: 1950 | I146: 2020 | J146: Loss of Rs.22.5/- | K146: =H146-F146 -> -22.5 | M146: -11250 | N146: 500 | O146: UnSuccessful | P146: 2019-01-28 | R146: H
A147: 53 | B147: 2019-01-28 | D147: TATACHEM JAN FUT | E147: Buy | F147: 683 | G147: 668 | H147: 668 | I147: 710 | J147: Loss of Rs.15/- | K147: =H147-F147 -> -15 | M147: =N147*K147 -> -11250 | N147: 750 | O147: UnSuccessful | P147: 2019-01-28 | R147: N
A148: 54 | B148: 2019-01-29 | D148: TITAN JAN FUT | E148: Buy | F148: 962 | G148: 946 | H148: 973 | I148: 990 | J148: Profit of Rs.11/- | K148: =H148-F148 -> 11 | M148: 8250 | N148: 750 | O148: Successful | P148: 2019-01-30 | R148: N
A149: 55 | B149: 2019-01-29 | D149: ASIANPAINT JAN FUT | E149: Sell | F149: 1394 | G149: 1415 | H149: 1381 | I149: 1360 | J149: Profit of Rs.13/- | K149: =F149-H149 -> 13 | M149: 7800 | N149: 600 | O149: Successful | P149: 2019-01-30 | R149: R
A150: 56 | B150: 2019-01-29 | D150: KOTAKBANK JAN FUT | E150: Buy | F150: 1266 | G150: 1252 | H150: 1248.5 | I150: 1290-1300 | J150: Loss of Rs.17.5/- | K150: =H150-F150 -> -17.5 | M150: =N150*K150 -> -14000 | N150: 800 | O150: UnSuccessful | P150: 2019-01-30 | R150: R
A151: 57 | B151: 2019-01-30 | D151: BIOCON FEB FUT | E151: Buy | F151: 650 | G151: 638 | H151: 658.5 | I151: 675 | J151: Profit of Rs.8.5/- | K151: =H151-F151 -> 8.5 | M151: 7650 | N151: 900 | O151: Successful | P151: 2019-01-31 | R151: N
A152: 58 | B152: 2019-01-30 | D152: HINDUNILVR FEB FUT | E152: Buy | F152: 1759 | G152: 1740 | H152: 1740 | I152: 1800 | J152: Loss of Rs.19/- | K152: =H152-F152 -> -19 | M152: =N152*K152 -> -11400 | N152: 600 | O152: UnSuccessful | P152: 2019-01-30 | R152: H
A153: 59 | B153: 2019-01-30 | D153: AMARAJABAT FEB FUT | E153: Buy | F153: 750-753 | G153: 735 | I153: 780 | J153: Open | R153: H
A154: 60 | B154: 2019-01-30 | D154: RAYMOND FEB FUT | E154: Buy | F154: 759-761 | G154: 745 | I154: 790 | J154: Open | R154: N
A155: 61 | B155: 2019-01-31 | D155: RELIANCE | E155: Buy | F155: 1210-1220 | G155: 1179 | I155: 1260-1280 | J155: Open | R155: H
A156: 62 | B156: 2019-01-31 | D156: INFRATEL FEB FUT | E156: Sell | F156: 295.5 | G156: 302 | H156: 290.5 | I156: 280 | J156: Profit of Rs.5/- | K156: =F156-H156 -> 5 | M156: =N156*K156 -> 10000 | N156: 2000 | O156: Successful | P156: 2019-01-31 | R156: R
A159: CLBS = Closing Basis ***
A160: Dividend adjusted <> | F160: Reinitiated $
F161: Revised stoploss #
B162: Quick Pick Intraday
A163: Sr.no | B163: Date | D163: Company | E163: Rec | F163: Rec Price | G163: Stop Loss*** | H163: Call Closed At | I163: Target | J163: Remark | K163: Profit / Loss per Share | L163: Status | M163: Closed Date
A177: Techno -Funda (positional)
A178: Sr.no | B178: Date | D178: Company | E178: Rec | F178: Rec Price | G178: Stop Loss*** | H178: Call Closed At | I178: Target | J178: Remark | K178: Profit / Loss per Share | L178: Gain / Loss % | M178: Status | N178: Closed Date | O178: NSE Closed Price
A181: CLBS = Closing Basis *** | F181: Reinitiated $
A182: Dividend adjusted <> | F182: Revised stoploss #
B187: Investment Idea
A188: Sr.no | B188: Date | D188: Company | E188: Rec | F188: Rec Price | G188: Point of Review | H188: Close Rate | I188: Target | J188: Remark | K188: Profit / Loss per Share | L188: Gain / Loss % | M188: Status | N188: Closed Date
A189: 1 | B189: 2013-11-01 | D189: L&T Finance Holding | E189: Accu | F189: 82.00 | G189: - | H189: 100 | I189: 100.00 | J189: Target Achieved | K189: =H189-F189 -> 18.00 | L189: =K189/F189 -> 21.95% | M189: Successful | N189: 2016-10-14
A190: 2 | B190: 2014-06-04 | D190: Finolex Inds | E190: Buy | F190: 257.00 | G190: - | H190: 300 | I190: 300.00 | J190: Target Achieved | K190: =H190-F190 -> 43.00 | L190: 16.73% | M190: Successful | N190: 2014-07-02
A191: =1+A190 -> 3 | B191: 2014-07-08 | D191: JK Cement | E191: Buy | F191: 393.00 | G191: - | H191: 468 | I191: 468.00 | J191: Target Achieved | K191: =H191-F191 -> 75.00 | L191: 19.08% | M191: Successful | N191: 2014-08-12
A192: 4 | B192: 2014-08-06 | D192: Finolex Cables | E192: Buy | F192: 205.00 | G192: - | H192: 275 | I192: 250.00 | J192: Target Achieved | K192: 70.00 | L192: 34.15% | M192: Successful | N192: 2014-11-19
A193: 5 | B193: 2014-09-04 | D193: Exide Inds | E193: Buy | F193: 162.00 | G193: - | H193: 190 | I193: 190.00 | J193: Target Achieved | K193: 28.00 | L193: 17.28% | M193: Successful | N193: 2015-01-02
A194: 6 | B194: 2014-09-04 | D194: Deepak Nitrite | E194: Buy | F194: 75.00 | G194: - | H194: 91.5 | I194: 95-100 | J194: Profit of Rs.16.50/- | K194: 16.50 | L194: 22.00% | M194: Successful | N194: 2014-11-11
A195: 7 | B195: 2014-10-01 | D195: Mercks | E195: Buy | F195: 850.00 | G195: - | H195: 982.5 | I195: 1050.00 | J195: Profit of Rs.132.50/- | K195: 132.50 | L195: 15.59% | M195: Successful | N195: 2015-02-04
A196: 8 | B196: 2014-10-01 | D196: Grindwell Norton | E196: Buy | F196: 475.00 | G196: - | H196: 515 | I196: 600.00 | J196: Profit of Rs.40/- | K196: 40.00 | L196: 8.42% | M196: Successful | N196: 2014-10-27
A197: 9 | B197: 2014-10-01 | D197: Snowman Logistics | E197: Buy | F197: 86.00 | G197: - | H197: 99 | I197: 140.00 | J197: Profit of Rs.13.00/- | K197: 13.00 | L197: 15.12% | M197: Successful | N197: 2014-10-27
A198: 10 | B198: 2014-10-14 | D198: Birla Corp | E198: Buy | F198: 496.60 | G198: - | H198: 621 | I198: 580.00 | J198: Target Achieved | K198: 124.40 | L198: 25.05% | M198: Successful | N198: 2016-08-23
A199: 11 | B199: 2014-10-14 | D199: Ultratech Cem | E199: Buy | F199: 2481.90 | G199: - | H199: 2840 | I199: 2870.00 | J199: Profit of Rs.358.10/- | K199: 358.10 | L199: 14.43% | M199: Successful | N199: 2015-01-13
A200: =1+A197 -> 10 | B200: 2014-10-16 | D200: Sintex Inds | E200: Buy | F200: 84.50 | G200: - | H200: 93 | I200: 110.00 | J200: Profit of Rs.8.50/- | K200: 8.50 | L200: 10.06% | M200: Successful | N200: 2014-10-27
A201: =1+A200 -> 11 | B201: 2014-10-16 | D201: HSIL | E201: Buy | F201: 401.00 | G201: - | H201: 428 | I201: 450.00 | J201: Profit of Rs.27.00/- | K201: 27.00 | L201: 6.73% | M201: Successful | N201: 2015-01-16
A202: 12 | B202: 2014-10-16 | D202: Eveready Inds | E202: Buy | F202: 101.00 | G202: - | H202: 112 | I202: 120.00 | J202: Profit of Rs.11.00/- | K202: 11.00 | L202: 10.89% | M202: Successful | N202: 2014-10-27
A203: 13 | B203: 2014-11-11 | D203: Pennar Inds | E203: Buy | F203: 59.00 | G203: - | H203: 76 | I203: 76.00 | J203: Target Achieved | K203: 17.00 | L203: 28.81% | M203: Successful | N203: 2017-10-24
A204: 14 | B204: 2014-11-11 | D204: Snowman Logistics | E204: Buy | F204: 99.00 | G204: - | H204: 120 | I204: 120.00 | J204: Profit of Rs.21/- | K204: 21.00 | L204: 21.21% | M204: Successful | N204: 2014-11-17
A205: 15 | B205: 2014-11-13 | D205: Dharamsi Morarji Chem | E205: Buy | F205: 22.00 | G205: - | H205: 33.55 | I205: 32.00 | J205: Profit of Rs 11.55/- | K205: 11.55 | L205: 52.50% | M205: Successful | N205: 2015-07-03
A206: 16 | B206: 2014-12-03 | D206: Tatachem | E206: Buy | F206: 440.00 | G206: - | H206: 520 | I206: 520.00 | J206: Profit of Rs 80.00/- | K206: 80.00 | L206: 18.18% | M206: Successful | N206: 2015-07-23
A207: 17 | B207: 2014-12-03 | D207: Advanta | E207: Buy | F207: 360.00 | G207: - | H207: 427 | I207: 425.00 | J207: Profit of Rs.67.00/- | K207: 67.00 | L207: 18.61% | M207: Successful | N207: 2015-02-23
A208: 18 | B208: 2015-01-08 | D208: GDL | E208: Buy | F208: 360.00 | G208: - | H208: 455 | I208: 420.00 | J208: Profit of Rs.95.00/- | K208: 95.00 | L208: 26.39% | M208: Successful | N208: 2015-01-20
A209: 19 | B209: 2015-01-08 | D209: NRB Bearing | E209: Buy | F209: 130.00 | H209: 175.5 | I209: 165.00 | J209: Profit of Rs 45.50/- | K209: 45.50 | L209: 35.00% | M209: Successful | N209: 2017-12-19
A210: 20 | B210: 2015-02-05 | D210: GSFC | E210: Accu | F210: 98.00 | H210: 120 | I210: 120.00 | J210: Target Achieved | K210: 22.00 | L210: 22.45% | M210: Successful | N210: 2017-01-18
A211: 21 | B211: 2015-02-05 | D211: Sundrmfast | E211: Accu | F211: 196.00 | H211: 262 | I211: 255.00 | J211: Target Achieved | K211: 66.00 | L211: 33.67% | M211: Successful | N211: 2016-08-17
A212: 22 | B212: 2015-03-04 | D212: GPPL | E212: Accu | F212: 230-240 | I212: 280-285 | J212: Open
A213: 23 | B213: 2015-03-04 | D213: ORIENTCEM | E213: Accu | F213: 185.00 | H213: 224 | I213: 220-225 | J213: Target Achieved | K213: 39.00 | L213: =K213/F213 -> 21.08% | M213: Successful | N213: 2016-10-04
A214: 24 | B214: 2015-03-27 | D214: PFS | E214: Accu | F214: 49-50 | I214: 67.00 | J214: Open
A215: 25 | B215: 2015-03-30 | D215: Walchandnagar Ind Ltd | E215: Accu | F215: 183.50 | H215: 219 | I215: 218.00 | J215: Profit of Rs.35.50/- | K215: 35.50 | L215: =K215/F215 -> 19.35% | M215: Successful | N215: 2015-04-09
A216: 26 | B216: 2015-04-20 | D216: Kalpataru Power Transmission Ltd | E216: Accu | F216: =(227+237)/2 -> 232.00 | H216: 298 | I216: 298.00 | J216: Target Achieved | K216: 66.00 | L216: 28.45% | M216: Successful | N216: 2017-03-29
A217: 27 | B217: 2015-05-04 | D217: Mastek Ltd | E217: Buy | F217: 385.00 | H217: =212.5+331 -> 543.5 | I217: 510.00 | J217: Profit of Rs 158.50/- | K217: 158.50 | L217: 41.17% | M217: Successful | N217: 2015-08-19
A218: 28 | B218: 2015-05-04 | D218: Suprajit Eng | E218: Buy | F218: 115.50 | H218: 146 | I218: 142.00 | J218: Profit of Rs 30.50/- | K218: 30.50 | L218: 26.41% | M218: Successful | N218: 2015-07-17
A219: 29 | B219: 2015-05-27 | D219: TCI | E219: Buy | F219: 237.50 | H219: 279.5 | I219: 278.00 | J219: Target Achieved | K219: 42.00 | L219: 17.68% | M219: Successful | N219: 2015-08-06
A220: 30 | B220: 2015-06-19 | D220: HSIL | E220: Accu | F220: 340.00 | H220: 448 | I220: 448.00 | J220: Target Achieved | K220: 108.00 | L220: 31.76% | M220: Successful | N220: 2017-10-10
A221: 31 | B221: 2015-07-06 | D221: Capital First | E221: Accu | F221: 390.00 | H221: 460 | I221: 460.00 | J221: Target Achieved | K221: 70.00 | L221: 17.95% | M221: Successful | N221: 2016-04-18
A222: 32 | B222: 2015-07-10 | D222: Dolphin OffShore | E222: Accu | F222: 122.5 | H222: 61.00 | I222: 172.00 | J222: Loss of Rs.61.50/- | K222: -61.50 | L222: -50.20% | M222: Unsuccessful | N222: 2018-08-21
A223: 33 | B223: 2015-08-03 | D223: Allcargo logistics | E223: Accu | F223: 297.50 | H223: 350 | I223: 360.00 | J223: Profit of Rs 52.50/- | K223: 52.50 | L223: =K223/F223 -> 17.65% | M223: Successful | N223: 2015-08-16
A224: 34 | B224: 2015-08-03 | D224: Camline Fine | E224: Accu | F224: 115.50 | H224: 149 | I224: 140.00 | J224: Profit of Rs 33.50/- | K224: 33.50 | L224: 29.00% | M224: Successful | N224: 2017-01-05
A225: 35 | B225: 2015-09-04 | D225: TCI | E225: Accu | F225: 226.00 | H225: 292 | I225: 292.00 | J225: Target Achieved | K225: 66.00 | L225: 29.20% | M225: Successful | N225: 2015-10-09
A226: 36 | B226: 2015-09-07 | D226: Kalpataru Power Transmission Ltd | E226: Accu | F226: 232.50 | H226: 312.5 | I226: 310.00 | J226: Target Achieved | K226: 80.00 | L226: 34.41% | M226: Successful | N226: 2017-03-29
A227: 37 | B227: 2015-09-21 | D227: LLOYD ELECTRIC & ENG LTD | E227: Accu | F227: 196.50 | H227: 238 | I227: 238.00 | J227: Target Achieved | K227: 41.50 | L227: 21.12% | M227: Successful | N227: 2015-10-14
A228: 38 | B228: 2015-09-24 | D228: L&T Finance Holding | E228: Accu | F228: 65.00 | H228: 82 | I228: 82.00 | J228: Target Achieved | K228: 17.00 | L228: 26.15% | M228: Successful | N228: 2016-07-27
A229: 39 | B229: 2015-10-14 | D229: KEC International ltd | E229: Accu | F229: 144.00 | H229: 182.5 | I229: 181.00 | J229: Target Achieved | K229: 38.50 | L229: 26.74% | M229: Successful | N229: 2017-03-23
A230: 40 | B230: 2015-10-14 | D230: Gruh Finance | E230: Accu | F230: 264.00 | H230: 311 | I230: 311.00 | J230: Target Achieved | K230: 47.00 | L230: 17.80% | M230: Successful | N230: 2016-08-22
A231: 41 | B231: 2015-11-10 | D231: Pidilitind | E231: Buy | F231: 549.50 | H231: 630 | I231: 630.00 | J231: Target Achieved | K231: 80.50 | L231: 14.65% | M231: Successful | N231: 2016-02-19
A232: 42 | B232: 2015-12-04 | D232: Zensar Technology | E232: Accu | F232: 1027.50 | H232: 1315 | I232: 1250.00 | J232: Target Achieved | K232: =H232-F232 -> 287.50 | L232: 27.98% | M232: Successful | N232: 2018-05-24
A233: 43 | B233: 2015-12-29 | D233: Vinati Organics Ltd | E233: Accu | F233: 465.00 | H233: 540 | I233: 540.00 | J233: Target Achieved | K233: 75.00 | L233: =K233/F233 -> 16.13% | M233: Successful | N233: 2016-06-09
A234: 44 | B234: 2016-01-11 | D234: GSFC | E234: Buy | F234: 81.00 | H234: 110 | I234: 110.00 | J234: Target Achieved | K234: 29.00 | L234: 35.80% | M234: Successful | N234: 2017-01-10
A235: 45 | B235: 2016-01-13 | D235: SSWL | E235: Buy | F235: 417.50 | H235: 547 | I235: 535.00 | J235: Target Achieved | K235: 129.50 | L235: 31.02% | M235: Successful | N235: 2016-07-27
A236: 46 | B236: 2016-02-08 | D236: Persistent System Ltd | E236: Accu | F236: 650.00 | H236: 800 | I236: 800.00 | J236: Target Achieved | K236: 150.00 | L236: 23.08% | M236: Successful | N236: 2018-02-23
A237: 47 | B237: 2016-03-04 | D237: UPL | E237: Accu | F237: 437.50 | H237: 504.5 | I237: 522.00 | J237: Profit of Rs.67/- | K237: 67.00 | L237: 15.31% | M237: Successful | N237: 2016-04-20
A238: 48 | B238: 2016-03-09 | D238: Ashoka Buildcon Ltd | E238: Accu | F238: 189.50 | H238: 218 | I238: 218.00 | J238: Target Achieved | K238: 28.50 | L238: 15.04% | M238: Successful | N238: 2017-10-26
A239: 49 | B239: 2016-04-11 | D239: PTC INDIA FIN SERV LTD | E239: Accu | F239: 36-37 | I239: 60.00 | J239: Open
A240: 50 | B240: 2016-04-12 | D240: CAMLINFINE $ | E240: Accu | F240: 93.00 | H240: 149 | I240: 140.00 | J240: Profit of Rs 56/- | K240: 56.00 | L240: =K240/F240 -> 60.22% | M240: Successful | N240: 2017-01-05
A241: 51 | B241: 2016-04-12 | D241: Greaves Cotton Ltd. | E241: Accu | F241: 130.00 | H241: 150 | I241: 150-155 | J241: Target Achieved | K241: 20.00 | L241: 15.38% | M241: Successful | N241: 2016-07-13
A242: 52 | B242: 2016-04-13 | D242: DHFL | E242: Accu | F242: 196.00 | H242: 299 | I242: 299.00 | J242: Target Achieved | K242: 103.00 | L242: 52.55% | M242: Successful | N242: 2016-09-07
A243: 53 | B243: 2016-04-13 | D243: Magma | E243: Accu | F243: 88.00 | H243: 103 | I243: 103.00 | J243: Target Achieved | K243: 15.00 | L243: 17.05% | M243: Successful | N243: 2016-06-09
A244: 54 | B244: 2016-05-02 | D244: KEC International ltd $ | E244: Accu | F244: 127.50 | H244: 148 | I244: 148-150 | J244: Target Achieved | K244: 20.50 | L244: 16.08% | M244: Successful | N244: 2016-07-13
A245: 55 | B245: 2016-05-03 | D245: Mindtree | E245: Accu | F245: 675.00 | H245: 815 | I245: 790-800 | J245: Target Achieved | K245: 140.00 | L245: 20.74% | M245: Successful | N245: 2018-02-23
A246: 56 | B246: 2016-06-01 | D246: Atulauto | E246: Accu | F246: 495-505 | I246: 565-570 | J246: Open
... 91 more rows

Sheet Sheet2 (hidden)
A1: SYMBOL | B1: SERIES | C1: OPEN | D1: HIGH | E1: LOW | F1: CLOSE | G1: LAST | H1: PREVCLOSE | I1: TOTTRDQTY | J1: TOTTRDVAL | K1: TIMESTAMP | L1: TOTALTRADES | M1: ISIN | N1: ISIN
A2: 20MICRONS | B2: EQ | C2: 38 | D2: 39 | E2: 36.65 | F2: 37.05 | G2: 37.2 | H2: 38 | I2: 31586 | J2: 1177024.15 | K2: 2019-01-31 | L2: 429 | M2: INE144J01027
A3: 21STCENMGM | B3: EQ | C3: 21.55 | D3: 22 | E3: 21.55 | F3: 21.55 | G3: 21.55 | H3: 21.95 | I3: 586 | J3: 12685.25 | K3: 2019-01-31 | L3: 17 | M3: INE253B01015
A4: 3IINFOTECH | B4: EQ | C4: 3.35 | D4: 3.45 | E4: 3.25 | F4: 3.35 | G4: 3.35 | H4: 3.3 | I4: 2354456 | J4: 7824461.3 | K4: 2019-01-31 | L4: 865 | M4: INE748C01020
A5: 3MINDIA | B5: EQ | C5: 20115 | D5: 20395.9 | E5: 20115 | F5: 20151.6 | G5: 20125.05 | H5: 20146.45 | I5: 464 | J5: 9372244.55 | K5: 2019-01-31 | L5: 277 | M5: INE470A01017
A6: 3PLAND | B6: EQ | C6: 10.5 | D6: 10.5 | E6: 10.5 | F6: 10.5 | G6: 10.5 | H6: 10.5 | I6: 90 | J6: 945 | K6: 2019-01-31 | L6: 1 | M6: INE105C01023
A7: 5PAISA | B7: EQ | C7: 247 | D7: 254.05 | E7: 240.75 | F7: 242.75 | G7: 240.75 | H7: 244.1 | I7: 1376 | J7: 339778.15 | K7: 2019-01-31 | L7: 161 | M7: INE618L01018
A8: 63MOONS | B8: EQ | C8: 92.3 | D8: 92.3 | E8: 87.55 | F8: 88.35 | G8: 88.1 | H8: 91.75 | I8: 312524 | J8: 27805116.25 | K8: 2019-01-31 | L8: 5577 | M8: INE111B01023
A9: 8KMILES | B9: EQ | C9: 126 | D9: 126 | E9: 126 | F9: 126 | G9: 126 | H9: 120 | I9: 70867 | J9: 8929242 | K9: 2019-01-31 | L9: 401 | M9: INE650K01021
A10: A2ZINFRA | B10: EQ | C10: 10.35 | D10: 10.35 | E10: 10.15 | F10: 10.35 | G10: 10.35 | H10: 9.9 | I10: 44512 | J10: 459509.35 | K10: 2019-01-31 | L10: 115 | M10: INE619I01012
A11: AARTIDRUGS | B11: EQ | C11: 594.8 | D11: 609 | E11: 580 | F11: 588.95 | G11: 585.5 | H11: 591.25 | I11: 7932 | J11: 4716436.05 | K11: 2019-01-31 | L11: 762 | M11: INE767A01016
A12: AARTIIND | B12: EQ | C12: 1608.55 | D12: 1659.5 | E12: 1608.55 | F12: 1625.65 | G12: 1625 | H12: 1600.6 | I12: 92067 | J12: 150752048.2 | K12: 2019-01-31 | L12: 12350 | M12: INE769A01020
A13: AARVEEDEN | B13: EQ | C13: 23.55 | D13: 23.95 | E13: 23.2 | F13: 23.5 | G13: 23.5 | H13: 23.5 | I13: 3146 | J13: 73977.2 | K13: 2019-01-31 | L13: 92 | M13: INE273D01019
A14: AAVAS | B14: EQ | C14: 843.8 | D14: 869.85 | E14: 835.6 | F14: 853.85 | G14: 868 | H14: 830.75 | I14: 13153 | J14: 11158448.55 | K14: 2019-01-31 | L14: 1312 | M14: INE216P01012
A15: ABAN | B15: EQ | C15: 66.1 | D15: 67.7 | E15: 65.05 | F15: 67.15 | G15: 66.8 | H15: 66.25 | I15: 361560 | J15: 24024352.65 | K15: 2019-01-31 | L15: 3474 | M15: INE421A01028
A16: ABB | B16: EQ | C16: 1260 | D16: 1288.1 | E16: 1251.3 | F16: 1272.3 | G16: 1270 | H16: 1264.65 | I16: 80557 | J16: 102426595.3 | K16: 2019-01-31 | L16: 5941 | M16: INE117A01022
A17: ABBOTINDIA | B17: EQ | C17: 8042.25 | D17: 8094.95 | E17: 8012.1 | F17: 8070.1 | G17: 8050 | H17: 8042.25 | I17: 2640 | J17: 21289519.3 | K17: 2019-01-31 | L17: 337 | M17: INE358A01014
A18: ABCAPITAL | B18: EQ | C18: 82.9 | D18: 83 | E18: 80.2 | F18: 81 | G18: 80.9 | H18: 82.3 | I18: 2286803 | J18: 185283267.8 | K18: 2019-01-31 | L18: 22656 | M18: INE674K01013
A19: ABFRL | B19: EQ | C19: 210 | D19: 213.9 | E19: 205 | F19: 209.5 | G19: 209.5 | H19: 208.5 | I19: 701118 | J19: 146937842.6 | K19: 2019-01-31 | L19: 12999 | M19: INE647O01011
A20: ABSLNN50ET | B20: EQ | C20: 287.33 | D20: 287.33 | E20: 287.33 | F20: 287.33 | G20: 287.33 | H20: 289.4 | I20: 7 | J20: 2011.31 | K20: 2019-01-31 | L20: 1 | M20: INF209KB1B87
A21: ACC | B21: EQ | C21: 1391.05 | D21: 1428.8 | E21: 1391.05 | F21: 1423.35 | G21: 1420 | H21: 1386.6 | I21: 837929 | J21: 1184483140 | K21: 2019-01-31 | L21: 21807 | M21: INE012A01025
A22: ACCELYA | B22: EQ | C22: 922.05 | D22: 934.6 | E22: 918.4 | F22: 922.4 | G22: 920 | H22: 922.1 | I22: 1466 | J22: 1357521.75 | K22: 2019-01-31 | L22: 207 | M22: INE793A01012
A23: ACE | B23: EQ | C23: 91.5 | D23: 91.95 | E23: 87.5 | F23: 87.9 | G23: 87.8 | H23: 90.45 | I23: 154377 | J23: 13664525.95 | K23: 2019-01-31 | L23: 2719 | M23: INE731H01025
A24: ADANIENT | B24: EQ | C24: 139.5 | D24: 141.75 | E24: 135 | F24: 137.15 | G24: 136 | H24: 139.9 | I24: 3498642 | J24: 482472334.2 | K24: 2019-01-31 | L24: 19195 | M24: INE423A01024
A25: ADANIGAS | B25: EQ | C25: 95.3 | D25: 96 | E25: 91 | F25: 92.45 | G25: 92.25 | H25: 94.7 | I25: 572228 | J25: 53290927.85 | K25: 2019-01-31 | L25: 3302 | M25: INE399L01023
A26: ADANIGREEN | B26: EQ | C26: 38 | D26: 39.85 | E26: 35 | F26: 35.6 | G26: 35.15 | H26: 37.3 | I26: 733194 | J26: 27081467.4 | K26: 2019-01-31 | L26: 3324 | M26: INE364U01010
A27: ADANIPORTS | B27: EQ | C27: 339.9 | D27: 341.7 | E27: 330.2 | F27: 338.65 | G27: 338 | H27: 338.15 | I27: 6403921 | J27: 2146216221 | K27: 2019-01-31 | L27: 77086 | M27: INE742F01042
A28: ADANIPOWER | B28: EQ | C28: 44.75 | D28: 46.5 | E28: 43.05 | F28: 45.5 | G28: 46.3 | H28: 44.5 | I28: 17642681 | J28: 783569188.5 | K28: 2019-01-31 | L28: 31674 | M28: INE814H01011
A29: ADANITRANS | B29: EQ | C29: 214.75 | D29: 219.5 | E29: 212.5 | F29: 213.4 | G29: 212.75 | H29: 213.9 | I29: 110080 | J29: 23713213.4 | K29: 2019-01-31 | L29: 3144 | M29: INE931S01010
A30: ADFFOODS | B30: EQ | C30: 244.35 | D30: 246.95 | E30: 240.55 | F30: 242.3 | G30: 241 | H30: 243.2 | I30: 12992 | J30: 3168207.65 | K30: 2019-01-31 | L30: 542 | M30: INE982B01019
A31: ADHUNIK | B31: EQ | C31: 1.95 | D31: 1.95 | E31: 1.9 | F31: 1.9 | G31: 1.9 | H31: 1.95 | I31: 25850 | J31: 49485.3 | K31: 2019-01-31 | L31: 47 | M31: INE400H01019
A32: ADHUNIKIND | B32: EQ | C32: 45.8 | D32: 46 | E32: 42 | F32: 43.85 | G32: 43.65 | H32: 44.15 | I32: 17162 | J32: 751254.55 | K32: 2019-01-31 | L32: 217 | M32: INE452L01012
A33: ADLABS | B33: EQ | C33: 9.6 | D33: 9.6 | E33: 9.1 | F33: 9.2 | G33: 9.2 | H33: 9.3 | I33: 125467 | J33: 1156597.2 | K33: 2019-01-31 | L33: 210 | M33: INE172N01012
A34: ADORWELD | B34: EQ | C34: 349.95 | D34: 355 | E34: 346.9 | F34: 349.65 | G34: 349 | H34: 348.7 | I34: 11112 | J34: 3909485.45 | K34: 2019-01-31 | L34: 757 | M34: INE045A01017
A35: ADROITINFO | B35: EQ | C35: 17 | D35: 17.95 | E35: 15.4 | F35: 17.1 | G35: 17 | H35: 17.1 | I35: 3130 | J35: 52481.35 | K35: 2019-01-31 | L35: 27 | M35: INE737B01033
A36: ADSL | B36: EQ | C36: 13.15 | D36: 13.5 | E36: 12.8 | F36: 12.8 | G36: 12.8 | H36: 13 | I36: 7062 | J36: 91743.55 | K36: 2019-01-31 | L36: 51 | M36: INE102I01027
A37: ADVANIHOTR | B37: EQ | C37: 70 | D37: 74.5 | E37: 70 | F37: 72.25 | G37: 73.8 | H37: 69.65 | I37: 33903 | J37: 2467721.1 | K37: 2019-01-31 | L37: 662 | M37: INE199C01026
A38: ADVENZYMES | B38: EQ | C38: 161.7 | D38: 168 | E38: 160.25 | F38: 166.5 | G38: 166 | H38: 161.7 | I38: 60544 | J38: 10010684.2 | K38: 2019-01-31 | L38: 1621 | M38: INE837H01020
A39: AEGISCHEM | B39: EQ | C39: 193 | D39: 193 | E39: 187.5 | F39: 189.9 | G39: 190.1 | H39: 188.8 | I39: 58676 | J39: 11120738.15 | K39: 2019-01-31 | L39: 3082 | M39: INE208C01025
A40: AGARIND | B40: EQ | C40: 162.95 | D40: 168.8 | E40: 158.4 | F40: 168.8 | G40: 168.8 | H40: 157.75 | I40: 325 | J40: 52229.2 | K40: 2019-01-31 | L40: 22 | M40: INE204E01012
A41: AGCNET | B41: EQ | C41: 116.8 | D41: 116.95 | E41: 114.25 | F41: 116 | G41: 115.35 | H41: 116.75 | I41: 16348 | J41: 1891512.15 | K41: 2019-01-31 | L41: 160 | M41: INE676A01019
A42: AGLSL | B42: EQ | C42: 63.3 | D42: 67.7 | E42: 63.3 | F42: 64 | G42: 63.5 | H42: 65 | I42: 6445 | J42: 412784.4 | K42: 2019-01-31 | L42: 84 | M42: INE517U01013
A43: AGRITECH | B43: EQ | C43: 55.4 | D43: 56.45 | E43: 54.15 | F43: 56.45 | G43: 56.45 | H43: 53.8 | I43: 10981 | J43: 615354.2 | K43: 2019-01-31 | L43: 163 | M43: INE449G01018
A44: AHLEAST | B44: EQ | C44: 237.05 | D44: 246.95 | E44: 235.2 | F44: 236.9 | G44: 242 | H44: 239.45 | I44: 943 | J44: 228093.65 | K44: 2019-01-31 | L44: 122 | M44: INE926K01017
A45: AHLUCONT | B45: EQ | C45: 269.75 | D45: 286.95 | E45: 269.6 | F45: 280 | G45: 278 | H45: 267.8 | I45: 10854 | J45: 3027320.45 | K45: 2019-01-31 | L45: 791 | M45: INE758C01029
A46: AHLWEST | B46: EQ | C46: 309 | D46: 375.95 | E46: 306.05 | F46: 341.9 | G46: 374 | H46: 314.3 | I46: 4528 | J46: 1505967.6 | K46: 2019-01-31 | L46: 144 | M46: INE915K01010
A47: AIAENG | B47: EQ | C47: 1618.85 | D47: 1633.85 | E47: 1590.5 | F47: 1607.2 | G47: 1599.85 | H47: 1625.05 | I47: 18963 | J47: 30587388.05 | K47: 2019-01-31 | L47: 3630 | M47: INE212H01026
A48: AIFL | B48: EQ | C48: 15.75 | D48: 17.35 | E48: 15.75 | F48: 17.35 | G48: 17.35 | H48: 16.55 | I48: 187510 | J48: 3143433.45 | K48: 2019-01-31 | L48: 379 | M48: INE428O01016
A49: AIONJSW | B49: EQ | C49: 34.75 | D49: 37.2 | E49: 34.05 | F49: 35.15 | G49: 35.05 | H49: 34.55 | I49: 23413 | J49: 830367.9 | K49: 2019-01-31 | L49: 242 | M49: INE743C01021
A50: AJANTPHARM | B50: EQ | C50: 1035 | D50: 1075 | E50: 1009 | F50: 1020.65 | G50: 1021 | H50: 1088.85 | I50: 1573401 | J50: 1626448342 | K50: 2019-01-31 | L50: 50697 | M50: INE031B01049
A51: AJMERA | B51: EQ | C51: 172.45 | D51: 183 | E51: 168.05 | F51: 180.15 | G51: 179 | H51: 171.25 | I51: 182338 | J51: 32287694.55 | K51: 2019-01-31 | L51: 3761 | M51: INE298G01027
A52: AKSHARCHEM | B52: EQ | C52: 396.15 | D52: 406 | E52: 391.95 | F52: 396.8 | G52: 398.45 | H52: 397.85 | I52: 2019 | J52: 800405.9 | K52: 2019-01-31 | L52: 177 | M52: INE542B01011
A53: AKSHOPTFBR | B53: EQ | C53: 21.4 | D53: 22.05 | E53: 21.25 | F53: 21.8 | G53: 21.8 | H53: 21.1 | I53: 463225 | J53: 10010981.75 | K53: 2019-01-31 | L53: 1926 | M53: INE523B01011
A54: AKZOINDIA | B54: EQ | C54: 1735 | D54: 1783.95 | E54: 1725 | F54: 1759.85 | G54: 1740 | H54: 1728.5 | I54: 5882 | J54: 10266960.2 | K54: 2019-01-31 | L54: 638 | M54: INE133A01011
A55: ALANKIT | B55: EQ | C55: 29.5 | D55: 30.25 | E55: 29.2 | F55: 29.95 | G55: 29.8 | H55: 29 | I55: 901280 | J55: 26913443.95 | K55: 2019-01-31 | L55: 1305 | M55: INE914E01040
A56: ALBERTDAVD | B56: EQ | C56: 380 | D56: 385 | E56: 372 | F56: 375.35 | G56: 377 | H56: 375.15 | I56: 2812 | J56: 1058899.65 | K56: 2019-01-31 | L56: 155 | M56: INE155C01010
A57: ALBK | B57: EQ | C57: 45.1 | D57: 46.15 | E57: 44.8 | F57: 45.15 | G57: 45.15 | H57: 44.9 | I57: 9523555 | J57: 431540519.8 | K57: 2019-01-31 | L57: 22392 | M57: INE428A01015
A58: ALCHEM | B58: BE | C58: 2.45 | D58: 2.65 | E58: 2.45 | F58: 2.45 | G58: 2.45 | H58: 2.55 | I58: 3426 | J58: 8476.95 | K58: 2019-01-31 | L58: 17 | M58: INE964B01033
A59: ALEMBICLTD | B59: EQ | C59: 41.05 | D59: 41.75 | E59: 40.5 | F59: 40.9 | G59: 40.8 | H59: 41.7 | I59: 118314 | J59: 4851736.5 | K59: 2019-01-31 | L59: 1158 | M59: INE426A01027
A60: ALICON | B60: EQ | C60: 545.1 | D60: 568.9 | E60: 542 | F60: 550 | G60: 550 | H60: 548.75 | I60: 2158 | J60: 1197599.15 | K60: 2019-01-31 | L60: 230 | M60: INE062D01024
A61: ALKALI | B61: EQ | C61: 51.75 | D61: 51.75 | E61: 48.55 | F61: 49.25 | G61: 48.55 | H61: 49.35 | I61: 1980 | J61: 98421.15 | K61: 2019-01-31 | L61: 98 | M61: INE773I01017
A62: ALKEM | B62: EQ | C62: 1840 | D62: 1912.95 | E62: 1840 | F62: 1883.2 | G62: 1882 | H62: 1869.5 | I62: 63904 | J62: 119971741.2 | K62: 2019-01-31 | L62: 2448 | M62: INE540L01014
A63: ALKYLAMINE | B63: EQ | C63: 754 | D63: 758.4 | E63: 740 | F63: 751.6 | G63: 752.5 | H63: 750.8 | I63: 10553 | J63: 7915762.85 | K63: 2019-01-31 | L63: 441 | M63: INE150B01021
A64: ALLCARGO | B64: EQ | C64: 107.4 | D64: 107.75 | E64: 105.15 | F64: 105.55 | G64: 105.15 | H64: 106.75 | I64: 25816 | J64: 2743690.15 | K64: 2019-01-31 | L64: 454 | M64: INE418H01029
A65: ALLSEC | B65: EQ | C65: 185.25 | D65: 185.35 | E65: 180.15 | F65: 182.95 | G65: 184 | H65: 184.7 | I65: 3940 | J65: 717611.9 | K65: 2019-01-31 | L65: 301 | M65: INE835G01018
A66: ALMONDZ | B66: EQ | C66: 22 | D66: 23.9 | E66: 21.2 | F66: 22.45 | G66: 23.2 | H66: 22.15 | I66: 1098 | J66: 25056.8 | K66: 2019-01-31 | L66: 41 | M66: INE326B01027
A67: ALOKTEXT | B67: EQ | C67: 4 | D67: 4 | E67: 3.85 | F67: 3.85 | G67: 3.85 | H67: 3.85 | I67: 2291105 | J67: 9010858.45 | K67: 2019-01-31 | L67: 953 | M67: INE270A01011
A68: ALPA | B68: EQ | C68: 24 | D68: 25.8 | E68: 23.85 | F68: 24.65 | G68: 24.8 | H68: 23.8 | I68: 53344 | J68: 1328172.4 | K68: 2019-01-31 | L68: 501 | M68: INE385I01010
A69: ALPHAGEO | B69: EQ | C69: 470.05 | D69: 476.2 | E69: 462 | F69: 464.3 | G69: 462 | H69: 470.9 | I69: 2389 | J69: 1114251.5 | K69: 2019-01-31 | L69: 270 | M69: INE137C01018
A70: AMARAJABAT | B70: EQ | C70: 746 | D70: 759.25 | E70: 739.15 | F70: 744.95 | G70: 750 | H70: 751.8 | I70: 320601 | J70: 239614932.2 | K70: 2019-01-31 | L70: 15964 | M70: INE885A01032
A71: AMBER | B71: EQ | C71: 749.2 | D71: 758 | E71: 735 | F71: 742.35 | G71: 748.1 | H71: 749.2 | I71: 7238 | J71: 5388447.5 | K71: 2019-01-31 | L71: 620 | M71: INE371P01015
A72: AMBIKCO | B72: EQ | C72: 1132.1 | D72: 1145 | E72: 1132.1 | F72: 1143.4 | G72: 1144.8 | H72: 1139.25 | I72: 2008 | J72: 2295545.45 | K72: 2019-01-31 | L72: 178 | M72: INE540G01014
A73: AMBUJACEM | B73: EQ | C73: 205.7 | D73: 212 | E73: 204.45 | F73: 209.9 | G73: 210.05 | H73: 204.65 | I73: 7669625 | J73: 1606791440 | K73: 2019-01-31 | L73: 39337 | M73: INE079A01024
A74: AMDIND | B74: EQ | C74: 22.25 | D74: 22.45 | E74: 21.85 | F74: 22 | G74: 21.95 | H74: 22 | I74: 5245 | J74: 115917.65 | K74: 2019-01-31 | L74: 60 | M74: INE005I01014
A75: AMJLAND | B75: EQ | C75: 19.5 | D75: 20.3 | E75: 19.5 | F75: 20.05 | G75: 20.1 | H75: 19.55 | I75: 2245 | J75: 44781.2 | K75: 2019-01-31 | L75: 43 | M75: INE606A01024
A76: AMRUTANJAN | B76: EQ | C76: 308.2 | D76: 312.75 | E76: 303 | F76: 305.25 | G76: 305 | H76: 308.05 | I76: 16752 | J76: 5146278.5 | K76: 2019-01-31 | L76: 895 | M76: INE098F01031
A77: ANANTRAJ | B77: EQ | C77: 32.15 | D77: 33.7 | E77: 32.05 | F77: 33.4 | G77: 33.3 | H77: 32.1 | I77: 170637 | J77: 5590629.85 | K77: 2019-01-31 | L77: 868 | M77: INE242C01024
A78: ANDHRABANK | B78: EQ | C78: 26.1 | D78: 26.1 | E78: 24.85 | F78: 25.25 | G78: 25.05 | H78: 25.9 | I78: 1503528 | J78: 38290645.4 | K78: 2019-01-31 | L78: 5219 | M78: INE434A01013
A79: ANDHRACEMT | B79: EQ | C79: 4.65 | D79: 4.7 | E79: 4.55 | F79: 4.55 | G79: 4.6 | H79: 4.65 | I79: 63299 | J79: 291631.1 | K79: 2019-01-31 | L79: 169 | M79: INE666E01012
A80: ANDHRSUGAR | B80: EQ | C80: 310 | D80: 312 | E80: 306 | F80: 308.35 | G80: 309.7 | H80: 305.05 | I80: 9967 | J80: 3076086.2 | K80: 2019-01-31 | L80: 528 | M80: INE715B01013
A81: ANGIND | B81: BE | C81: 0.95 | D81: 0.95 | E81: 0.9 | F81: 0.9 | G81: 0.9 | H81: 0.9 | I81: 4879 | J81: 4614.55 | K81: 2019-01-31 | L81: 5 | M81: INE017D01010
A82: ANIKINDS | B82: EQ | C82: 18.45 | D82: 18.45 | E82: 16.6 | F82: 16.95 | G82: 16.6 | H82: 17.35 | I82: 8681 | J82: 148648 | K82: 2019-01-31 | L82: 81 | M82: INE087B01017
A83: ANKITMETAL | B83: BE | C83: 0.5 | D83: 0.5 | E83: 0.4 | F83: 0.4 | G83: 0.45 | H83: 0.45 | I83: 46861 | J83: 21931.9 | K83: 2019-01-31 | L83: 27 | M83: INE106I01010
A84: ANSALAPI | B84: EQ | C84: 11.1 | D84: 12.25 | E84: 11 | F84: 12 | G84: 11.9 | H84: 11.1 | I84: 155310 | J84: 1803593.95 | K84: 2019-01-31 | L84: 599 | M84: INE436A01026
A85: ANSALHSG | B85: EQ | C85: 11.8 | D85: 12.5 | E85: 11.45 | F85: 12.3 | G85: 12.25 | H85: 11.9 | I85: 155597 | J85: 1862281.9 | K85: 2019-01-31 | L85: 674 | M85: INE880B01015
A86: ANTGRAPHIC | B86: BE | C86: 0.45 | D86: 0.5 | E86: 0.45 | F86: 0.5 | G86: 0.5 | H86: 0.5 | I86: 1200 | J86: 545 | K86: 2019-01-31 | L86: 3 | M86: INE414B01021
A87: APARINDS | B87: EQ | C87: 618.3 | D87: 624 | E87: 615 | F87: 621.7 | G87: 619 | H87: 615.7 | I87: 9670 | J87: 5994924.25 | K87: 2019-01-31 | L87: 315 | M87: INE372A01015
A88: APCL | B88: EQ | C88: 105.6 | D88: 112.8 | E88: 105.6 | F88: 110 | G88: 108.9 | H88: 107.3 | I88: 1043 | J88: 115076.45 | K88: 2019-01-31 | L88: 57 | M88: INE071F01012
A89: APCOTEXIND | B89: EQ | C89: 474.95 | D89: 474.95 | E89: 453.75 | F89: 459.3 | G89: 456 | H89: 472.75 | I89: 5224 | J89: 2420663.9 | K89: 2019-01-31 | L89: 387 | M89: INE116A01024
A90: APEX | B90: EQ | C90: 298 | D90: 357.3 | E90: 297.75 | F90: 354.15 | G90: 352.1 | H90: 297.75 | I90: 818432 | J90: 282354376.4 | K90: 2019-01-31 | L90: 18915 | M90: INE346W01013
A91: APLAPOLLO | B91: EQ | C91: 1109.1 | D91: 1128.1 | E91: 1089.55 | F91: 1110.3 | G91: 1125 | H91: 1110.8 | I91: 9692 | J91: 10671615.25 | K91: 2019-01-31 | L91: 848 | M91: INE702C01019
A92: APLLTD | B92: EQ | C92: 599.95 | D92: 609.9 | E92: 586.7 | F92: 593.65 | G92: 593 | H92: 599.25 | I92: 38267 | J92: 23015965 | K92: 2019-01-31 | L92: 3055 | M92: INE901L01018
A93: APOLLO | B93: EQ | C93: 118 | D93: 119.55 | E93: 115 | F93: 116.75 | G93: 116.5 | H93: 116.65 | I93: 7291 | J93: 849874.35 | K93: 2019-01-31 | L93: 280 | M93: INE713T01010
A94: APOLLOHOSP | B94: EQ | C94: 1315 | D94: 1334 | E94: 1313.35 | F94: 1325.65 | G94: 1325 | H94: 1319.6 | I94: 471658 | J94: 623931942.2 | K94: 2019-01-31 | L94: 24911 | M94: INE437A01024
A95: APOLLOTYRE | B95: EQ | C95: 205.3 | D95: 205.3 | E95: 199.3 | F95: 204.35 | G95: 204.5 | H95: 203.3 | I95: 1795751 | J95: 363710050.6 | K95: 2019-01-31 | L95: 30793 | M95: INE438A01022
A96: APOLSINHOT | B96: BE | C96: 901 | D96: 950 | E96: 881 | F96: 902.95 | G96: 899 | H96: 923.65 | I96: 966 | J96: 872344.75 | K96: 2019-01-31 | L96: 78 | M96: INE451F01024
A97: APTECHT | B97: EQ | C97: 169.05 | D97: 173.5 | E97: 166.25 | F97: 170.15 | G97: 170 | H97: 169.6 | I97: 185034 | J97: 31450392.2 | K97: 2019-01-31 | L97: 5035 | M97: INE266F01018
A98: ARCHIDPLY | B98: EQ | C98: 36.25 | D98: 42.45 | E98: 36.25 | F98: 38.5 | G98: 38.6 | H98: 36 | I98: 60526 | J98: 2394368.6 | K98: 2019-01-31 | L98: 1450 | M98: INE877I01016
A99: ARCHIES | B99: EQ | C99: 27.5 | D99: 28.05 | E99: 27 | F99: 27.5 | G99: 27.6 | H99: 27.7 | I99: 33258 | J99: 913346.6 | K99: 2019-01-31 | L99: 296 | M99: INE731A01020
A100: ARCOTECH | B100: EQ | C100: 6.1 | D100: 6.15 | E100: 5.7 | F100: 5.7 | G100: 5.7 | H100: 6 | I100: 60344 | J100: 346162.55 | K100: 2019-01-31 | L100: 170 | M100: INE574I01035
A101: ARIES | B101: EQ | C101: 93.7 | D101: 93.7 | E101: 88.8 | F101: 92.15 | G101: 92.8 | H101: 88.7 | I101: 28168 | J101: 2572134.2 | K101: 2019-01-31 | L101: 506 | M101: INE298I01015
A102: ARIHANT | B102: EQ | C102: 36.8 | D102: 39.65 | E102: 32.2 | F102: 34.15 | G102: 34.15 | H102: 33.15 | I102: 7207 | J102: 260011.85 | K102: 2019-01-31 | L102: 124 | M102: INE413D01011
A103: ARIHANTSUP | B103: EQ | C103: 51.8 | D103: 52 | E103: 50.3 | F103: 50.8 | G103: 50.45 | H103: 50.95 | I103: 15248 | J103: 776810.05 | K103: 2019-01-31 | L103: 188 | M103: INE643K01018
A104: ARMANFIN | B104: EQ | C104: 380 | D104: 380 | E104: 368.7 | F104: 370.5 | G104: 368.7 | H104: 367 | I104: 1458 | J104: 542525.65 | K104: 2019-01-31 | L104: 40 | M104: INE109C01017
A105: AROGRANITE | B105: EQ | C105: 49.6 | D105: 50.95 | E105: 47.1 | F105: 49.5 | G105: 49.55 | H105: 49.8 | I105: 16219 | J105: 787957.75 | K105: 2019-01-31 | L105: 275 | M105: INE210C01013
A106: ARROWGREEN | B106: BE | C106: 100 | D106: 100.85 | E106: 94.1 | F106: 98.15 | G106: 98 | H106: 96.75 | I106: 2058 | J106: 201142.3 | K106: 2019-01-31 | L106: 51 | M106: INE570D01018
A107: ARROWTEX | B107: EQ | C107: 16.9 | D107: 16.9 | E107: 16.5 | F107: 16.65 | G107: 16.65 | H107: 16.25 | I107: 5451 | J107: 91161.3 | K107: 2019-01-31 | L107: 36 | M107: INE933J01015
A108: ARSHIYA | B108: EQ | C108: 29.8 | D108: 30.1 | E108: 28.55 | F108: 29.55 | G108: 29.95 | H108: 28.85 | I108: 51104 | J108: 1510310.8 | K108: 2019-01-31 | L108: 656 | M108: INE968D01022
A109: ARSSINFRA | B109: EQ | C109: 31 | D109: 31.75 | E109: 30.2 | F109: 30.4 | G109: 31.45 | H109: 31 | I109: 4084 | J109: 125615.45 | K109: 2019-01-31 | L109: 37 | M109: INE267I01010
A110: ARVIND | B110: EQ | C110: 91.35 | D110: 91.95 | E110: 88 | F110: 88.15 | G110: 88.4 | H110: 91 | I110: 2464301 | J110: 219198507.1 | K110: 2019-01-31 | L110: 11192 | M110: INE034A01011
A111: ARVSMART | B111: EQ | C111: 138.8 | D111: 138.8 | E111: 123.95 | F111: 124.65 | G111: 125.4 | H111: 120 | I111: 145008 | J111: 18623769.8 | K111: 2019-01-31 | L111: 2213 | M111: INE034S01021
A112: ASAHIINDIA | B112: EQ | C112: 256.3 | D112: 256.3 | E112: 255 | F112: 255.1 | G112: 255 | H112: 255 | I112: 10470 | J112: 2671722.95 | K112: 2019-01-31 | L112: 225 | M112: INE439A01020
A113: ASAHISONG | B113: EQ | C113: 185.05 | D113: 187.85 | E113: 183 | F113: 184.35 | G113: 183.2 | H113: 186.7 | I113: 4600 | J113: 849232.8 | K113: 2019-01-31 | L113: 197 | M113: INE228I01012
A114: ASAL | B114: EQ | C114: 57 | D114: 57.5 | E114: 55.8 | F114: 56.05 | G114: 55.8 | H114: 55.4 | I114: 9016 | J114: 511968.4 | K114: 2019-01-31 | L114: 116 | M114: INE900C01027
A115: ASHAPURMIN | B115: EQ | C115: 26.5 | D115: 26.8 | E115: 26.1 | F115: 26.35 | G115: 26.5 | H115: 26.2 | I115: 19045 | J115: 501760.95 | K115: 2019-01-31 | L115: 245 | M115: INE348A01023
A116: ASHIANA | B116: EQ | C116: 109.35 | D116: 115.5 | E116: 109.35 | F116: 114.35 | G116: 114.8 | H116: 110.4 | I116: 14890 | J116: 1681964.45 | K116: 2019-01-31 | L116: 324 | M116: INE365D01021
A117: ASHIMASYN | B117: BE | C117: 13.5 | D117: 14.25 | E117: 13.4 | F117: 14.25 | G117: 14.1 | H117: 13.6 | I117: 58319 | J117: 822223.6 | K117: 2019-01-31 | L117: 76 | M117: INE440A01010
A118: ASHOKA | B118: EQ | C118: 126.85 | D118: 127.5 | E118: 118 | F118: 119.7 | G118: 119.35 | H118: 121.85 | I118: 198591 | J118: 24344810.15 | K118: 2019-01-31 | L118: 2921 | M118: INE442H01029
A119: ASHOKLEY | B119: EQ | C119: 81.3 | D119: 82.2 | E119: 79.55 | F119: 81.3 | G119: 81.6 | H119: 80.95 | I119: 36294901 | J119: 2942446999 | K119: 2019-01-31 | L119: 99490 | M119: INE208A01029
A120: ASIANHOTNR | B120: EQ | C120: 143.25 | D120: 149.9 | E120: 143.25 | F120: 147.95 | G120: 149 | H120: 143 | I120: 3204 | J120: 470079.55 | K120: 2019-01-31 | L120: 39 | M120: INE363A01022
A121: ASIANPAINT | B121: EQ | C121: 1400 | D121: 1415 | E121: 1391.05 | F121: 1412.6 | G121: 1407 | H121: 1390.4 | I121: 1256050 | J121: 1767238320 | K121: 2019-01-31 | L121: 67665 | M121: INE021A01026
A122: ASIANTILES | B122: EQ | C122: 153.25 | D122: 159 | E122: 153 | F122: 157.1 | G122: 156.05 | H122: 154.55 | I122: 49051 | J122: 7649667.25 | K122: 2019-01-31 | L122: 1122 | M122: INE022I01019
A123: ASPINWALL | B123: EQ | C123: 155.6 | D123: 157 | E123: 154.1 | F123: 157 | G123: 157 | H123: 153.25 | I123: 1442 | J123: 225954.1 | K123: 2019-01-31 | L123: 17 | M123: INE991I01015
A124: ASSAMCO | B124: EQ | C124: 1.8 | D124: 1.85 | E124: 1.75 | F124: 1.8 | G124: 1.8 | H124: 1.8 | I124: 213316 | J124: 376921.55 | K124: 2019-01-31 | L124: 119 | M124: INE442A01024
A125: ASTEC | B125: EQ | C125: 522.2 | D125: 522.2 | E125: 506.55 | F125: 511.85 | G125: 514.8 | H125: 507.8 | I125: 4159 | J125: 2129658.2 | K125: 2019-01-31 | L125: 262 | M125: INE563J01010
A126: ASTERDM | B126: EQ | C126: 153 | D126: 155.3 | E126: 152.05 | F126: 155 | G126: 155 | H126: 152.95 | I126: 13409 | J126: 2067620 | K126: 2019-01-31 | L126: 845 | M126: INE914M01019
A127: ASTRAL | B127: EQ | C127: 1120 | D127: 1142 | E127: 1112.9 | F127: 1131.2 | G127: 1142 | H127: 1126.35 | I127: 20992 | J127: 23696862.9 | K127: 2019-01-31 | L127: 5418 | M127: INE006I01046
A128: ASTRAMICRO | B128: EQ | C128: 77.8 | D128: 79.15 | E128: 75.6 | F128: 78.4 | G128: 78 | H128: 77.35 | I128: 242522 | J128: 18870988.1 | K128: 2019-01-31 | L128: 2208 | M128: INE386C01029
A129: ASTRAZEN | B129: EQ | C129: 1602.05 | D129: 1615 | E129: 1600 | F129: 1601.7 | G129: 1600 | H129: 1600.95 | I129: 3038 | J129: 4870930.4 | K129: 2019-01-31 | L129: 326 | M129: INE203A01020
A130: ASTRON | B130: EQ | C130: 117 | D130: 120 | E130: 116.95 | F130: 118.95 | G130: 117.7 | H130: 117.8 | I130: 140056 | J130: 16564080.5 | K130: 2019-01-31 | L130: 1611 | M130: INE646X01014
A131: ATFL | B131: EQ | C131: 557.85 | D131: 569 | E131: 542 | F131: 560.3 | G131: 556.05 | H131: 548.75 | I131: 5851 | J131: 3236858.7 | K131: 2019-01-31 | L131: 448 | M131: INE209A01019
A132: ATLANTA | B132: EQ | C132: 18.25 | D132: 18.65 | E132: 18.05 | F132: 18.3 | G132: 18.5 | H132: 18.7 | I132: 107151 | J132: 1970268.15 | K132: 2019-01-31 | L132: 2910 | M132: INE285H01022
A133: ATLASCYCLE | B133: BE | C133: 73.15 | D133: 76.7 | E133: 73.15 | F133: 74.5 | G133: 74.5 | H133: 76.8 | I133: 1050 | J133: 78017.9 | K133: 2019-01-31 | L133: 26 | M133: INE446A01025
A134: ATUL | B134: EQ | C134: 3519 | D134: 3543.95 | E134: 3450 | F134: 3466.2 | G134: 3464 | H134: 3497.85 | I134: 16907 | J134: 59342964.1 | K134: 2019-01-31 | L134: 2334 | M134: INE100A01010
A135: ATULAUTO | B135: EQ | C135: 308.9 | D135: 309.9 | E135: 303 | F135: 305.55 | G135: 304.35 | H135: 304.5 | I135: 13438 | J135: 4110484.2 | K135: 2019-01-31 | L135: 812 | M135: INE951D01028
A136: AUBANK | B136: EQ | C136: 590 | D136: 594.8 | E136: 581.65 | F136: 584.25 | G136: 584.6 | H136: 586.8 | I136: 257833 | J136: 151782389.3 | K136: 2019-01-31 | L136: 15808 | M136: INE949L01017
A137: AURIONPRO | B137: EQ | C137: 118 | D137: 124 | E137: 117.55 | F137: 119.35 | G137: 118 | H137: 121.4 | I137: 8740 | J137: 1042927.45 | K137: 2019-01-31 | L137: 286 | M137: INE132H01018
A138: AUROPHARMA | B138: EQ | C138: 779.05 | D138: 790 | E138: 777.1 | F138: 787.8 | G138: 785.2 | H138: 778.3 | I138: 1513974 | J138: 1187658037 | K138: 2019-01-31 | L138: 37021 | M138: INE406A01037
A139: AUSOMENT | B139: EQ | C139: 39.35 | D139: 39.9 | E139: 37.45 | F139: 37.75 | G139: 37.45 | H139: 39.05 | I139: 4955 | J139: 188489.9 | K139: 2019-01-31 | L139: 64 | M139: INE218C01016
A140: AUTOAXLES | B140: EQ | C140: 1144 | D140: 1166.9 | E140: 1116.5 | F140: 1125.25 | G140: 1129 | H140: 1144.15 | I140: 8908 | J140: 10188611.85 | K140: 2019-01-31 | L140: 1263 | M140: INE449A01011
A141: AUTOIND | B141: EQ | C141: 64.7 | D141: 64.7 | E141: 62 | F141: 63.05 | G141: 63.4 | H141: 62.25 | I141: 4083 | J141: 256372.35 | K141: 2019-01-31 | L141: 168 | M141: INE718H01014
A142: AUTOLITIND | B142: EQ | C142: 37.5 | D142: 38.05 | E142: 36.65 | F142: 37.4 | G142: 36.85 | H142: 37.8 | I142: 1870 | J142: 70035.9 | K142: 2019-01-31 | L142: 56 | M142: INE448A01013
A143: AVADHSUGAR | B143: EQ | C143: 363 | D143: 369.8 | E143: 357 | F143: 358.4 | G143: 358.95 | H143: 363.25 | I143: 8908 | J143: 3231147.2 | K143: 2019-01-31 | L143: 625 | M143: INE349W01017
A144: AVANTIFEED | B144: EQ | C144: 318.4 | D144: 361.5 | E144: 315 | F144: 356.7 | G144: 355.65 | H144: 316.45 | I144: 2182722 | J144: 759129878.2 | K144: 2019-01-31 | L144: 56401 | M144: INE871C01038
A145: AVTNPL | B145: EQ | C145: 23.95 | D145: 23.95 | E145: 22.7 | F145: 23.3 | G145: 23.35 | H145: 22.6 | I145: 22256 | J145: 518813.8 | K145: 2019-01-31 | L145: 201 | M145: INE488D01021
A146: AXISBANK | B146: EQ | C146: 697.25 | D146: 726.85 | E146: 689.05 | F146: 722.7 | G146: 720.8 | H146: 690.95 | I146: 35239544 | J146: 2.509526969e+10 | K146: 2019-01-31 | L146: 386855 | M146: INE238A01034
A147: AXISCADES | B147: EQ | C147: 62 | D147: 64.7 | E147: 60.25 | F147: 62.25 | G147: 62.15 | H147: 59.75 | I147: 81983 | J147: 5153124.25 | K147: 2019-01-31 | L147: 1780 | M147: INE555B01013
A148: AXISGOLD | B148: EQ | C148: 2893.6 | D148: 2893.6 | E148: 2860.05 | F148: 2869.3 | G148: 2869.3 | H148: 2870.4 | I148: 372 | J148: 1067850.25 | K148: 2019-01-31 | L148: 63 | M148: INF846K01347
A149: AXISNIFTY | B149: EQ | C149: 1085.74 | D149: 1086.74 | E149: 1085.74 | F149: 1086.74 | G149: 1086.74 | H149: 1080.35 | I149: 12 | J149: 13030.88 | K149: 2019-01-31 | L149: 3 | M149: INF846K01ZL0
A150: AYMSYNTEX | B150: EQ | C150: 35 | D150: 35 | E150: 34.05 | F150: 34.7 | G150: 34.8 | H150: 34.45 | I150: 6057 | J150: 210371.7 | K150: 2019-01-31 | L150: 54 | M150: INE193B01039
A151: BAFNAPHARM | B151: EQ | C151: 10.7 | D151: 11.2 | E151: 10.1 | F151: 10.5 | G151: 10.55 | H151: 10.7 | I151: 25798 | J151: 273210.5 | K151: 2019-01-31 | L151: 201 | M151: INE878I01014
A152: BAGFILMS | B152: EQ | C152: 4.5 | D152: 4.55 | E152: 4.4 | F152: 4.45 | G152: 4.5 | H152: 4.4 | I152: 56789 | J152: 252411.15 | K152: 2019-01-31 | L152: 146 | M152: INE116D01028
A153: BAJAJ-AUTO | B153: EQ | C153: 2501.15 | D153: 2570 | E153: 2461.1 | F153: 2554.55 | G153: 2563 | H153: 2499.7 | I153: 1102133 | J153: 2769425835 | K153: 2019-01-31 | L153: 75066 | M153: INE917I01010
A154: BAJAJCON | B154: EQ | C154: 353.95 | D154: 357 | E154: 350.4 | F154: 354.1 | G154: 353.25 | H154: 351.35 | I154: 127250 | J154: 44706917.85 | K154: 2019-01-31 | L154: 1346 | M154: INE933K01021
A155: BAJAJELEC | B155: EQ | C155: 451.05 | D155: 468 | E155: 447.35 | F155: 458.2 | G155: 458.6 | H155: 456.7 | I155: 287725 | J155: 132455234.2 | K155: 2019-01-31 | L155: 9350 | M155: INE193E01025
A156: BAJAJFINSV | B156: EQ | C156: 6244.2 | D156: 6268.9 | E156: 6050 | F156: 6091.9 | G156: 6109 | H156: 6247.2 | I156: 377632 | J156: 2304783757 | K156: 2019-01-31 | L156: 48045 | M156: INE918I01018
A157: BAJAJHIND | B157: EQ | C157: 8.15 | D157: 8.15 | E157: 7.8 | F157: 8.05 | G157: 8 | H157: 8.1 | I157: 1080384 | J157: 8665449.05 | K157: 2019-01-31 | L157: 1136 | M157: INE306A01021
A158: BAJAJHLDNG | B158: EQ | C158: 2836.05 | D158: 2879.7 | E158: 2815 | F158: 2847.05 | G158: 2848.8 | H158: 2852.65 | I158: 28439 | J158: 81130995 | K158: 2019-01-31 | L158: 1902 | M158: INE118A01012
A159: BAJFINANCE | B159: EQ | C159: 2608 | D159: 2608 | E159: 2526 | F159: 2574.85 | G159: 2581.1 | H159: 2595.5 | I159: 2083418 | J159: 5349249189 | K159: 2019-01-31 | L159: 109891 | M159: INE296A01024
A160: BALAJITELE | B160: EQ | C160: 87.45 | D160: 93.5 | E160: 85.3 | F160: 90.85 | G160: 91.25 | H160: 86.5 | I160: 71049 | J160: 6483374.75 | K160: 2019-01-31 | L160: 1402 | M160: INE794B01026
A161: BALAMINES | B161: EQ | C161: 453.85 | D161: 453.85 | E161: 415 | F161: 419.85 | G161: 417 | H161: 425.05 | I161: 15996 | J161: 6785691.7 | K161: 2019-01-31 | L161: 833 | M161: INE050E01027
A162: BALKRISHNA | B162: EQ | C162: 39.4 | D162: 40.9 | E162: 39.3 | F162: 39.8 | G162: 39.7 | H162: 39.85 | I162: 7534 | J162: 301470.9 | K162: 2019-01-31 | L162: 121 | M162: INE875R01011
A163: BALKRISIND | B163: EQ | C163: 811 | D163: 816.5 | E163: 807.75 | F163: 810.6 | G163: 813.4 | H163: 811.55 | I163: 614464 | J163: 497854552 | K163: 2019-01-31 | L163: 14921 | M163: INE787D01026
A164: BALLARPUR | B164: EQ | C164: 3.7 | D164: 3.7 | E164: 3.55 | F164: 3.65 | G164: 3.6 | H164: 3.7 | I164: 961698 | J164: 3499452.9 | K164: 2019-01-31 | L164: 647 | M164: INE294A01037
A165: BALMLAWRIE | B165: EQ | C165: 189.5 | D165: 190 | E165: 186.2 | F165: 188.2 | G165: 187.3 | H165: 186.4 | I165: 24546 | J165: 4622908.75 | K165: 2019-01-31 | L165: 810 | M165: INE164A01016
A166: BALPHARMA | B166: EQ | C166: 74.95 | D166: 75 | E166: 72.8 | F166: 73.05 | G166: 73 | H166: 74.45 | I166: 7365 | J166: 541496.2 | K166: 2019-01-31 | L166: 167 | M166: INE083D01012
A167: BALRAMCHIN | B167: EQ | C167: 102 | D167: 102.5 | E167: 100 | F167: 101.9 | G167: 102.15 | H167: 101.05 | I167: 749045 | J167: 75921650.7 | K167: 2019-01-31 | L167: 4163 | M167: INE119A01028
A168: BANARBEADS | B168: EQ | C168: 45.25 | D168: 45.5 | E168: 44.2 | F168: 45.45 | G168: 45.45 | H168: 45 | I168: 1940 | J168: 87451.5 | K168: 2019-01-31 | L168: 160 | M168: INE655B01011
A169: BANARISUG | B169: EQ | C169: 1426.55 | D169: 1490 | E169: 1426.55 | F169: 1475.8 | G169: 1484 | H169: 1440.5 | I169: 414 | J169: 602626.55 | K169: 2019-01-31 | L169: 33 | M169: INE459A01010
A170: BANCOINDIA | B170: EQ | C170: 170.65 | D170: 171.9 | E170: 169.05 | F170: 169.35 | G170: 169.05 | H170: 169.95 | I170: 14019 | J170: 2384391.7 | K170: 2019-01-31 | L170: 306 | M170: INE213C01025
A171: BANDHANBNK | B171: EQ | C171: 410 | D171: 410 | E171: 397 | F171: 403.95 | G171: 404.5 | H171: 405.95 | I171: 957862 | J171: 387149883.9 | K171: 2019-01-31 | L171: 23271 | M171: INE545U01014
A172: BANG | B172: EQ | C172: 55.45 | D172: 56.6 | E172: 54.85 | F172: 55.75 | G172: 55.05 | H172: 55.4 | I172: 43801 | J172: 2449126.3 | K172: 2019-01-31 | L172: 343 | M172: INE863I01016
A173: BANKBARODA | B173: EQ | C173: 114.4 | D173: 114.95 | E173: 110.55 | F173: 112.45 | G173: 112.8 | H173: 113.7 | I173: 14842463 | J173: 1663341963 | K173: 2019-01-31 | L173: 56264 | M173: INE028A01039
A174: BANKBEES | B174: EQ | C174: 2770 | D174: 2782.5 | E174: 2728.8 | F174: 2779.22 | G174: 2777 | H174: 2734.63 | I174: 26649 | J174: 73829057.48 | K174: 2019-01-31 | L174: 754 | M174: INF732E01078
A175: BANKINDIA | B175: EQ | C175: 99.4 | D175: 104.7 | E175: 97.3 | F175: 102.8 | G175: 103.7 | H175: 99.15 | I175: 13627828 | J175: 1363990276 | K175: 2019-01-31 | L175: 42493 | M175: INE084A01016
A176: BANSWRAS | B176: EQ | C176: 71.05 | D176: 72.85 | E176: 70 | F176: 70.05 | G176: 70 | H176: 71.05 | I176: 655 | J176: 46108.55 | K176: 2019-01-31 | L176: 22 | M176: INE629D01012
A177: BARTRONICS | B177: EQ | C177: 6.5 | D177: 6.95 | E177: 6.15 | F177: 6.35 | G177: 6.5 | H177: 6.5 | I177: 22746 | J177: 146005.15 | K177: 2019-01-31 | L177: 63 | M177: INE855F01034
A178: BASF | B178: EQ | C178: 1335.45 | D178: 1379 | E178: 1332.1 | F178: 1352.7 | G178: 1361 | H178: 1355.6 | I178: 12835 | J178: 17356329.15 | K178: 2019-01-31 | L178: 1673 | M178: INE373A01013
A179: BASML | B179: EQ | C179: 198 | D179: 199 | E179: 190.15 | F179: 195.95 | G179: 192 | H179: 194.45 | I179: 1758 | J179: 342901.9 | K179: 2019-01-31 | L179: 29 | M179: INE186H01014
A180: BATAINDIA | B180: EQ | C180: 1107.6 | D180: 1126.85 | E180: 1087.1 | F180: 1118.6 | G180: 1120 | H180: 1103.8 | I180: 568576 | J180: 628312270.9 | K180: 2019-01-31 | L180: 16826 | M180: INE176A01028
A181: BAYERCROP | B181: EQ | C181: 4386.8 | D181: 4449.8 | E181: 4328.05 | F181: 4377.55 | G181: 4400 | H181: 4356.6 | I181: 5060 | J181: 22200605.4 | K181: 2019-01-31 | L181: 2821 | M181: INE462A01022
A182: BBL | B182: EQ | C182: 1093.55 | D182: 1149.8 | E182: 1084.65 | F182: 1125.8 | G182: 1119.15 | H182: 1090.7 | I182: 8715 | J182: 9771170.8 | K182: 2019-01-31 | L182: 863 | M182: INE464A01028
A183: BBTC | B183: EQ | C183: 1207.9 | D183: 1219 | E183: 1201.1 | F183: 1205.25 | G183: 1203.25 | H183: 1195.9 | I183: 64027 | J183: 77404891.9 | K183: 2019-01-31 | L183: 3367 | M183: INE050A01025
A184: BCG | B184: EQ | C184: 2.95 | D184: 3.45 | E184: 2.8 | F184: 3.15 | G184: 3.2 | H184: 2.9 | I184: 1273734 | J184: 3942889.05 | K184: 2019-01-31 | L184: 568 | M184: INE425B01027
A185: BDL | B185: EQ | C185: 265 | D185: 265 | E185: 256.25 | F185: 258.05 | G185: 256.3 | H185: 258.65 | I185: 9821 | J185: 2534654.75 | K185: 2019-01-31 | L185: 680 | M185: INE171Z01018
A186: BEARDSELL | B186: EQ | C186: 18 | D186: 18 | E186: 16.65 | F186: 16.85 | G186: 17.25 | H186: 17.15 | I186: 1179 | J186: 19938.2 | K186: 2019-01-31 | L186: 28 | M186: INE520H01022
A187: BEDMUTHA | B187: EQ | C187: 20.65 | D187: 21.9 | E187: 20.65 | F187: 21.2 | G187: 21.2 | H187: 21.1 | I187: 5479 | J187: 116195.4 | K187: 2019-01-31 | L187: 29 | M187: INE844K01012
A188: BEL | B188: EQ | C188: 87.6 | D188: 88 | E188: 83.35 | F188: 83.65 | G188: 83.7 | H188: 84 | I188: 29020309 | J188: 2453001165 | K188: 2019-01-31 | L188: 91365 | M188: INE263A01024
A189: BEML | B189: EQ | C189: 800 | D189: 819.85 | E189: 785.05 | F189: 794.15 | G189: 794 | H189: 796.35 | I189: 2099187 | J189: 1686483378 | K189: 2019-01-31 | L189: 46720 | M189: INE258A01016
A190: BEPL | B190: EQ | C190: 70.2 | D190: 72.45 | E190: 67.4 | F190: 68.55 | G190: 68.2 | H190: 69.5 | I190: 425822 | J190: 29369465 | K190: 2019-01-31 | L190: 4754 | M190: INE922A01025
A191: BERGEPAINT | B191: EQ | C191: 320 | D191: 321.4 | E191: 313.65 | F191: 318.75 | G191: 317.6 | H191: 317 | I191: 1042566 | J191: 330991367.3 | K191: 2019-01-31 | L191: 15697 | M191: INE463A01038
A192: BFINVEST | B192: EQ | C192: 215.9 | D192: 227 | E192: 211 | F192: 219.8 | G192: 220 | H192: 214 | I192: 172757 | J192: 38160000.05 | K192: 2019-01-31 | L192: 4850 | M192: INE878K01010
A193: BFUTILITIE | B193: EQ | C193: 197.85 | D193: 207.55 | E193: 193.5 | F193: 200.75 | G193: 200.65 | H193: 197.05 | I193: 550298 | J193: 110960327 | K193: 2019-01-31 | L193: 13183 | M193: INE243D01012
A194: BGLOBAL | B194: BE | C194: 2.85 | D194: 2.85 | E194: 2.65 | F194: 2.65 | G194: 2.7 | H194: 2.75 | I194: 2185 | J194: 5841.95 | K194: 2019-01-31 | L194: 11 | M194: INE224M01013
A195: BGRENERGY | B195: EQ | C195: 54.3 | D195: 55.2 | E195: 54 | F195: 54.6 | G195: 55 | H195: 54.35 | I195: 30487 | J195: 1665686.5 | K195: 2019-01-31 | L195: 400 | M195: INE661I01014
A196: BHAGERIA | B196: EQ | C196: 237.9 | D196: 240.95 | E196: 231 | F196: 231.55 | G196: 231 | H196: 237 | I196: 5306 | J196: 1236207.45 | K196: 2019-01-31 | L196: 278 | M196: INE354C01027
A197: BHAGYANGR | B197: EQ | C197: 34.35 | D197: 34.75 | E197: 32.45 | F197: 33.25 | G197: 33.2 | H197: 33.05 | I197: 4787 | J197: 159204 | K197: 2019-01-31 | L197: 54 | M197: INE458B01036
A198: BHAGYAPROP | B198: EQ | C198: 28.2 | D198: 30.05 | E198: 28.2 | F198: 29 | G198: 29 | H198: 28.85 | I198: 2039 | J198: 58817.5 | K198: 2019-01-31 | L198: 15 | M198: INE363W01018
A199: BHANDARI | B199: EQ | C199: 1.95 | D199: 2 | E199: 1.85 | F199: 1.9 | G199: 1.95 | H199: 1.95 | I199: 131897 | J199: 252031.55 | K199: 2019-01-31 | L199: 147 | M199: INE474E01029
A200: BHARATFIN | B200: EQ | C200: 954.4 | D200: 956.45 | E200: 927.8 | F200: 946.3 | G200: 945.15 | H200: 932.3 | I200: 907510 | J200: 857973919 | K200: 2019-01-31 | L200: 23892 | M200: INE180K01011
... 1430 more rows

Sheet Sheet1 (hidden)

Sheet Sheet3 (hidden)
